Workbook

Sheet Home Upgrade Calculator
O2: Customer Information
O3: Customer Last Name
B4: SoCalREN Home Upgrade Incentive Calculator | O4: Customer Street Address
O5: Project Number
C7: This calculator estimates the energy savings and incentives associated with installed measures completed under Energy Upgrade California Home Upgrade®. In order to qualify for rebate each project must meet all Home Upgrade requirements. | O7: Home Upgrade Requirements4, 5
O8: Each Home Upgrade project must meet all of the following: 1. Minimum of 10% energy savings or $1,200. 2. At least three (3) qualifying measures installed. 3. At least one (1) base measure installed.
C10: Directions: Input your project information into the light blue cells in Steps 1, 2 and 4. Review your results in the gray cells in Steps 3 and 4. You may reset the calculator using the button on the top right hand side of the screen.
C14: Step 1: Describe Existing Home Conditions | D14: Choose the appropriate characteristic below: | N14: Step 3: Verify Estimated Energy Savings Results | W14: 2nd Baseline Energy Savings Results
C15: Climate Zone | Q15: Savings | S15: Percent Saved | U15: Cost | W15: 2nd Baseline (Code) | X15: Energy (kWh) | Y15: =$F$173 -> 
C16: Vintage | U16: Gross | X16: Demand (kW) | Y16: =$F$174 -> 
C17: Floor Construction | P17: Energy (kWh) | Q17: =$F$167 ->  | S17: =$H$167 ->  | U17: =E162 -> 0 | X17: Energy (therms) | Y17: =$F$175 -> 
C18: Existing Central Air Conditioning Present? | P18: Demand (kW) | Q18: =$F$168 ->  | S18: =$H$168 ->  | U18: Incremental | X18: Overall | Y18: =$H$176 -> 
C19: Heating | P19: Energy (therms) | Q19: =$F$169 ->  | S19: =$H$169 ->  | U19: =G162 -> 0 | W19: Cost | X19: Gross | Y19: =ROUND($I$208,2) -> 0
C20: Water Heating | R20: Overall | S20: =$H$170 ->  | X20: Incremental | Y20: =ROUND($J$208,2) -> 0
C21: Number of Stories | X21: EUL | Y21: =IFERROR($L$209,0) -> 0
X22: RUL | Y22: =IFERROR(Y21/3,0) -> 0
C23: Additional Home Characteristics | N23: 2nd Baseline | P23: Energy (kWh) | Q23: =D130 -> 0 | S23: =F130 -> 0
C24: Characteristic Name | D24: Default | E24: Override | F24: Units | N24: (code) | P24: Demand (kW) | Q24: =D131 -> 0 | S24: =F131 -> 0 | X24: =IFERROR(J191,0) -> 0
B25: HC1 | C25: Conditioned Floor Area | F25: Square feet | P25: Energy (therms) | Q25: =D132 -> 0 | S25: =F132 -> 0
B26: HC2 | C26: Window area:Floor Area | F26: Ratio of window area to floor area | R26: Overall | S26: =F133 -> Climate Zone
X28: IR | Y28: =IFERROR($M$209,0) -> 0
C29: Step 2: Select Upgrade Measures Installed | D29: Was the measure installed? Choose Yes/No | E29: Existing Baseline Default | F29: Existing Baseline Override | G29: Code Baseline Default | H29: Code Baseline Override | I29: Measure Default | J29: Measure Override | K29: Units | N29: Step 4: Estimate the Incentive
B30: M1.1 | C30: Whole Building Air Sealing - ≥15% leakage reduction1,2,6 - $250 | D30: No | G30: 0 | I30: =IF(ynM1.1="Yes",0.15,0) -> 0 | K30: Percent leakage reduction relative to baseline
B31: M1.2 | C31: Whole Building Air Sealing - ≥30% leakage reduction1 - $300 | D31: No | P31: Dollars | S31: =IF(D30="Yes",0,0)+IF(D31="Yes",300,0)+IF(D32="Yes",250,0)+IF(D33="Yes",200,0)+IF(D35="Yes",350,0)+IF(D37="Yes",400,0)+IF(D38="Yes",500,0)+IF(D39="Yes",400,0)+IF(D40="Yes",400,0)+IF(D41="Yes",0,0)+IF(D43="Yes",500,0)+IF(D44="Yes",350,0)+IF(D45="Yes",400,0)+IF(D46="Yes",250,0)+IF(D47="Yes",500,0)+IF(D48="Yes",200,0)+IF(D49="Yes",300,0)+IF(D50="Yes",500,0) -> 0
B32: M2 | C32: Insulate Ductwork to ≥R-8 - $250 | D32: No | P32: Meets three measure minimum? | S32: =IF(IF(D30="Yes",1,0)+IF(D31="Yes",1,0)+IF(D32="yes",1,0)+IF(D33="Yes",1,0)+IF(D35="Yes",1,0)+IF(D37="Yes",1,0)+IF(D38="Yes",1,0)+IF(D39="Yes",1,0)+IF(D40="Yes",1,0)+IF(D41="Yes",1,0)+IF(D43="Yes",1,0)+IF(D44="Yes",1,0)+IF(D45="Yes",1,0)+IF(D46="Yes",1,0)+IF(D47="Yes",1,0)+IF(D48="Yes",1,0)+IF(D49="Yes",1,0)+IF(D50="Yes",1,0)>=3,"Yes","No") -> No
B33: M3.1a | C33: Reduce Duct Leakage to ≤10% 1,2 - $200 | D33: No | P33: Meets base measure minimum? | S33: =IF(IF(D31="Yes",1,0)+IF(D33="Yes",1,0)+IF(D35="Yes",1,0)+IF(D37="Yes",1,0)+IF(D38="Yes",1,0)>=1,"Yes","No") -> No
B34: M3.1b | C34: Reduce Duct Leakage to ≤ 10% (Duct Leakage to the Outside (LTO))1,2 | D34: No | P34: Base measure bonuses
B35: M3.2a | C35: Reduce Duct Leakage to ≤5% 1,2 - $350 | D35: No | P35: Meets at least 10% Energy Savings? | S35: =IF(S20>=0.095,"Yes","No") ->  | W35: Error message table:
B36: M3.2b | C36: Reduce Duct Leakage to ≤6% (Duct Leakage to the Outside)1,2 | D36: No
B37: M4.1 | C37: Insulate Attic - ≥R381,2 - $400 | D37: No | P37: Meets 10% or $1,200? | S37: =IF(IF((S31)>=1200,1,0)+IF(S35="yes",1,0)>=1,"Yes","No") ->  | W37: =IF(IF($D$37="Yes",1,0)+IF($D$38="Yes",1,0)>1,"Only one attic insulation measure may be selected.","") -> 
B38: M4.2 | C38: Insulate Attic - ≥R441,2 - $500 | D38: No | R38: What is the final project cost? | S38: 0 | W38: =IF(AND($D$17="Slab-on-grade",$D$39="Yes"),"Floor insulation measure does not apply to slab-on-grade foundation.","") -> 
B39: M5 | C39: Insulate Floor to ≥R-19 - $400 | D39: No | P39: Estimated Incentive (max $3,000) | S39: =IF($O$44<>"","See error messages below",IF(AND(S32="yes", S33="yes"),IF(S37="yes",MIN(((S31)*1),(0.5*S38),3000),0),0)) -> 0 | W39: =IF(IF($D$44="Yes",1,0)+IF($D$45="Yes",1,0)+IF($D$46="Yes",1,0)>1,"Only one space heating measure may be selected.","") -> 
B40: M6 | C40: Wall Insulation to ≥R-13 - $400 | D40: No | W40: =IF(OR(AND($D$20="Gas",$D$47="Yes"),AND($D$20="Electric",OR($D$48="Yes",$D$49="Yes",$D$50="Yes"))),"Water heating measure cannot switch between fuel types.","") -> 
B41: M7a | C41: High Performance Dual Pane Windows - U-Factor ≤0.30 - $700 | D41: No
B42: M7b | C42: High Performance Windows, Solar Heat Gain Coefficient (SHGC) - ≤0.25 (Must replace a minimum of 14% of the conditioned floor area; if 100% of the residential windows is less than 14% then all windows must be replaced.) | D42: No
B43: M8.2 | C43: Split/Packaged Central Air Conditioner ≥15 SEER (≥80% AFUE for Packaged Systems)- $500 | D43: No | O43: =IF(OR($D$15="",$D$16="",$D$17="",$D$18="",$D$19="",$D$20="",storInp="",$O$44=""),"","The following errors must be corrected before an estimated incentive will calculate:") ->  | W43: =IF(OR(AND($D$19="Furnace",$D$46="Yes"),AND(D19="Wall Furnace",OR($D$44="Yes",D45="Yes"))),"Heating measure cannot switch between wall furnace and central furnace.","") -> 
B44: M9.1 | C44: Natural Gas Central Furnace - ≥92% AFUE2 - $350 | D44: No | O44: =IF(OR($D$15="",$D$16="",$D$17="",$D$18="",$D$19="",$D$20="",storInp=""),"",IF($W$47<>"",$W$47&CHAR(10),"")&IF($W$48<>"",$W$48&CHAR(10),"")&IF($W$37<>"",$W$37&CHAR(10),"")&IF($W$38<>"",$W$38&CHAR(10),"")&IF($W$39<>"",$W$39&CHAR(10),"")&IF($W$40<>"",$W$40&CHAR(10),"")&IF($W$43<>"",$W$43&CHAR(10),"")&IF($W$44<>"",$W$44&CHAR(10),"")&IF($W$45<>"",$W$45&CHAR(10),"")&IF($W$46<>"",$W$46&CHAR(10),"")&IF($W$49<>"",$W$49&CHAR(10),"")&IF($W$50<>"",$W$50&CHAR(10),"")&IF($W$52<>"",$W$52&CHAR(10),"")&IF($W$53<>"",$W$53&CHAR(10),"")&IF($X$53<>"",$X$53&CHAR(10),"")&IF($Y$53<>"",$Y$53&CHAR(10),"")) -> 
B45: M9.2 | C45: Natural Gas Central Furnace - ≥95% AFUE2 - $400 | D45: No
B46: M9.3 | C46: Natural Gas Gravity Wall Furnace - ≥70% AFUE2 - $250 | D46: No | W46: =IF(IF($D$47="Yes",1,0)+IF($D$48="Yes",1,0)+IF($D$49="Yes",1,0)+IF($D$50="Yes",1,0)>1,"Only one water heating measure may be selected.","") -> 
B47: M11 | C47: Electric Domestic Hot Water (DHW)2 - $500 | D47: No | W47: =IF(IF($D$31="Yes",1,0)+IF($D$33="Yes",1,0)+IF($D$35="Yes",1,0)+IF($D$37="Yes",1,0)+IF($D$38="Yes",1,0)<1,"At least one base measure must be selected.","") -> At least one base measure must be selected.
B48: M12 | C48: Gas Storage DHW EF ≥.67 and ≤.692 - $200 | D48: No | W48: =IF(COUNTIF($D$31:$D$50,"=yes")<3,"At least three measures must be selected.","") -> At least three measures must be selected.
B49: M13 | C49: Gas Storage DHW EF ≥.702 - $300 | D49: No | W49: =IF($S$37="No","Project does not meet minimum 10% energy savings or $1,200 incentive.","") -> 
B50: M14 | C50: Gas Tankless DHW - EF ≥0.822 - $500 | D50: No | W50: =IF(AND($D$33="Yes",$D$35="Yes"),"Only one duct sealing measure may be selected.","") -> 
B51: M15 | C51: Hot Water Pipe Wrap4 | D51: No
B52: M16 | C52: Thermostatic Shut-Off Valve3 | D52: No | W52: =IF(AND(COUNTIF($D$31:$D$50,"=yes")<3,OR($D$52="Yes",$D$53="Yes")),"Thermostatic shut-off valve measures do not contribute to 3 measure minimum.","") -> 
B53: M17 | C53: Thermostatic Shut-Off Valve & Low-Flow3 | D53: No | W53: =IF(AND($D$52="Yes",$D$53="Yes"),"Only one thermostatic shut-off valve measure may be selected.","") ->  | X53: =IF(AND($D$50="Yes",OR($D$52="Yes",$D$53="Yes")),"Thermostatic shut-off valve measures must not be installed on a shower served by a tankless water heater.","") -> 
C54: Describe Home Type | F54: 1st Baseline | H54: Energy (kWh) | I54: =$F$167 ->  | J54: =$H$167 ->  | K54: Measures Applied* | L54: =COUNTIFS($D$69:$D$93,"Yes",$A$69:$A$93,"<>N/A") -> 0 | S54: Optional Overrides
C55: Climate Zone | D55: =D15 -> 0 | F55: (existing) | H55: Demand (kW) | I55: =$F$168 ->  | J55: =$H$168 ->  | S55: Hidden for normal use.
C56: Vintage | D56: 0 | H56: Energy (therms) | I56: =$F$169 ->  | J56: =$H$169 ->  | K56: Gross Cost | L56: =ROUND($I$208,2) -> 0
A57: =IF(Inp_flr="Crawlspace","CS","SOG") -> SOG | C57: Floor Construction | D57: 0 | I57: Overall | J57: =$H$170 ->  | K57: Incremental Cost | L57: =ROUND($J$208,2) -> 0
A58: =IF(Inp_AC="AC","y","n")&"AC" -> nAC | C58: Air Conditioning | D58: 0
A59: =IF(Inp_htg="Wall Furnace","wGF","GF") -> GF | C59: Heating | D59: 0 | F59: 2nd Baseline | H59: Energy (kWh) | I59: =$F$173 ->  | J59: =$H$173 ->  | K59: EUL | L59: =IFERROR($L$209,0) -> 0
A60: =LOWER(LEFT(Inp_wtrht,1))&"WH" -> 0WH | C60: Water Heating | D60: 0 | F60: (code) | H60: Demand (kW) | I60: =$F$174 ->  | J60: =$H$174 ->  | K60: IR | L60: =IFERROR($M$209,0) -> 0
A61: =Inp_stor&"FL" -> 0FL | C61: Number of Stories | D61: =storInp -> 0 | H61: Energy (therms) | I61: =$F$175 ->  | J61: =$H$175 -> 
C62: Additional Home Characterstics | D62: Default | E62: Units | I62: Overall | J62: =$H$176 ->  | S62: Override
B63: HC1 | C63: Conditioned Floor Area | D63: =DGET(tDefaults,B63,$D$97:$I$98) ->  | E63: Square feet
B64: HC2 | C64: Ratio of Window area to Floor Area | D64: =DGET(tDefaults,B64,$D$97:$I$98) ->  | E64: Ratio | M64: ="*There are "&COUNTIFS($D$69:$D$93,"Yes",$A$69:$A$93,"N/A")&" measure(s) selected but not applicable and therefore not applied." -> *There are 0 measure(s) selected but not applicable and therefore not applied.
C67: Measures to Include in Package | E67: Existing Baseline | F67: Code Baseline | G67: Measure | S67: Existing Baseline | U67: Code Baseline | W67: Measure
B68: ID | D68: Apply Measure? | E68: Default | F68: Default | G68: Default | H68: Units | L68: Notes | S68: Override | U68: Override | W68: Override
A69: =IF(AND(ynM1.2="Yes",A70<>"N/A"),"N/A","") ->  | B69: M1.1 | C69: Reduce Building Leakage (15%) | D69: No | E69: 0 | F69: 0 | G69: =IF(ynM1.1="Yes",0.15,0) -> 0 | H69: Percent leakage reduction relative to baseline
A70: =IF(Inp_vint="93-01","N/A",IF(ynM1.1="Yes",IF(ynM1.2="Yes","","N/A"),"")) ->  | B70: M1.2 | C70: Reduce Building Leakage (30%) | D70: =D31 -> No | E70: 0 | F70: 0 | G70: =IF(ynM1.2="Yes",0.3,0) -> 0 | H70: Percent leakage reduction relative to baseline | L70: N/A if Vintage is 93-01
A71: =IF(AND(Inp_AC="No AC",Inp_htg="Wall Furnace"),"N/A","") ->  | B71: M2 | C71: Insulate Duct (R8) | D71: =D32 -> No | E71: =DGET(tDefaults,B71&"B",$D$97:$I$98) ->  | F71: =IF(OR($D71="Yes",$D70&$D71="Yes"),DGET(tDefaults,$B71&"C",$D$97:$I$98),E71) ->  | G71: =IF(OR($D71="Yes",$D70&$D71="Yes"),DGET(tDefaults,B71&"M",$D$97:$I$98),E71) ->  | H71: R-value of duct insulation | L71: N/A if No AC + Wall Furnace
A72: =IF(OR(ynM3.2a="Yes",AND(Inp_AC="No AC",Inp_htg="Wall Furnace")),"N/A","") ->  | B72: M3.1a | C72: Reduce Duct Leakage (10%) | D72: =D33 -> No | H72: Percent total duct leakage | L72: N/A if No AC + Wall Furnace
B73: M3.1b | C73: (Equivalent entry as % Duct Leakage to Outside Air) | H73: Percent duct leakage to outside air
A74: =IF(OR(AND(Inp_AC="No AC",Inp_htg="Wall Furnace"),AND(ynM3.1a="Yes",ynM3.2a="No")),"N/A","") ->  | B74: M3.2a | C74: Reduce Duct Leakage (5%) | D74: =D35 -> No | H74: Percent total duct leakage | L74: N/A if No AC + Wall Furnace
B75: M3.2b | C75: (Equivalent entry as % Duct Leakage to Outside Air) | E75: =DGET(tDefaults,B75&"B",$D$97:$I$98) ->  | H75: Percent duct leakage to outside air
A76: =IF(ynM4.2="Yes","N/A","") ->  | B76: M4.1 | C76: ="Insulate Attic"&IF(ynM4.1="Yes"," (R"&G76&")"," (R30/R38)") -> Insulate Attic (R30/R38) | D76: =D37 -> No | H76: R-value of attic insulation | L76: Measure level based on climate zone
A77: =IF(AND(ynM4.1="Yes",ynM4.2="No"),"N/A","") ->  | B77: M4.2 | C77: Insulate Attic (R44) | D77: =D38 -> No | H77: R-value of attic insulation
A78: =IF(Inp_flr="Slab-on-grade","N/A","") ->  | B78: M5 | C78: Insulate Floor (R19) | D78: =D39 -> No | H78: R-value of floor insulation | L78: N/A if Slab-on-grade
B79: M6 | C79: Insulate Wall (R13) | D79: =D40 -> No | H79: R-value of wall insulation
B80: M7a | C80: High Performance Windows (U0.30, SHGC0.25) | D80: No | H80: U-value of window
B81: M7b | C81: (Enter U-Value and SHGC) | E81: =DGET(tDefaults,B81&"B",$D$97:$I$98) ->  | H81: SHGC of window
A82: =IF(Inp_AC="no AC","N/A","") ->  | B82: M8.2 | C82: Efficient Air Conditioner (SEER 15) | D82: =D43 -> No | H82: SEER | L82: N/A if no AC
A83: =IF(OR(Inp_htg="Wall Furnace",ynM9.2="Yes"),"N/A","") ->  | B83: M9.1 | C83: Efficient Furnace (AFUE 92%) | D83: No | H83: AFUE | L83: N/A if Wall Furnace
A84: =IF(OR(Inp_htg="Wall Furnace",AND(ynM9.1="Yes",ynM9.2="No")),"N/A","") ->  | B84: M9.2 | C84: Efficient Furnace (AFUE 95%) | D84: No | H84: AFUE | L84: N/A if Wall Furnace
A85: =IF(Inp_htg="Furnace","N/A","") ->  | B85: M9.3 | C85: Efficient Wall Furnace (AFUE 70%) | D85: No | H85: AFUE | L85: N/A if Furnace
A86: =IF(Inp_wtrht="Gas","N/A","") ->  | B86: M11 | C86: Efficient Electric Water Heater (200 EF) | D86: No | F86: =DGET(tDefaults,B86&"C",$D$97:$I$98) ->  | G86: =DGET(tDefaults,B86&"M",$D$97:$I$98) ->  | H86: Energy Factor | L86: N/A if Gas Water Heating
A87: =IF(OR(Inp_wtrht="Electric",ynM13="Yes",ynM14="Yes"),"N/A","") ->  | B87: M12 | C87: Efficient Gas Water Heater (67 EF) | D87: No | H87: Energy Factor | L87: N/A if Electric Water Heating | W87: No
A88: =IF(OR(Inp_wtrht="Electric",AND(ynM12="Yes",ynM13="No"),ynM14="Yes"),"N/A","") ->  | B88: M13 | C88: Efficient Gas Water Heater (70 EF) | D88: No | H88: Energy Factor | L88: N/A if Electric Water Heating | S88: No overrides | U88: No overrides | W88: overrides
A89: =IF(OR(Inp_wtrht="Electric",ynM12="Yes",ynM13="Yes"),"N/A","") ->  | B89: M14 | C89: Tankless Gas Water Heater (82 EF) | D89: No | H89: Energy Factor | L89: N/A if Electric Water Heating | S89: for DHW | U89: for DHW
B90: M15 | C90: Hot Water Pipe Wrap (1.0 Inch) | D90: No | H90: None/Wrap | S90: measure | U90: measure
A91: =IF(AND($A$89<>"N/A",ynM14="Yes"),"N/A","") ->  | B91: M16 | C91: Shower Thermostatic Shut-Off Valve | D91: =D52 -> No | H91: None/Valve | L91: N/A if Tankless Gas Water Heater | S91: baselines | U91: baselines
A92: =IF(AND($A$89<>"N/A",ynM14="Yes"),"N/A","") ->  | B92: M17 | C92: Shower Thermostatic Shut-Off Valve & Low-Flow Showerhead | D92: =D53 -> No | H92: None/Valve & Low-Flow Showerhead | L92: N/A if Tankless Gas Water Heater
A93: =IF(AND($A$89<>"N/A",ynM14="Yes"),"N/A","") ->  | B93: M18 | C93: Auto Diverting Tub Spout with Thermostatic Shut-Off Valve | D93: No | H93: None/Valve & Auto Diverting Tub Spout | L93: N/A if Tankless Gas Water Heater
A96: Defaults Database Instruction
A97: Gray text is static, Black text varies with inputs. | D97: Cooling | E97: Heating | F97: Floor | G97: Climate Zone | H97: Stories | I97: Vintage
D98: =Inp_AC -> 0 | E98: =Inp_htg -> 0 | F98: =Inp_flr -> 0 | G98: =VLOOKUP($D$55,Lists!$B$3:$C$18,2,FALSE) ->  | H98: =Inp_stor -> 0 | I98: =Inp_vint -> 0
A100: Regression Model Inputs | K100: Acceptable Ranges
K101: 1-Story | M101: 2-Story
B102: ID | C102: Variable | D102: Existing Baseline | F102: Code Baseline | H102: Measure | J102: If Code=Measure, 1,0 | K102: Low | L102: High | M102: Low | N102: High
B103: HC1 | C103: Floor area | D103: =MEDIAN(IF(ISBLANK(S63),D63,S63),IF(Inp_stor=1,K103:L103,M103:N103)) ->  | K103: 645 | L103: 1613 | M103: 1290 | N103: 3225
B104: HC2 | C104: Window area:Floor Area | D104: =MEDIAN(IF(ISBLANK(S64),D64,S64),K104,L104)*100 ->  | E104: Default ACHn | G104: Default ACHn | I104: Default ACHn | K104: 0.115 | L104: 0.2
A105: =IFERROR(INDEX($E$183:$E$207,MATCH($B105,$A$183:$A$207,0),1),"No") -> No | B105: M1 | C105: Reduce Building Leakage | D105: =IF($A105="M1.2",IF(ISBLANK(S70),DGET(Defaults!$A$4:$CH$773,B69&"B",$D$97:$I$98),MEDIAN(DGET(Defaults!$A$4:$CH$773,B69&"B",$D$97:$I$98)*(1-S70),K105,L105)),IF($A105="M1.1",IF(ISBLANK(S69),DGET(Defaults!$A$4:$CH$773,B69&"B",$D$97:$I$98),MEDIAN(DGET(Defaults!$A$4:$CH$773,B69&"B",$D$97:$I$98)*(1-S69),K105,L105)),DGET(Defaults!$A$4:$CH$773,B69&"B",$D$97:$I$98))) ->  | E105: =INDEX('Default Value References'!$L$4:$L$6,MATCH(Inp_vint,'Default Value References'!$F$4:$F$6,0),1) ->  | F105: =IF($A105="M1.2",IF(ISBLANK(U70),bvarM1,MEDIAN(bvarM1*(1-U70),K105,L105)),IF($A105="M1.1",IF(ISBLANK(U69),bvarM1,MEDIAN(bvarM1*(1-U69),K105,L105)),bvarM1)) ->  | G105: =E105 ->  | H105: =IF($A105="M1.2",IF(ISBLANK(W70),bvarM1*(1-G70),MEDIAN(bvarM1*(1-W70),K105,L105)),IF($A105="M1.1",IF(ISBLANK(W69),bvarM1*(1-G69),MEDIAN(bvarM1*(1-W69),K105,L105)),bvarM1*(1-G69))) ->  | I105: =IF($A105="M1.1",INDEX('Default Value References'!$N$4:$N$6,MATCH(Inp_vint,'Default Value References'!$F$4:$F$6,0),1),INDEX('Default Value References'!$N$7:$N$9,MATCH(Inp_vint,'Default Value References'!$F$7:$F$9,0),1)) ->  | J105: =IF(F105=H105,1,0) ->  | K105: 0.00032 | L105: 0.001
A106: No | B106: M2 | C106: Insulate Duct | D106: =IF($A106=$B106,MEDIAN(IF(ISBLANK(S71),E71,S71),K106,L106),E71) ->  | F106: =IF($A106=$B106,MEDIAN(IF(ISBLANK(U71),F71,U71),K106,L106),F71) ->  | H106: =IF($A106=$B106,MEDIAN(IF(ISBLANK(W71),G71,W71),K106,L106),G71) ->  | J106: =IF(F106=H106,1,0) ->  | K106: 0.01 | L106: 8
A107: No | B107: M3 | C107: Reduce Duct Leakage | D107: =IF($A107="M3.2a",IF(ISBLANK(S74),IF(ISBLANK(S75),E74,MEDIAN(S75/IF(Inp_stor=1,'Default Value References'!$E$26,'Default Value References'!$E$27),K107,L107)),MEDIAN(S74,K107,L107)),IF($A107="M3.1a",IF(ISBLANK(S72),IF(ISBLANK(S73),E72,MEDIAN(S73/IF(Inp_stor=1,'Default Value References'!$E$26,'Default Value References'!$E$27),K107,L107)),MEDIAN(S72,K107,L107)),E74))*100 ->  | F107: =IF($A107="M3.2a",IF(ISBLANK(U74),IF(ISBLANK(U75),F74,MEDIAN(U75/IF(Inp_stor=1,'Default Value References'!$E$26,'Default Value References'!$E$27),K107,L107)),MEDIAN(U74,K107,L107)),IF($A107="M3.1a",IF(ISBLANK(U72),IF(ISBLANK(U73),F72,MEDIAN(U73/IF(Inp_stor=1,'Default Value References'!$E$26,'Default Value References'!$E$27),K107,L107)),MEDIAN(U72,K107,L107)),F74))*100 ->  | H107: =IF($A107="M3.2a",IF(ISBLANK(W74),IF(ISBLANK(W75),G74,MEDIAN(W75/IF(Inp_stor=1,'Default Value References'!$E$26,'Default Value References'!$E$27),K107,L107)),MEDIAN(W74,K107,L107)),IF($A107="M3.1a",IF(ISBLANK(W72),IF(ISBLANK(W73),G72,MEDIAN(W73/IF(Inp_stor=1,'Default Value References'!$E$26,'Default Value References'!$E$27),K107,L107)),MEDIAN(W72,K107,L107)),G74))*100 ->  | K107: 0.06 | L107: 0.35
A108: No | B108: M4 | C108: Insulate Attic | D108: =IF($A108="M4.2",IF(ISBLANK(S77),E77,MEDIAN(S77,K108,L108)),IF($A108="M4.1",IF(ISBLANK(S76),E76,MEDIAN(S76,K108,L108)),E76)) ->  | F108: =IF($A108="M4.2",IF(ISBLANK(U77),F77,MEDIAN(U77,K108,L108)),IF($A108="M4.1",IF(ISBLANK(U76),F76,MEDIAN(U76,K108,L108)),F76)) ->  | H108: =IF($A108="M4.2",IF(ISBLANK(W77),G77,MEDIAN(W77,K108,L108)),IF($A108="M4.1",IF(ISBLANK(W76),G76,MEDIAN(W76,K108,L108)),G76)) ->  | K108: 0.01 | L108: 44
A109: No | B109: M5 | C109: Insulate Floor | D109: =IF($A109=$B109,MEDIAN(IF(ISBLANK(S78),E78,S78),K109,L109),E78) ->  | F109: =IF($A109=$B109,MEDIAN(IF(ISBLANK(U78),F78,U78),K109,L109),F78) ->  | H109: =IF($A109=$B109,MEDIAN(IF(ISBLANK(W78),G78,W78),K109,L109),G78) ->  | K109: 0.01 | L109: 19
A110: No | B110: M6 | C110: Insulate Wall | D110: =IF($A110=$B110,MEDIAN(IF(ISBLANK(S79),E79,S79),K109,L109),E79) ->  | F110: =IF($A110=$B110,MEDIAN(IF(ISBLANK(U79),F79,U79),K109,L109),F79) ->  | H110: =IF($A110=$B110,MEDIAN(IF(ISBLANK(W79),G79,W79),K109,L109),G79) ->  | K110: 0.01 | L110: 14
A111: No | B111: M7a | C111: High Performance Windows, U | D111: =DGET(WindowInputDetail!$B$6:$D$16,"Input",'Home Upgrade Calculator'!D112:E113) ->  | F111: =DGET(WindowInputDetail!$B$6:$D$16,"Input",'Home Upgrade Calculator'!F112:G113) ->  | H111: =DGET(WindowInputDetail!$B$6:$D$16,"Input",'Home Upgrade Calculator'!H112:I113) ->  | K111: 1 | L111: 4
D112: U | E112: SHGC | F112: U | G112: SHGC | H112: U | I112: SHGC
D113: =VLOOKUP(IF($A111=$B111,IF(ISBLANK(S80),E80,S80),E80),WindowInputDetail!$B$7:$B$15,1,TRUE) ->  | E113: =VLOOKUP(IF($A111=$B111,IF(ISBLANK(S81),E81,S81),E81),WindowInputDetail!$C$7:$C$15,1,TRUE) ->  | F113: =VLOOKUP(IF($A111=$B111,IF(ISBLANK(U80),F80,U80),F80),WindowInputDetail!$B$7:$B$15,1,TRUE) ->  | G113: =VLOOKUP(IF($A111=$B111,IF(ISBLANK(U81),F81,U81),F81),WindowInputDetail!$C$7:$C$15,1,TRUE) ->  | H113: =VLOOKUP(IF($A111=$B111,IF(ISBLANK(W80),G80,W80),G80),WindowInputDetail!$B$7:$B$15,1,TRUE) ->  | I113: =VLOOKUP(IF($A111=$B111,IF(ISBLANK(W81),G81,W81),G81),WindowInputDetail!$C$7:$C$15,1,TRUE) -> 
A114: =IFERROR(INDEX($E$183:$E$207,MATCH($B114,$A$183:$A$207,0),1),"No") -> No | B114: M8 | C114: Efficient Air Conditioner | D114: =IF($A114="M8.2",IF(ISBLANK(S82),E82,MEDIAN(S82,$K114,$L114)),E82) ->  | F114: =IF($A114="M8.2",IF(ISBLANK(U82),F82,MEDIAN(U82,$K114,$L114)),F82) ->  | H114: =IF($A114="M8.2",IF(ISBLANK(W82),G82,MEDIAN(W82,$K114,$L114)),G82) ->  | K114: 10 | L114: 16
A115: =IFERROR(INDEX($E$183:$E$207,MATCH($B115,$A$183:$A$207,0),1),"No") -> No | B115: M9 | C115: Efficient Furnace | D115: =IF(Inp_htg="Wall Furnace",IF($A115="M9.3",IF(ISBLANK(S85),E85,MEDIAN(S85,K115,L115)),E85),IF($A115="M9.2",IF(ISBLANK(S84),E84,MEDIAN(S84,K115,L115)),IF($A115="M9.1",IF(ISBLANK(S83),E83,MEDIAN(S83,K115,L115)),E83))) ->  | F115: =IF(Inp_htg="Wall Furnace",IF($A115="M9.3",IF(ISBLANK(U85),F85,MEDIAN(U85,K115,L115)),F85),IF($A115="M9.2",IF(ISBLANK(U84),F84,MEDIAN(U84,K115,L115)),IF($A115="M9.1",IF(ISBLANK(U83),F83,MEDIAN(U83,K115,L115)),F83))) ->  | H115: =IF(Inp_htg="Wall Furnace",IF($A115="M9.3",IF(ISBLANK(W85),G85,MEDIAN(W85,K115,L115)),G85),IF($A115="M9.2",IF(ISBLANK(W84),G84,MEDIAN(W84,K115,L115)),IF($A115="M9.1",IF(ISBLANK(W83),G83,MEDIAN(W83,K115,L115)),G83))) ->  | K115: =IF(Inp_htg="Wall Furnace",62,78) -> 78 | L115: =IF(Inp_htg="Wall Furnace",70,95) -> 95
A118: Regression Model Results for HVAC-Interactive Measures
C120: Unique ID | D120: Scenario | E120: Impact | F120: Impact/Area | G120: Impact | H120: as kBtu
C121: =$D$58&"-"&$D$59&"-"&$D$57&"-"&$G$98&"-"&$D$61&"-"&E121&"-"&D121 ->  | D121: Base | E121: kWh | F121: =HLOOKUP(C121,Regressions!$I$1:$BYV$8,8,FALSE) ->  | G121: =F121*$D$103 ->  | H121: =G121*3.412 -> 
D122: Base | E122: kW | F122: =HLOOKUP(C122,Regressions!$I$1:$BYV$8,8,FALSE) ->  | G122: =F122*$D$103 -> 
D123: Base | E123: therms | F123: =HLOOKUP(C123,Regressions!$I$1:$BYV$8,8,FALSE) ->  | H123: =G123*100 -> 
D124: Code | E124: kWh | F124: =HLOOKUP(C124,Regressions!$I$1:$BYV$8,8,FALSE) ->  | H124: =G124*3.412 -> 
D125: Code | E125: kW | F125: =HLOOKUP(C125,Regressions!$I$1:$BYV$8,8,FALSE) -> 
D126: Code | E126: therms | F126: =HLOOKUP(C126,Regressions!$I$1:$BYV$8,8,FALSE) ->  | H126: =G126*100 -> 
D127: Measure | E127: kWh | F127: =HLOOKUP(C127,Regressions!$I$1:$BYV$8,8,FALSE) ->  | H127: =G127*3.412 -> 
D128: Measure | E128: kW | F128: =HLOOKUP(C128,Regressions!$I$1:$BYV$8,8,FALSE) -> 
D129: Measure | E129: therms | F129: =HLOOKUP(C129,Regressions!$I$1:$BYV$8,8,FALSE) ->  | H129: =G129*100 -> 
B131: DHW Measure Savings | M131: Interaction Accounting
N132: Exist: | O132: Code:
E133: Water Heating | F133: Climate Zone | M133: kWh | N133: =DGET(tDHW_Bsl,N$132&M133,'Home Upgrade Calculator'!$E$133:$F$134) ->  | O133: =DGET(tDHW_Bsl,O$132&M133,'Home Upgrade Calculator'!$E$133:$F$134) -> 
E134: =D60 -> 0 | F134: =$D$55 -> 0 | M134: kW | N134: =DGET(tDHW_Bsl,N$132&M134,'Home Upgrade Calculator'!$E$133:$F$134) ->  | O134: =DGET(tDHW_Bsl,O$132&M134,'Home Upgrade Calculator'!$E$133:$F$134) -> 
H135: ="1:" -> 1: | I135: ="2:" -> 2: | M135: therm | N135: =DGET(tDHW_Bsl,N$132&M135,'Home Upgrade Calculator'!$E$133:$F$134) ->  | O135: =DGET(tDHW_Bsl,O$132&M135,'Home Upgrade Calculator'!$E$133:$F$134) -> 
B136: Yes or No if not N/A | C136: Ref_Code | D136: Water Heating | E136: Vintage | F136: Climate Zone | H136: 1st Baseline Savings | I136: 2nd Baseline Savings | J136: Factor Unit | K136: Factor | L136: Adjusted 1st Baseline Savings | M136: Adjusted 2nd Baseline Savings | N136: Existing Baseline % Savings | O136: Code Baseline % Savings | P136: 1st Baseline Savings | Q136: 2nd Baseline Savings
A137: M11 | B137: =CHOOSE(COUNTIFS($E$183:$E$207,$A137,$G$183:$G$207,"Yes")+1,"No","Yes") -> No | C137: ="="&A137 -> =M11 | D137: =Inp_wtrht -> 0 | F137: =Inp_CZ -> 0 | G137: kWh Savings | H137: =IF($B137<>"No",DGET(tDHW_Msr,H$135&$G137,$C136:$F137),0) -> 0 | I137: =IF($B137<>"No",DGET(tDHW_Msr,I$135&$G137,$C136:$F137),0) -> 0 | J137: None | K137: 1 | L137: =H137 -> 0 | M137: =I137 -> 0 | N137: =IF($N$133=0,0,L137/$N$133) ->  | O137: =IF($O$133=0,0,M137/$O$133) -> 
C138: =C86 -> Efficient Electric Water Heater (200 EF) | G138: kW Savings | H138: =IF($B137<>"No",DGET(tDHW_Msr,H$135&$G138,$C136:$F137),0) -> 0 | I138: =IF($B137<>"No",DGET(tDHW_Msr,I$135&$G138,$C136:$F137),0) -> 0 | J138: None | K138: 1 | L138: 0 | M138: 0 | N138: =IF($N$134=0,0,L138/$N$134) ->  | O138: =IF($O$134=0,0,M138/$O$134) -> 
C139: =C$136 -> Ref_Code | D139: =D$136 -> Water Heating | E139: =E$136 -> Vintage | F139: =F$136 -> Climate Zone | G139: therm Savings | H139: =IF($B137<>"No",DGET(tDHW_Msr,H$135&$G139,$C136:$F137),0) -> 0 | I139: =IF($B137<>"No",DGET(tDHW_Msr,I$135&$G139,$C136:$F137),0) -> 0 | J139: None | K139: 1 | L139: 0 | M139: 0 | N139: =IF($N$135=0,0,L139/$N$135) ->  | O139: =IF($O$135=0,0,M139/$O$135) -> 
A140: M12 | B140: =CHOOSE(COUNTIFS($E$183:$E$207,$A140,$G$183:$G$207,"Yes")+1,"No","Yes") -> No | C140: ="="&A140 -> =M12 | D140: =Inp_wtrht -> 0 | F140: =Inp_CZ -> 0 | G140: kWh Savings | H140: =IF($B140<>"No",DGET(tDHW_Msr,H$135&$G140,$C139:$F140),0) -> 0 | I140: =IF($B140<>"No",DGET(tDHW_Msr,I$135&$G140,$C139:$F140),0) -> 0 | J140: None | K140: 1 | L140: 0 | M140: 0 | N140: =IF($N$133=0,0,L140/$N$133) ->  | O140: =IF($O$133=0,0,M140/$O$133) -> 
C141: =C87 -> Efficient Gas Water Heater (67 EF) | G141: kW Savings | H141: =IF($B140<>"No",DGET(tDHW_Msr,H$135&$G141,$C139:$F140),0) -> 0 | I141: =IF($B140<>"No",DGET(tDHW_Msr,I$135&$G141,$C139:$F140),0) -> 0 | J141: None | K141: 1 | L141: 0 | M141: 0 | N141: =IF($N$134=0,0,L141/$N$134) ->  | O141: =IF($O$134=0,0,M141/$O$134) -> 
C142: =C$136 -> Ref_Code | D142: =D$136 -> Water Heating | E142: =E$136 -> Vintage | F142: =F$136 -> Climate Zone | G142: therm Savings | H142: =IF($B140<>"No",DGET(tDHW_Msr,H$135&$G142,$C139:$F140),0) -> 0 | I142: =IF($B140<>"No",DGET(tDHW_Msr,I$135&$G142,$C139:$F140),0) -> 0 | J142: None | K142: 1 | L142: 0 | M142: 0 | N142: =IF($N$135=0,0,L142/$N$135) ->  | O142: =IF($O$135=0,0,M142/$O$135) -> 
A143: M13 | B143: =CHOOSE(COUNTIFS($E$183:$E$207,$A143,$G$183:$G$207,"Yes")+1,"No","Yes") -> No | C143: ="="&A143 -> =M13 | D143: =Inp_wtrht -> 0 | F143: =Inp_CZ -> 0 | G143: kWh Savings | H143: =IF($B143<>"No",DGET(tDHW_Msr,H$135&$G143,$C142:$F143),0) -> 0 | I143: =IF($B143<>"No",DGET(tDHW_Msr,I$135&$G143,$C142:$F143),0) -> 0 | J143: None | K143: 1 | L143: 0 | M143: 0 | N143: =IF($N$133=0,0,L143/$N$133) ->  | O143: =IF($O$133=0,0,M143/$O$133) -> 
C144: =C88 -> Efficient Gas Water Heater (70 EF) | G144: kW Savings | H144: =IF($B143<>"No",DGET(tDHW_Msr,H$135&$G144,$C142:$F143),0) -> 0 | I144: =IF($B143<>"No",DGET(tDHW_Msr,I$135&$G144,$C142:$F143),0) -> 0 | J144: None | K144: 1 | L144: 0 | M144: 0 | N144: =IF($N$134=0,0,L144/$N$134) ->  | O144: =IF($O$134=0,0,M144/$O$134) -> 
C145: =C$136 -> Ref_Code | D145: =D$136 -> Water Heating | E145: =E$136 -> Vintage | F145: =F$136 -> Climate Zone | G145: therm Savings | H145: =IF($B143<>"No",DGET(tDHW_Msr,H$135&$G145,$C142:$F143),0) -> 0 | I145: =IF($B143<>"No",DGET(tDHW_Msr,I$135&$G145,$C142:$F143),0) -> 0 | J145: None | K145: 1 | L145: 0 | M145: 0 | N145: =IF($N$135=0,0,L145/$N$135) ->  | O145: =IF($O$135=0,0,M145/$O$135) -> 
A146: M14 | B146: =CHOOSE(COUNTIFS($E$183:$E$207,$A146,$G$183:$G$207,"Yes")+1,"No","Yes") -> No | C146: ="="&A146 -> =M14 | D146: =Inp_wtrht -> 0 | F146: =Inp_CZ -> 0 | G146: kWh Savings | H146: =IF($B146<>"No",DGET(tDHW_Msr,H$135&$G146,$C145:$F146),0) -> 0 | I146: =IF($B146<>"No",DGET(tDHW_Msr,I$135&$G146,$C145:$F146),0) -> 0 | J146: None | K146: 1 | L146: 0 | M146: 0 | N146: =IF($N$133=0,0,L146/$N$133) ->  | O146: =IF($O$133=0,0,M146/$O$133) -> 
C147: =C89 -> Tankless Gas Water Heater (82 EF) | G147: kW Savings | H147: =IF($B146<>"No",DGET(tDHW_Msr,H$135&$G147,$C145:$F146),0) -> 0 | I147: =IF($B146<>"No",DGET(tDHW_Msr,I$135&$G147,$C145:$F146),0) -> 0 | J147: None | K147: 1 | L147: 0 | M147: 0 | N147: =IF($N$134=0,0,L147/$N$134) ->  | O147: =IF($O$134=0,0,M147/$O$134) -> 
C148: =C$136 -> Ref_Code | D148: =D$136 -> Water Heating | E148: =E$136 -> Vintage | F148: =F$136 -> Climate Zone | G148: therm Savings | H148: =IF($B146<>"No",DGET(tDHW_Msr,H$135&$G148,$C145:$F146),0) -> 0 | I148: =IF($B146<>"No",DGET(tDHW_Msr,I$135&$G148,$C145:$F146),0) -> 0 | J148: None | K148: 1 | L148: 0 | M148: 0 | N148: =IF($N$135=0,0,L148/$N$135) ->  | O148: =IF($O$135=0,0,M148/$O$135) -> 
A149: M15 | B149: =CHOOSE(COUNTIFS($E$183:$E$207,$A149,$G$183:$G$207,"Yes")+1,"No","Yes") -> No | C149: ="="&A149 -> =M15 | F149: =Inp_CZ -> 0 | G149: kWh Savings | H149: =IF($B149<>"No",DGET(tDHW_Msr,H$135&$G149,$C148:$F149),0) -> 0 | I149: =IF($B149<>"No",DGET(tDHW_Msr,I$135&$G149,$C148:$F149),0) -> 0 | J149: Length | K149: =IF(ISBLANK($W$90),1,VLOOKUP($W$90,Lists!$P$3:$Q$5,2,FALSE)) -> 1 | L149: =H149*$K149 -> 0 | M149: =I149*$K149 -> 0 | P149: =(1-MAX($N$137,$N$140,$N$143,$N$146))*L149 ->  | Q149: =(1-MAX($O$137,$O$140,$O$143,$O$146))*M149 -> 
C150: =C90 -> Hot Water Pipe Wrap (1.0 Inch) | G150: kW Savings | H150: =IF($B149<>"No",DGET(tDHW_Msr,H$135&$G150,$C148:$F149),0) -> 0 | I150: =IF($B149<>"No",DGET(tDHW_Msr,I$135&$G150,$C148:$F149),0) -> 0 | J150: Length | K150: =K149 -> 1 | L150: =H150*$K150 -> 0 | M150: 0 | P150: =(1-MAX($N$138,$N$141,$N$144,$N$147))*L150 ->  | Q150: =(1-MAX($O$138,$O$141,$O$144,$O$147))*M150 -> 
C151: =C$136 -> Ref_Code | D151: =D$136 -> Water Heating | E151: =E$136 -> Vintage | F151: =F$136 -> Climate Zone | G151: therm Savings | H151: =IF($B149<>"No",DGET(tDHW_Msr,H$135&$G151,$C148:$F149),0) -> 0 | I151: =IF($B149<>"No",DGET(tDHW_Msr,I$135&$G151,$C148:$F149),0) -> 0 | J151: Length | K151: =K149 -> 1 | L151: 0 | M151: 0 | P151: =(1-MAX($N$139,$N$142,$N$145,$N$148))*L151 ->  | Q151: =(1-MAX($O$139,$O$142,$O$145,$O$148))*M151 -> 
A152: M16 | B152: =CHOOSE(COUNTIFS($E$183:$E$207,$A152,$G$183:$G$207,"Yes")+1,"No","Yes") -> No | C152: ="="&A152 -> =M16 | D152: =Inp_wtrht -> 0 | F152: =Inp_CZ -> 0 | G152: kWh Savings | H152: =IF($B152<>"No",DGET(tDHW_Msr,H$135&$G152,$C151:$F152),0) -> 0 | I152: =IF($B152<>"No",DGET(tDHW_Msr,I$135&$G152,$C151:$F152),0) -> 0 | J152: Install | K152: =IF(ISBLANK($W$91),1,$W$91) -> 1 | L152: =H152*$K152 -> 0 | M152: =I152*$K152 -> 0 | P152: =(1-MAX($N$137,$N$140,$N$143,$N$146))*L152 ->  | Q152: =(1-MAX($O$137,$O$140,$O$143,$O$146))*M152 -> 
C153: =C91 -> Shower Thermostatic Shut-Off Valve | G153: kW Savings | H153: =IF($B152<>"No",DGET(tDHW_Msr,H$135&$G153,$C151:$F152),0) -> 0 | I153: =IF($B152<>"No",DGET(tDHW_Msr,I$135&$G153,$C151:$F152),0) -> 0 | J153: Install | K153: =K152 -> 1 | L153: 0 | M153: 0 | P153: =(1-MAX($N$138,$N$141,$N$144,$N$147))*L153 ->  | Q153: =(1-MAX($O$138,$O$141,$O$144,$O$147))*M153 -> 
C154: =C$136 -> Ref_Code | D154: =D$136 -> Water Heating | E154: =E$136 -> Vintage | F154: =F$136 -> Climate Zone | G154: therm Savings | H154: =IF($B152<>"No",DGET(tDHW_Msr,H$135&$G154,$C151:$F152),0) -> 0 | I154: =IF($B152<>"No",DGET(tDHW_Msr,I$135&$G154,$C151:$F152),0) -> 0 | J154: Install | K154: =K153 -> 1 | L154: 0 | M154: 0 | P154: =(1-MAX($N$139,$N$142,$N$145,$N$148))*L154 ->  | Q154: =(1-MAX($O$139,$O$142,$O$145,$O$148))*M154 -> 
A155: M17 | B155: =CHOOSE(COUNTIFS($E$183:$E$207,$A155,$G$183:$G$207,"Yes")+1,"No","Yes") -> No | C155: ="="&A155 -> =M17 | D155: =Inp_wtrht -> 0 | F155: =Inp_CZ -> 0 | G155: kWh Savings | H155: =IF($B155<>"No",DGET(tDHW_Msr,H$135&$G155,$C154:$F155),0) -> 0 | I155: =IF($B155<>"No",DGET(tDHW_Msr,I$135&$G155,$C154:$F155),0) -> 0 | J155: Install | K155: =IF(ISBLANK($W$92),1,$W$92) -> 1 | L155: 0 | M155: 0 | P155: =(1-MAX($N$137,$N$140,$N$143,$N$146))*L155 ->  | Q155: =(1-MAX($O$137,$O$140,$O$143,$O$146))*M155 -> 
C156: =C92 -> Shower Thermostatic Shut-Off Valve & Low-Flow Showerhead | G156: kW Savings | H156: =IF($B155<>"No",DGET(tDHW_Msr,H$135&$G156,$C154:$F155),0) -> 0 | I156: =IF($B155<>"No",DGET(tDHW_Msr,I$135&$G156,$C154:$F155),0) -> 0 | J156: Install | K156: =K155 -> 1 | L156: 0 | M156: 0 | P156: =(1-MAX($N$138,$N$141,$N$144,$N$147))*L156 ->  | Q156: =(1-MAX($O$138,$O$141,$O$144,$O$147))*M156 -> 
C157: =C$136 -> Ref_Code | D157: =D$136 -> Water Heating | E157: =E$136 -> Vintage | F157: =F$136 -> Climate Zone | G157: therm Savings | H157: =IF($B155<>"No",DGET(tDHW_Msr,H$135&$G157,$C154:$F155),0) -> 0 | I157: =IF($B155<>"No",DGET(tDHW_Msr,I$135&$G157,$C154:$F155),0) -> 0 | J157: Install | K157: =K155 -> 1 | L157: 0 | M157: 0 | P157: =(1-MAX($N$139,$N$142,$N$145,$N$148))*L157 ->  | Q157: =(1-MAX($O$139,$O$142,$O$145,$O$148))*M157 -> 
A158: M18 | B158: =CHOOSE(COUNTIFS($E$183:$E$207,$A158,$G$183:$G$207,"Yes")+1,"No","Yes") -> No | C158: ="="&A158 -> =M18 | D158: =Inp_wtrht -> 0 | F158: =Inp_CZ -> 0 | G158: kWh Savings | H158: =IF($B158<>"No",DGET(tDHW_Msr,H$135&$G158,$C157:$F158),0) -> 0 | I158: =IF($B158<>"No",DGET(tDHW_Msr,I$135&$G158,$C157:$F158),0) -> 0 | J158: Install | K158: =IF(ISBLANK($W$93),1,$W$93) -> 1 | L158: 0 | M158: 0 | P158: =(1-MAX($N$137,$N$140,$N$143,$N$146))*L158 ->  | Q158: =(1-MAX($O$137,$O$140,$O$143,$O$146))*M158 -> 
C159: =C93 -> Auto Diverting Tub Spout with Thermostatic Shut-Off Valve | G159: kW Savings | H159: =IF($B158<>"No",DGET(tDHW_Msr,H$135&$G159,$C157:$F158),0) -> 0 | I159: =IF($B158<>"No",DGET(tDHW_Msr,I$135&$G159,$C157:$F158),0) -> 0 | J159: Install | K159: =K158 -> 1 | L159: 0 | M159: 0 | P159: =(1-MAX($N$138,$N$141,$N$144,$N$147))*L159 ->  | Q159: =(1-MAX($O$138,$O$141,$O$144,$O$147))*M159 -> 
G160: therm Savings | H160: =IF($B158<>"No",DGET(tDHW_Msr,H$135&$G160,$C157:$F158),0) -> 0 | I160: =IF($B158<>"No",DGET(tDHW_Msr,I$135&$G160,$C157:$F158),0) -> 0 | J160: Install | K160: =K158 -> 1 | L160: 0 | M160: 0 | P160: =(1-MAX($N$139,$N$142,$N$145,$N$148))*L160 ->  | Q160: =(1-MAX($O$139,$O$142,$O$145,$O$148))*M160 -> 
O161: Total DHW kWh Savings | P161: =SUM(L137,L140,L143,L146)+SUM(P149,P152,P155,P158) -> 
O162: Total DHW kW Savings
O163: Total DHW therm Savings
A165: Total Savings Calculation
D166: 1st Baseline | F166: Savings | G166: as kBtu | H166: % Saved | I166: kW / kWh
E167: Energy (kWh) | F167: =G121-G127+P161 ->  | G167: =F167*3.412 ->  | H167: =F167/G121 -> 
E168: Demand (kW) | F168: =G122-G128+P162 ->  | H168: =F168/G122 ->  | I168: =IFERROR(F168/F167,"N/A") -> N/A
E169: Energy (therms) | F169: =G123-G129+P163 ->  | G169: =F169*100 ->  | H169: =F169/G123 -> 
E170: Total | G170: =SUM(G167:G169) ->  | H170: =G170/(H123+H121) -> 
D172: 2nd Baseline | F172: Savings | G172: as kBtu | H172: % Saved | I172: kW / kWh
E173: Energy (kWh) | F173: =G124-G127+Q161 ->  | G173: =F173*3.412 ->  | H173: =F173/G124 -> 
E174: Demand (kW) | F174: =G125-G128+Q162 ->  | H174: =F174/G125 ->  | I174: =IFERROR(F174/F173,"N/A") -> N/A
E175: Energy (therms) | F175: =G126-G129+Q163 ->  | G175: =F175*100 ->  | H175: =F175/G126 -> 
E176: Total | G176: =SUM(G173:G175) ->  | H176: =G176/(H126+H124) -> 
A178: Cost Lookup and Estimate EUL and IR
G180: Vintage | H180: Climate Zone | I180: Short Home Type
G181: =Inp_vint -> 0 | H181: =Inp_CZ -> 0 | I181: =A61&"-"&A57&"-"&A58&"-"&A59&"-"&A60 -> 0FL-SOG-nAC-GF-0WH
A182: ID | B182: Msr Code | C182: Measure Name for Building Measure Description (once applied) | D182: General Msr ID | E182: Msr ID | F182: Measure Code | G182: Yes/No | H182: Factor | I182: Gross Cost | J182: Incr. Cost | K182: If Code=Msr, 0, 1 | L182: EUL | M182: IR | N182: Points/Weight | O182: If Base<>Code, 1, 0 | P182: Prefix | Q182: Suffix | X182: Base Description | Y182: Code Description
A183: =IF(G183="Yes",D183,"") ->  | B183: =IF(G183="Yes",F183&", ","") ->  | C183: =IF(G183="Yes",C69&", ","") ->  | D183: M1 | E183: M1.1 | F183: L15 | G183: =IF(E183="","",IF(COUNTIFS($B$69:$B$93,$E183,$D$69:$D$93,"Yes",$A$69:$A$93,"<>N/A"),"Yes","No")) -> No | H183: 1 | I183: =IF($G183<>"No",DGET(tCosts,$E183&"G",$G$180:$H$181)*$H183,0) -> 0 | J183: =IF($G183<>"No",DGET(tCosts,$E183&"I",$G$180:$H$181)*$H183,0) -> 0 | K183: =IFERROR(IF(G183="Yes",IF(INDEX($J$105:$J$115,MATCH(D183,$B$105:$B$115,0),1)=1,0,1),1),1) -> 1 | L183: =VLOOKUP($E183,tEUL_IR,2,FALSE) -> 11 | M183: =IF(E183="","",VLOOKUP($E183,tEUL_IR,5,FALSE)) -> 1 | N183: =IF(E183="","",VLOOKUP($E183,tEUL_IR,8,FALSE)) -> 16 | O183: =IF(G183="","",IF(G183="Yes",IF(F69<>E69,1,0),0)) -> 0 | Q183: ACHn, | X183: =IF($G183="Yes",$P183&$E$105&Q183,"") ->  | Y183: =IF(AND($G183="Yes"),$P183&$G$105&$Q183,"") -> 
D184: M1 | E184: M1.2 | F184: L30 | G184: No | H184: 1 | I184: =IF($G184<>"No",DGET(tCosts,$E184&"G",$G$180:$H$181)*$H184,0) -> 0 | J184: =IF($G184<>"No",DGET(tCosts,$E184&"I",$G$180:$H$181)*$H184,0) -> 0 | K184: =IFERROR(IF(G184="Yes",IF(INDEX($J$105:$J$115,MATCH(D184,$B$105:$B$115,0),1)=1,0,1),1),1) -> 1 | L184: =VLOOKUP($E184,tEUL_IR,2,FALSE) -> 11 | M184: 1 | N184: 32 | O184: =IF(G184="","",IF(G184="Yes",IF(F70<>E70,1,0),0)) -> 0 | Q184: =Q183 -> ACHn, | X184: =IF($G184="Yes",$P184&$E$105&Q184,"") ->  | Y184: =IF(AND($G184="Yes"),$P184&$G$105&$Q184,"") -> 
D185: M2 | E185: M2 | F185: iD8 | G185: No | H185: 1 | I185: =IF($G185<>"No",DGET(tCosts,$E185&"G",$G$180:$H$181)*$H185,0) -> 0 | J185: =IF($G185<>"No",DGET(tCosts,$E185&"I",$G$180:$H$181)*$H185,0) -> 0 | K185: =IFERROR(IF(G185="Yes",IF(INDEX($J$105:$J$115,MATCH(D185,$B$105:$B$115,0),1)=1,0,1),1),1) -> 1 | L185: =VLOOKUP($E185,tEUL_IR,2,FALSE) -> 20 | M185: 0.865 | N185: 20 | O185: 0 | P185: Duct R | Q185: , | X185: =IF($G185="Yes",$P185&E71&$Q185,"") ->  | Y185: =IF(AND($G185="Yes"),$P185&F71&$Q185,"") -> 
D186: M3 | E186: M3.1a | F186: DL10 | G186: No | H186: 1 | I186: =IF($G186<>"No",DGET(tCosts,$E186&"G",$G$180:$H$181)*$H186,0) -> 0 | J186: =IF($G186<>"No",DGET(tCosts,$E186&"I",$G$180:$H$181)*$H186,0) -> 0 | K186: =IFERROR(IF(G186="Yes",IF(INDEX($J$105:$J$115,MATCH(D186,$B$105:$B$115,0),1)=1,0,1),1),1) -> 1 | L186: =VLOOKUP($E186,tEUL_IR,2,FALSE) -> 18 | M186: 0.463 | N186: 40 | O186: 0 | Q186: % Total duct leakage, | X186: =IF($G186="Yes",$P186&(E72*100)&$Q186,"") ->  | Y186: =IF(AND($G186="Yes"),$P186&(F72*100)&$Q186,"") -> 
D188: M3 | E188: M3.2a | F188: DL5 | G188: No | H188: 1 | I188: =IF($G188<>"No",DGET(tCosts,$E188&"G",$G$180:$H$181)*$H188,0) -> 0 | J188: =IF($G188<>"No",DGET(tCosts,$E188&"I",$G$180:$H$181)*$H188,0) -> 0 | K188: =IFERROR(IF(G188="Yes",IF(INDEX($J$105:$J$115,MATCH(D188,$B$105:$B$115,0),1)=1,0,1),1),1) -> 1 | L188: =VLOOKUP($E188,tEUL_IR,2,FALSE) -> 18 | M188: 0.463 | N188: 47 | O188: 0 | Q188: =Q186 -> % Total duct leakage, | X188: =IF($G188="Yes",$P188&(E74*100)&$Q188,"") ->  | Y188: =IF(AND($G188="Yes"),$P188&(F74*100)&$Q188,"") -> 
D190: M4 | E190: M4.1 | F190: =IF(G190="No","iA30/iA38","iA"&G76) -> iA30/iA38 | G190: No | H190: 1 | I190: =IF($G190<>"No",DGET(tCosts,$E190&"G",$G$180:$H$181)*$H190,0) -> 0 | J190: =IF($G190<>"No",DGET(tCosts,$E190&"I",$G$180:$H$181)*$H190,0) -> 0 | K190: =IFERROR(IF(G190="Yes",IF(INDEX($J$105:$J$115,MATCH(D190,$B$105:$B$115,0),1)=1,0,1),1),1) -> 1 | L190: =VLOOKUP($E190,tEUL_IR,2,FALSE) -> 20 | M190: 0.782 | N190: 8 | O190: 0 | P190: Attic R | Q190: , | X190: =IF($G190="Yes",$P190&E76&$Q190,"") ->  | Y190: =IF(AND($G190="Yes"),$P190&F76&$Q190,"") -> 
D191: M4 | E191: M4.2 | F191: iA44 | G191: No | H191: 1 | I191: =IF($G191<>"No",DGET(tCosts,$E191&"G",$G$180:$H$181)*$H191,0) -> 0 | J191: =IF($G191<>"No",DGET(tCosts,$E191&"I",$G$180:$H$181)*$H191,0) -> 0 | K191: =IFERROR(IF(G191="Yes",IF(INDEX($J$105:$J$115,MATCH(D191,$B$105:$B$115,0),1)=1,0,1),1),1) -> 1 | L191: =VLOOKUP($E191,tEUL_IR,2,FALSE) -> 20 | M191: 0.782 | N191: 12 | O191: 0 | P191: Attic R | Q191: , | Y191: =IF(AND($G191="Yes"),$P191&F77&$Q191,"") -> 
D192: M5 | E192: M5 | F192: iF19 | G192: No | H192: 1 | I192: =IF($G192<>"No",DGET(tCosts,$E192&"G",$G$180:$H$181)*$H192,0) -> 0 | J192: =IF($G192<>"No",DGET(tCosts,$E192&"I",$G$180:$H$181)*$H192,0) -> 0 | K192: =IFERROR(IF(G192="Yes",IF(INDEX($J$105:$J$115,MATCH(D192,$B$105:$B$115,0),1)=1,0,1),1),1) -> 1 | L192: =VLOOKUP($E192,tEUL_IR,2,FALSE) -> 20 | M192: 0.865 | N192: 35 | O192: 0 | P192: Floor R | Q192: , | Y192: =IF(AND($G192="Yes"),$P192&F78&$Q192,"") -> 
D193: M6 | E193: M6 | F193: iW13 | G193: No | H193: 1 | I193: =IF($G193<>"No",DGET(tCosts,$E193&"G",$G$180:$H$181)*$H193,0) -> 0 | J193: =IF($G193<>"No",DGET(tCosts,$E193&"I",$G$180:$H$181)*$H193,0) -> 0 | K193: =IFERROR(IF(G193="Yes",IF(INDEX($J$105:$J$115,MATCH(D193,$B$105:$B$115,0),1)=1,0,1),1),1) -> 1 | L193: =VLOOKUP($E193,tEUL_IR,2,FALSE) -> 20 | M193: 0.946 | N193: 76 | O193: 0 | P193: Wall R | Q193: , | Y193: =IF(AND($G193="Yes"),$P193&F79&$Q193,"") -> 
D194: M7a | E194: M7a | F194: hPW | G194: No | H194: 1 | I194: =IF($G194<>"No",DGET(tCosts,$E194&"G",$G$180:$H$181)*$H194,0) -> 0 | J194: =IF($G194<>"No",DGET(tCosts,$E194&"I",$G$180:$H$181)*$H194,0) -> 0 | K194: =IFERROR(IF(G194="Yes",IF(INDEX($J$105:$J$115,MATCH(D194,$B$105:$B$115,0),1)=1,0,1),1),1) -> 1 | L194: =VLOOKUP($E194,tEUL_IR,2,FALSE) -> 20 | M194: 1 | N194: 89 | O194: 0 | P194: Window U | X194: =IF($G194="Yes",$P194&E80&$Q194&$P195&E81&Q195,"") ->  | Y194: =IF($G194="Yes",$P194&F80&$Q194&$P195&F81&Q195,"") -> 
P195: SHGC | Q195: , | Y195: =IF(AND($G195="Yes"),$P195&F81&$Q195,"") -> 
D196: M8 | E196: M8.2 | F196: eAC15 | G196: No | H196: 1 | I196: =IF($G196<>"No",DGET(tCosts,$E196&"G",$G$180:$H$181)*$H196,0) -> 0 | J196: =IF($G196<>"No",DGET(tCosts,$E196&"I",$G$180:$H$181)*$H196,0) -> 0 | K196: =IFERROR(IF(G196="Yes",IF(INDEX($J$105:$J$115,MATCH(D196,$B$105:$B$115,0),1)=1,0,1),1),1) -> 1 | L196: =VLOOKUP($E196,tEUL_IR,2,FALSE) -> 15 | M196: 1 | N196: 26 | O196: 0 | P196: AC SEER | Q196: ,
D197: M9 | E197: M9.1 | F197: eF92 | G197: No | H197: 1 | I197: 0 | J197: 0 | K197: 1 | L197: 20 | M197: 1 | N197: 56 | O197: 0 | P197: Furnace AFUE | Q197: %,
D198: M9 | E198: M9.2 | F198: eF95 | G198: No | H198: 1 | I198: 0 | J198: 0 | K198: 1 | L198: 20 | M198: 1 | N198: 69 | O198: 0 | P198: Furnace AFUE | Q198: %,
D199: M9 | E199: M9.3 | F199: wF70 | G199: No | H199: 1 | I199: 0 | J199: 0 | K199: 1 | L199: 20 | M199: 1 | N199: 34 | O199: 0 | P199: Wall Furnace AFUE | Q199: %,
D200: M11 | E200: M11 | F200: eH200 | G200: No | H200: 1 | I200: 0 | J200: 0 | K200: 1 | L200: 13 | M200: 1 | N200: 17 | O200: 0 | P200: Electric Water Heater | Q200: ,
D201: M12 | E201: M12 | F201: H67 | G201: No | H201: 1 | I201: 0 | J201: 0 | K201: 1 | L201: 11 | M201: 1 | N201: 54 | O201: 0 | P201: Gas Water Heater | Q201: ,
D202: M13 | E202: M13 | F202: H70 | G202: No | H202: 1 | I202: 0 | J202: 0 | K202: 1 | L202: 11 | M202: 1 | N202: 21 | O202: 0 | P202: Gas Water Heater | Q202: ,
D203: M14 | E203: M14 | F203: tH82 | G203: No | H203: 1 | I203: 0 | J203: 0 | K203: 1 | L203: 20 | M203: 1 | N203: 90 | O203: 0 | P203: Gas Water Heater | Q203: ,
D204: M15 | E204: M15 | F204: WRAP | G204: No | H204: =K149 -> 1 | I204: 0 | J204: 0 | K204: 1 | L204: 11 | M204: 0.865 | N204: 7 | O204: 0 | P204: No Pipe Wrap, | X204: =IF($G204="Yes",$P204,"") ->  | Y204: =X204 -> 
D205: M16 | E205: M16 | F205: STV | G205: No | H205: =K152 -> 1 | I205: 0 | J205: 0 | K205: 1 | L205: 10 | M205: 0.737 | N205: 3 | O205: 0 | P205: No Shower TSV, | X205: =IF(G206="Yes","",IF($G205="Yes",$P205,"")) ->  | Y205: =X205 -> 
D206: M17 | E206: M17 | F206: STFLF | G206: No | H206: =K155 -> 1 | I206: 0 | J206: 0 | K206: 1 | L206: 10 | M206: 0.737 | N206: 35 | O206: 0 | P206: No Shower TSV and No Low-Flow Showerhead, | X206: =IF($G206="Yes",$P206,"") ->  | Y206: =X206 -> 
B207: =IF(G207="Yes",F207&", ","") ->  | D207: M18 | E207: M18 | F207: ADTV | G207: No | H207: =K158 -> 1 | I207: 0 | J207: 0 | K207: 1 | L207: 10 | M207: 1 | N207: 3 | O207: 0 | P207: No Auto-Diverting Tub Spout with TSV, | Y207: =X207 -> 
G208: Total Costs: | I208: =SUM(I183:I207) -> 0 | J208: =SUMPRODUCT(J183:J207,K183:K207) -> 0 | M208: Sum Active Measures | N208: =SUMIF($G$183:$G$207,"Yes",$N$183:$N$207) -> 0 | R208: =IF($G208="Yes",$G$105,"") ->  | X208: =_xlfn.CONCAT(X204:X207) ->  | Y208: =X208 -> 
C209: Full Package Description | D209: Full Package Code | K209: Weighted Total: | L209: =ROUND(SUMPRODUCT($N$183:$N$207,$L$183:$L$207,SIGN($G$183:$G$207="Yes"))/$N$208,1) ->  | M209: =ROUND(SUMPRODUCT($N$183:$N$207,$M$183:$M$207,SIGN($G$183:$G$207="Yes"))/$N$208,1) -> 
B210: Measure | C210: =_xlfn.CONCAT(C183:C207) ->  | D210: =_xlfn.CONCAT(B183:B207) -> 
B211: Code | C211: =C214&" ("&_xlfn.CONCAT(Y183:Y207)&")" -> 
B212: Baseline | C212: =C214&" ("&_xlfn.CONCAT(X183:X207)&")" -> 
B214: Home Type | C214: ="Existing "&Inp_stor&"-story home with "&IF(Inp_flr="Crawlspace","a "&LOWER(Inp_flr)&", "," floor construction, ")&Inp_AC&", gas "&LOWER(Inp_htg)&", and "&LOWER(Inp_wtrht)&" DHW" -> Existing 0-story home with floor construction, 0, gas 0, and 0 DHW
B215: Home Code | C215: =A61&"-"&A57&"-"&A58&"-"&A59&"-"&A60 -> 0FL-SOG-nAC-GF-0WH
C216: 1 This is a base measure.
C217: 2 Choose no more than one tier of the two tier choices for duct leakage, attic insulation, central furnace efficiency, and DHW (e.g. either 5% or 10% duct leakage but not both).
C218: 3 This measure is an optional add-on measure for energy savings that does not count towards the three measure minimum requirement. It must not be installed on a shower served by a tankless water heater.
C219: 4 For detailed specifications, please reference the current Contractor Manual and the Technical Specifications Sheet.
C220: 5 Incentive maximum $3,000 or 50% of final project cost
C221: For more information on Home Upgrade requirements, please visit the program website.
C223: Important note: Completion of this calculator does not guarantee that a project meets minimum requirements. Final savings and incentive amounts will be provided after all installation work is complete and the SoCalREN Home Upgrade program has completed its final review and issued an approval notification to the Participating Contractor and Service Account Holder. All estimated and final savings and incentive amounts are subject to program participation, utility provider and eligibility rules. Check with your SoCalREN Home Upgrade Account Manager for details.
C224: Climate Zone information can be found here.
... 1 more rows

Sheet Report Output
A1: CPUC Work Paper Calculator Version: | B1: Measures Selected | C1: Measures Applied | D1: Climate Zone | E1: Vintage | F1: Floor Construction | G1: Air Conditioning | H1: Heating | I1: Water Heating | J1: Number of Stories | K1: Conditioned Floor Area | L1: Window area:Floor Area | M1: MeasureDescription | N1: UnitkW 1stBaseline | O1: UnitkWh 1stBaseline | P1: UnitTherm 1stBaseline | Q1: UnitkW 2ndBaseline | R1: UnitkWh 2ndBaseline | S1: UnitTherm 2ndBaseline | T1: EUL | U1: IR | V1: GrossCost | W1: Incremental Cost | X1: Home Type Code | Y1: Home Type Description | Z1: Measure Full Description | AA1: Code Full Description | AB1: Baseline Full Description
A2: ="v"&Log!$D$17 -> v7 | B2: =COUNTIFS('Home Upgrade Calculator'!$D$69:$D$93,"Yes") -> 0 | C2: ='Home Upgrade Calculator'!L54 -> 0 | D2: =Inp_CZ -> 0 | E2: =Inp_vint -> 0 | F2: =Inp_flr -> 0 | G2: =Inp_AC -> 0 | H2: =Inp_htg -> 0 | I2: =Inp_wtrht -> 0 | J2: =Inp_stor -> 0 | K2: =bvarHC1 ->  | L2: =bvarHC2/100 ->  | M2: ='Home Upgrade Calculator'!D210 ->  | N2: =exBSavekW ->  | O2: =exBSavekWh ->  | P2: =exBSavetherm ->  | Q2: =cBSavekW ->  | R2: =cBSavekWh ->  | S2: =cbSavetherm ->  | T2: =outputEUL -> 0 | U2: =outputIR -> 0 | V2: =gCost -> 0 | W2: =iCost -> 0 | X2: ='Home Upgrade Calculator'!$C$215 -> 0FL-SOG-nAC-GF-0WH | Y2: ='Home Upgrade Calculator'!C214 -> Existing 0-story home with floor construction, 0, gas 0, and 0 DHW | Z2: ='Home Upgrade Calculator'!C210 ->  | AA2: ='Home Upgrade Calculator'!C211 ->  | AB2: ='Home Upgrade Calculator'!C212 -> 

Sheet Log
A1: Date | B1: Author | C1: Description | D1: Version | E1: Known Issues
A2: 2014-01-31 | B2: J. Russell | C2: First functional Phase 2 work paper calculator | D2: D6 | E2: -Regression model database only contains AC-Furnace-Crawlspaces models; -DHW storage tank measures have not been updated to DEER 2013. -Cost data incomplete; -IR & EUL calculations incomplete
A3: 2014-02-08 | B3: J. Russell | C3: -DWH storage tank measures updated to DEER 2013 and interactive corrections added -Costs completed | D3: D7
A4: 2014-02-09 | B4: J. Russell | C4: -EUL and IR completed | D4: D8 | E4: No error checking of user inputs
A5: 2014-02-13 | B5: J. Russell | C5: -Minor bugs corrected and some input checks added | D5: 1
A6: 2014-02-27 | B6: J. Russell | C6: -Bug fixes: changed unit type on AFUE inputs; corrected EUL weighting denominator | D6: 1
A7: 2014-04-24 | B7: M. Hinkle | C7: -Bug fixes, see Bug log. Added BL15 | D7: 2
A8: 2014-05-07 | B8: J. Russell | C8: -Updated HPW cost to show zero incremental cost -Corrected DHW database references | D8: 2
A9: 2014-05-22 | B9: M. Hinkle | C9: ="-New regressions equations for DL6" -> -New regressions equations for DL6 | D9: 3
A10: 2014-05-28 | B10: M.Hinkle | C10: -Final Updates for DL6 measure, -No fuel switching (M11, M12, M13), -Update EUL and IR table, -Fixed issue with costs being calculated for all selected measures when not applicable -Included EF62 WH in savings summation | D10: 3
A11: 2015-01-15 | B11: M.Hinkle | C11: -Updated Code baseline energy savings in Efficient Air Condition Measures from SEER 13 to SEER 14, aligning with federal standards -Updated Code baseline energy savings in Efficient Gas Furnace Measures from AFUE 78 to AFUE 80, aligning with federal standards -Modified calculated incremental cost to become zero when the code baseline is the same as the measure baseline, even when overriding the default value | D11: 4
A12: 2015-01-21 | B12: M.Hinkle | C12: -Updated Costs for updated AC, Furnace, and DHW measures from Itron WO017 Measure Cost Study -Updated DHW measure savings from DEER 2015, aligning with federal standards | D12: 4
A13: 2015-01-27 | B13: M.Hinkle | C13: -Removed "Efficient Air Conditioner - SEER14" measure | D13: 4
A14: 2017-06-22 | B14: M.Hinkle | C14: -Duct Leakage Levels update - In Defaults, change M3.2aM column to 5%, change M3.1aC column to equal M3.1aB column, change M3.2aC column to equal M3.2aB column. - Modified EUCA Calculator page DHW Measure Savings savings lookups to use Ref_Code instead of Measure Name -Added new TSV (M16, M17) measure savings to tDHW_Msr table, retired old measure savings by adding with "-old" at the end of the measure ID. Modified DGET formula to avoid partial matches because of this. -Made the multiple named ranges and modified all formulas referencing the explicit ranges: Defaults table (tDefaults), DHW_Msr main measure table (tDHW_Msr), DHW_Msr main baseline table (tDHW_Bsl), EUL_and_IRs tabl (tEUL_IR), Costs table (tCosts) -Added new EUL/IR weighting methodology to to EULs_and_IRs tab table and EUCA Calculator tab -Updated M12, M13, M14 measure savings to tDHW_Msr table, retired old measure savings by adding with "-old" at the end of the measure ID. Also required modifications to Default Baseline and Code efficiencies. | D14: 5
A15: 2017-07-18 | B15: M.Hinkle | C15: -Moved location of Results output -Added "Measure Codes" from workpaper to concatenate when applied (similar to Measure Description) and added to Report Output tab. -Created separate Report Output | D15: 5 | E15: - No limitation on water heating type for the following non-regression measures: Hot Water Pipe Wrap, Themostatic Shut-off Valve (with or without Low Flow Shower Head), and Auto Diverting Tub Spout with Thermostatic Shut-Off Valve
A16: 2017-10-12 | B16: M.Hinkle | C16: -"Default Value References" tab - Updated Existing Baseline for SEER15 measure from SEER 10 to SEER 11.4 to align with DEER2017. No change to cost, IR, or EUL. -"Default Value References" tab - corrected Windows default measure U-value from 0.32 to 0.3 - Doesn't cause savings to change. -"Home Upgrade Calculator" tab - included controls so that the TSV measures (M16, M17, M18) are not applicable with the Tankless Hot Water Heater -"Home Upgrade Calculator" tab - included override functionality for TSV measures (M16, M17, M18) to allow up to 2 installations. Applied multiplier to savings and cost. -"Costs" tab - Updated to "Home Upgrade Costs 20171017.xlsm" version which corrected REA incremental costs (non-TSV) that had not been set equal to the full measure cost during Phase II -"DHW_Msr" tab - Updated M16 and M17 to READI savings, savings embedded in the workpaper were incorrect. Savings now depend on water heating type. | D16: 6 | E16: - No limitation on water heating type for the following non-regression measures: Hot Water Pipe Wrap, Themostatic Shut-off Valve (with or without Low Flow Shower Head), and Auto Diverting Tub Spout with Thermostatic Shut-Off Valve -DEER2017 update indicates additional changes to modeling methodology for the residential AC measures, including SEER15, that cannot be implemented without re-processing the entire analysis. The impact should be examined, understanding that the prototypes used for this analysis were independently calibrated.
A17: 2017-10-27 | B17: M.Hinkle | C17: -"Home Upgrade Calculator" tab - removed default value override functionality from main calculator for all measures as requested by stakeholders | D17: 7 | E17: - No limitation on water heating type for the following non-regression measures: Hot Water Pipe Wrap, Themostatic Shut-off Valve (with or without Low Flow Shower Head), and Auto Diverting Tub Spout with Thermostatic Shut-Off Valve -DEER2017 update indicates additional changes to modeling methodology for the residential AC measures, including SEER15, that cannot be implemented without re-processing the entire analysis. The impact should be examined, understanding that the prototypes used for this analysis were independently calibrated.
A18: 2017-11-03 | B18: M.Hinkle | C18: -"Costs" tab - updated costs according to workpaper updates | D18: 7 | E18: - No limitation on water heating type for the following non-regression measures: Hot Water Pipe Wrap, Themostatic Shut-off Valve (with or without Low Flow Shower Head), and Auto Diverting Tub Spout with Thermostatic Shut-Off Valve -DEER2017 update indicates additional changes to modeling methodology for the residential AC measures, including SEER15, that cannot be implemented without re-processing the entire analysis. The impact should be examined, understanding that the prototypes used for this analysis were independently calibrated.
A19: 2018-01-26 | B19: J. Russell | C19: -Corrected formula reference in cell P121 of Home Upgrade Calculator enabling 1st baseline therm savings for auto-diverting tub spout with thermostatic valve -Corrected window floor area ratio for various vintages | D19: 7 | E19: - No limitation on water heating type for the following non-regression measures: Hot Water Pipe Wrap, Themostatic Shut-off Valve (with or without Low Flow Shower Head), and Auto Diverting Tub Spout with Thermostatic Shut-Off Valve -DEER2017 update indicates additional changes to modeling methodology for the residential AC measures, including SEER15, that cannot be implemented without re-processing the entire analysis. The impact should be examined, understanding that the prototypes used for this analysis were independently calibrated. - The default table’s calculation for Leakage to Outside air uses 0.75 for 1-story and 0.65 for 2-stories, when the 2-story should be 0.67. The override calculations use 0.67 but the default table should be modified to display correctly.

Sheet Defaults (hidden)
H1: 1st Baseline (existing condition for program participants) | AJ1: 2nd Baseline (T24-2013, where applicable) | BJ1: Measure
G2: LIVE FORMULAS. Values are pasted below: | J2: =INDEX('Default Value References'!$G$4:$G$6,MATCH($G2,'Default Value References'!$F$4:$F$6,0),1) ->  | K2: =J2 ->  | L2: =INDEX('Default Value References'!$G$12:$G$14,MATCH($G2,'Default Value References'!$F$12:$F$14,0),1) ->  | M2: =INDEX('Default Value References'!$G$17:$G$19,MATCH($G2,'Default Value References'!$F$17:$F$19,0),1) ->  | N2: =M2*IF($F2=1,0.75,0.65) ->  | O2: =M2 ->  | P2: =O2*IF($F2=1,0.75,0.65) ->  | Q2: =SUMIFS('Default Value References'!$H$32:$H$49,'Default Value References'!$G$32:$G$49,$E2,'Default Value References'!$F$32:$F$49,$G2) -> 0 | R2: =Q2 -> 0 | S2: =INDEX('Default Value References'!$G$53:$G$55,MATCH($G2,'Default Value References'!$F$53:$F$55,0),1) ->  | T2: =SUMIFS('Default Value References'!$H$65:$H$80,'Default Value References'!$G$65:$G$80,$E2,'Default Value References'!$F$65:$F$80,$G2) -> 0 | U2: =SUMIFS('Default Value References'!$H$86:$H$103,'Default Value References'!$G$86:$G$103,$E2,'Default Value References'!$F$86:$F$103,$G2) -> 0 | V2: =SUMIFS('Default Value References'!$I$86:$I$103,'Default Value References'!$G$86:$G$103,$E2,'Default Value References'!$F$86:$F$103,$G2) -> 0 | W2: ='Default Value References'!$F$106 -> 11.4 | X2: =W2 -> 11.4 | Y2: ='Default Value References'!$F$110 -> 80 | Z2: =Y2 -> 80 | AA2: ='Default Value References'!$F$114 -> 62 | AB2: ='Default Value References'!$F$118 -> EF 86 | AC2: ='Default Value References'!$F$119 -> EF 59 | AD2: ='Default Value References'!$F$120 -> EF 59 | AE2: ='Default Value References'!$F$121 -> EF 52 | AF2: ='Default Value References'!$F$122 -> None | AG2: ='Default Value References'!$F$123 -> None | AH2: ='Default Value References'!$F$124 -> None | AI2: ='Default Value References'!$F$125 -> None | AJ2: =$J2 ->  | AK2: =AJ2 ->  | AL2: =L2 ->  | AM2: =$M2 ->  | AN2: =$N2 ->  | AO2: =$O2 ->  | AP2: =$P2 ->  | AQ2: =Q2 -> 0 | AR2: =AQ2 -> 0 | AS2: =S2 ->  | AT2: =T2 -> 0 | AU2: =U2 -> 0 | AV2: =V2 -> 0 | AW2: =#REF! ->  | AX2: ='Default Value References'!$G$106 -> 14 | AY2: ='Default Value References'!$G$110 -> 80 | AZ2: =AY2 -> 80 | BA2: ='Default Value References'!$G$114 -> 66 | BB2: ='Default Value References'!$G$118 -> EF 95 | BC2: ='Default Value References'!$G$119 -> EF 60 | BD2: ='Default Value References'!$G$120 -> EF 60 | BE2: ='Default Value References'!$G$121 -> EF 74 | BF2: ='Default Value References'!$G$122 -> None | BG2: ='Default Value References'!$G$123 -> None | BH2: ='Default Value References'!$G$124 -> None | BI2: ='Default Value References'!$G$125 -> None | BJ2: =INDEX('Default Value References'!$I$4:$I$6,MATCH($G2,'Default Value References'!$F$4:$F$6,0),1) ->  | BK2: =INDEX('Default Value References'!$I$7:$I$9,MATCH($G2,'Default Value References'!$F$7:$F$9,0),1) ->  | BL2: ='Default Value References'!$I$12 -> 8 | BM2: ='Default Value References'!$I$17 -> 0.1 | BN2: =BM2*IF($F2=1,0.75,0.65) -> 0.065 | BO2: ='Default Value References'!$I$20 -> 0.05 | BP2: =BO2*IF($F2=1,0.75,0.65) -> 0.0325 | BQ2: =INDEX('Default Value References'!$K$32:$K$47,MATCH($D2,'Default Value References'!$J$32:$J$47,0),1) ->  | BR2: ='Default Value References'!$K$50 -> 44 | BS2: ='Default Value References'!$I$53 -> 19 | BT2: ='Default Value References'!$J$65 -> 13 | BU2: ='Default Value References'!$L$86 -> 0.3 | BV2: ='Default Value References'!$M$86 -> 0.25 | BX2: ='Default Value References'!$H$106 -> 15 | BY2: ='Default Value References'!$H$110 -> 92 | BZ2: ='Default Value References'!$H$111 -> 95 | CA2: ='Default Value References'!$H$114 -> 70 | CB2: ='Default Value References'!$H$118 -> EF 200 | CC2: ='Default Value References'!$H$119 -> EF 67 | CD2: ='Default Value References'!$H$120 -> EF 70 | CE2: ='Default Value References'!$H$121 -> EF 82 | CF2: ='Default Value References'!$H$122 -> Wrap 5 ft | CG2: ='Default Value References'!$H$123 -> Valve | CH2: ='Default Value References'!$H$124 -> Valve & LF | CI2: ='Default Value References'!$H$125 -> Valve & TS
H3: Floor Area | I3: Window:Floor Ratio | J3: Reduce Building Leakage | K3: Reduce Building Leakage | L3: Insulate Duct | M3: Reduce Duct Leakage | O3: Reduce Duct Leakage | Q3: Insulate Attic | S3: Insulate Floor | T3: Insulate Wall | U3: High Performance Windows | W3: Efficient Air Conditioner | Y3: Efficient Gas Furnace | AA3: Efficient Wall Furnace | AB3: Efficient Electric Water Heater | AC3: Efficient Gas Water Heater | AD3: Efficient Gas Water Heater (EF 70) | AE3: Tankless Gas Water Heater | AF3: Hot Water Pipe Wrap | AG3: Thermostatic Shut-Off Valve | AH3: Thermostatic Shut-Off Valve & Low-Flow | AI3: Auto Diverting Tub Spout with Thermostatic Shut-Off Valve | AJ3: =J3 -> Reduce Building Leakage | AK3: =K3 -> Reduce Building Leakage | AL3: =L3 -> Insulate Duct | AM3: =M3 -> Reduce Duct Leakage | AO3: =O3 -> Reduce Duct Leakage | AQ3: =Q3 -> Insulate Attic | AS3: =S3 -> Insulate Floor | AT3: =T3 -> Insulate Wall | AU3: =U3 -> High Performance Windows | AW3: =W3 -> Efficient Air Conditioner | AY3: =Y3 -> Efficient Gas Furnace | BA3: =AA3 -> Efficient Wall Furnace | BB3: Efficient Electric Water Heater | BC3: Efficient Gas Water Heater | BD3: Efficient Gas Water Heater (EF 70) | BE3: Tankless Gas Water Heater | BF3: Hot Water Pipe Wrap | BG3: Thermostatic Shut-Off Valve | BH3: Thermostatic Shut-Off Valve & Low-Flow | BI3: Auto Diverting Tub Spout with Thermostatic Shut-Off Valve | BJ3: =J3 -> Reduce Building Leakage | BK3: =J3 -> Reduce Building Leakage | BL3: =L3 -> Insulate Duct | BM3: =M3 -> Reduce Duct Leakage | BO3: =O3 -> Reduce Duct Leakage | BQ3: =Q3 -> Insulate Attic | BS3: =S3 -> Insulate Floor | BT3: =T3 -> Insulate Wall | BU3: =U3 -> High Performance Windows | BW3: =W3 -> Efficient Air Conditioner | BY3: =Y3 -> Efficient Gas Furnace | CA3: =AA3 -> Efficient Wall Furnace | CB3: Efficient Electric Water Heater | CC3: Efficient Gas Water Heater | CD3: Efficient Gas Water Heater (EF 70) | CE3: Tankless Gas Water Heater | CF3: Hot Water Pipe Wrap | CG3: Thermostatic Shut-Off Valve | CH3: Thermostatic Shut-Off Valve & Low-Flow | CI3: Auto Diverting Tub Spout with Thermostatic Shut-Off Valve
A4: Cooling | B4: Heating | C4: Floor | D4: Climate Zone | E4: Climate Region | F4: Stories | G4: Vintage | H4: HC1 | I4: HC2 | J4: M1.1B | K4: M1.2B | L4: M2B | M4: M3.1aB | N4: M3.1bB | O4: M3.2aB | P4: M3.2bB | Q4: M4.1B | R4: M4.2B | S4: M5B | T4: M6B | U4: M7aB | V4: M7bB | W4: M8.1B | X4: M8.2B | Y4: M9.1B | Z4: M9.2B | AA4: M9.3B | AB4: M11B | AC4: M12B | AD4: M13B | AE4: M14B | AF4: M15B | AG4: M16B | AH4: M17B | AI4: M18B | AJ4: M1.1C | AK4: M1.2C | AL4: M2C | AM4: M3.1aC | AN4: M3.1bC | AO4: M3.2aC | AP4: M3.2bC | AQ4: M4.1C | AR4: M4.2C | AS4: M5C | AT4: M6C | AU4: M7aC | AV4: M7bC | AW4: M8.1C | AX4: M8.2C | AY4: M9.1C | AZ4: M9.2C | BA4: M9.3C | BB4: M11C | BC4: M12C | BD4: M13C | BE4: M14C | BF4: M15C | BG4: M16C | BH4: M17C | BI4: M18C | BJ4: M1.1M | BK4: M1.2M | BL4: M2M | BM4: M3.1aM | BN4: M3.1bM | BO4: M3.2aM | BP4: M3.2bM | BQ4: M4.1M | BR4: M4.2M | BS4: M5M | BT4: M6M | BU4: M7aM | BV4: M7bM | BW4: M8.1M | BX4: M8.2M | BY4: M9.1M | BZ4: M9.2M | CA4: M9.3M | CB4: M11M | CC4: M12M | CD4: M13M | CE4: M14M | CF4: M15M | CG4: M16M | CH4: M17M | CI4: M18M
A5: x | B5: x | C5: x | D5: x | E5: x | F5: x | G5: x | H5: sq ft | I5: x | J5: leak fraction of floor area | K5: leak fraction of floor area | L5: R | M5: % Total duct leakage | N5: % duct leakage to outside air | O5: % Total duct leakage | P5: % duct leakage to outside air | Q5: R | R5: R | S5: R | T5: R | U5: U | V5: SHGC | W5: SEER | X5: SEER | Y5: AFUE | Z5: AFUE | AA5: AFUE | AB5: EF | AC5: EF | AD5: EF | AE5: EF | AF5: R | AJ5: % | AK5: % | AL5: R | AM5: % | AN5: % | AO5: % | AP5: % | AQ5: R | AR5: R | AS5: R | AT5: R | AU5: U | AV5: SHGC | AW5: SEER | AX5: SEER | AY5: AFUE | AZ5: AFUE | BA5: AFUE | BJ5: % | BK5: % | BL5: R | BM5: % | BN5: % | BO5: % | BP5: % | BQ5: R | BS5: R | BT5: R | BU5: U | BV5: SHGC | BW5: SEER | BX5: SEER | BY5: AFUE | BZ5: AFUE | CA5: AFUE
A6: No AC | B6: Furnace | C6: Slab-on-grade | D6: 1 | E6: =VLOOKUP(D6,Lists!$B$3:$C$18,2,FALSE) -> 3 | F6: 1 | G6: pre78 | H6: 1600 | I6: 0.1401634192 | J6: =INDEX('Default Value References'!$G$4:$G$6,MATCH($G6,'Default Value References'!$F$4:$F$6,0),1) -> 0.00071 | K6: =J6 -> 0.00071 | L6: =INDEX('Default Value References'!$G$12:$G$14,MATCH($G6,'Default Value References'!$F$12:$F$14,0),1) -> 3.32 | M6: =INDEX('Default Value References'!$G$17:$G$19,MATCH($G6,'Default Value References'!$F$17:$F$19,0),1) -> 0.33 | N6: =M6*IF($F6=1,0.75,0.65) -> 0.2475 | O6: =M6 -> 0.33 | P6: =O6*IF($F6=1,0.75,0.65) -> 0.2475 | Q6: =SUMIFS('Default Value References'!$H$32:$H$49,'Default Value References'!$G$32:$G$49,$E6,'Default Value References'!$F$32:$F$49,$G6) -> 6.68 | R6: =Q6 -> 6.68 | S6: =INDEX('Default Value References'!$G$53:$G$55,MATCH($G6,'Default Value References'!$F$53:$F$55,0),1) -> 1.34 | T6: =SUMIFS('Default Value References'!$H$65:$H$82,'Default Value References'!$G$65:$G$82,$E6,'Default Value References'!$F$65:$F$82,$G6) -> 0.96 | U6: =SUMIFS('Default Value References'!$H$86:$H$103,'Default Value References'!$G$86:$G$103,$E6,'Default Value References'!$F$86:$F$103,$G6) -> 1.23 | V6: =SUMIFS('Default Value References'!$I$86:$I$103,'Default Value References'!$G$86:$G$103,$E6,'Default Value References'!$F$86:$F$103,$G6) -> 0.87 | X6: ='Default Value References'!$F$106 -> 11.4 | Y6: ='Default Value References'!$F$110 -> 80 | Z6: =Y6 -> 80 | AA6: ='Default Value References'!$F$114 -> 62 | AB6: ='Default Value References'!$F$118 -> EF 86 | AC6: ='Default Value References'!$F$119 -> EF 59 | AD6: ='Default Value References'!$F$120 -> EF 59 | AE6: ='Default Value References'!$F$121 -> EF 52 | AF6: ='Default Value References'!$F$122 -> None | AG6: ='Default Value References'!$F$123 -> None | AH6: ='Default Value References'!$F$124 -> None | AI6: ='Default Value References'!$F$125 -> None | AJ6: =$J6 -> 0.00071 | AK6: =AJ6 -> 0.00071 | AL6: =L6 -> 3.32 | AM6: =$M6 -> 0.33 | AN6: =$N6 -> 0.2475 | AO6: =$O6 -> 0.33 | AP6: =$P6 -> 0.2475 | AQ6: =Q6 -> 6.68 | AR6: =AQ6 -> 6.68 | AS6: =S6 -> 1.34 | AT6: =T6 -> 0.96 | AU6: =U6 -> 1.23 | AV6: =V6 -> 0.87 | AX6: ='Default Value References'!$G$106 -> 14 | AY6: ='Default Value References'!$G$110 -> 80 | AZ6: =AY6 -> 80 | BA6: ='Default Value References'!$G$114 -> 66 | BB6: ='Default Value References'!$G$118 -> EF 95 | BC6: ='Default Value References'!$G$119 -> EF 60 | BD6: ='Default Value References'!$G$120 -> EF 60 | BE6: ='Default Value References'!$G$121 -> EF 74 | BF6: ='Default Value References'!$G$122 -> None | BG6: ='Default Value References'!$G$123 -> None | BH6: ='Default Value References'!$G$124 -> None | BI6: ='Default Value References'!$G$125 -> None | BJ6: =INDEX('Default Value References'!$I$4:$I$6,MATCH($G6,'Default Value References'!$F$4:$F$6,0),1) -> 0.0006035 | BK6: =INDEX('Default Value References'!$I$7:$I$9,MATCH($G6,'Default Value References'!$F$7:$F$9,0),1) -> 0.000497 | BL6: ='Default Value References'!$I$12 -> 8 | BM6: ='Default Value References'!$I$17 -> 0.1 | BN6: =BM6*IF($F6=1,0.75,0.65) -> 0.075 | BO6: ='Default Value References'!$I$20 -> 0.05 | BP6: =BO6*IF($F6=1,0.75,0.65) -> 0.0375 | BQ6: =INDEX('Default Value References'!$K$32:$K$47,MATCH($D6,'Default Value References'!$J$32:$J$47,0),1) -> 38 | BR6: ='Default Value References'!$K$50 -> 44 | BS6: ='Default Value References'!$I$53 -> 19 | BT6: ='Default Value References'!$J$65 -> 13 | BU6: ='Default Value References'!$L$86 -> 0.3 | BV6: ='Default Value References'!$M$86 -> 0.25 | BX6: ='Default Value References'!$H$106 -> 15 | BY6: ='Default Value References'!$H$110 -> 92 | BZ6: ='Default Value References'!$H$111 -> 95 | CA6: ='Default Value References'!$H$114 -> 70 | CB6: ='Default Value References'!$H$118 -> EF 200 | CC6: ='Default Value References'!$H$119 -> EF 67 | CD6: ='Default Value References'!$H$120 -> EF 70 | CE6: ='Default Value References'!$H$121 -> EF 82 | CF6: ='Default Value References'!$H$122 -> Wrap 5 ft | CG6: ='Default Value References'!$H$123 -> Valve | CH6: ='Default Value References'!$H$124 -> Valve & LF | CI6: ='Default Value References'!$H$125 -> Valve & TS
A7: No AC | B7: Furnace | C7: Slab-on-grade | D7: 1 | E7: =VLOOKUP(D7,Lists!$B$3:$C$18,2,FALSE) -> 3 | F7: 2 | G7: pre78 | H7: 1990 | I7: 0.1401634192 | J7: =INDEX('Default Value References'!$G$4:$G$6,MATCH($G7,'Default Value References'!$F$4:$F$6,0),1) -> 0.00071 | K7: =J7 -> 0.00071 | L7: =INDEX('Default Value References'!$G$12:$G$14,MATCH($G7,'Default Value References'!$F$12:$F$14,0),1) -> 3.32 | M7: =INDEX('Default Value References'!$G$17:$G$19,MATCH($G7,'Default Value References'!$F$17:$F$19,0),1) -> 0.33 | N7: =M7*IF($F7=1,0.75,0.65) -> 0.2145 | O7: =M7 -> 0.33 | P7: =O7*IF($F7=1,0.75,0.65) -> 0.2145 | Q7: =SUMIFS('Default Value References'!$H$32:$H$49,'Default Value References'!$G$32:$G$49,$E7,'Default Value References'!$F$32:$F$49,$G7) -> 6.68 | R7: =Q7 -> 6.68 | S7: =INDEX('Default Value References'!$G$53:$G$55,MATCH($G7,'Default Value References'!$F$53:$F$55,0),1) -> 1.34 | T7: =SUMIFS('Default Value References'!$H$65:$H$82,'Default Value References'!$G$65:$G$82,$E7,'Default Value References'!$F$65:$F$82,$G7) -> 0.96 | U7: =SUMIFS('Default Value References'!$H$86:$H$103,'Default Value References'!$G$86:$G$103,$E7,'Default Value References'!$F$86:$F$103,$G7) -> 1.23 | V7: =SUMIFS('Default Value References'!$I$86:$I$103,'Default Value References'!$G$86:$G$103,$E7,'Default Value References'!$F$86:$F$103,$G7) -> 0.87 | X7: ='Default Value References'!$F$106 -> 11.4 | Y7: ='Default Value References'!$F$110 -> 80 | Z7: =Y7 -> 80 | AA7: ='Default Value References'!$F$114 -> 62 | AB7: ='Default Value References'!$F$118 -> EF 86 | AC7: ='Default Value References'!$F$119 -> EF 59 | AD7: ='Default Value References'!$F$120 -> EF 59 | AE7: ='Default Value References'!$F$121 -> EF 52 | AF7: ='Default Value References'!$F$122 -> None | AG7: ='Default Value References'!$F$123 -> None | AH7: ='Default Value References'!$F$124 -> None | AI7: ='Default Value References'!$F$125 -> None | AJ7: =$J7 -> 0.00071 | AK7: =AJ7 -> 0.00071 | AL7: =L7 -> 3.32 | AM7: 0.33 | AN7: =$N7 -> 0.2145 | AO7: 0.33 | AP7: =$P7 -> 0.2145 | AQ7: =Q7 -> 6.68 | AR7: =AQ7 -> 6.68 | AS7: =S7 -> 1.34 | AT7: =T7 -> 0.96 | AU7: =U7 -> 1.23 | AV7: =V7 -> 0.87 | AX7: ='Default Value References'!$G$106 -> 14 | AY7: ='Default Value References'!$G$110 -> 80 | AZ7: =AY7 -> 80 | BA7: ='Default Value References'!$G$114 -> 66 | BB7: ='Default Value References'!$G$118 -> EF 95 | BC7: ='Default Value References'!$G$119 -> EF 60 | BD7: ='Default Value References'!$G$120 -> EF 60 | BE7: ='Default Value References'!$G$121 -> EF 74 | BF7: ='Default Value References'!$G$122 -> None | BG7: ='Default Value References'!$G$123 -> None | BH7: ='Default Value References'!$G$124 -> None | BI7: ='Default Value References'!$G$125 -> None | BJ7: =INDEX('Default Value References'!$I$4:$I$6,MATCH($G7,'Default Value References'!$F$4:$F$6,0),1) -> 0.0006035 | BK7: =INDEX('Default Value References'!$I$7:$I$9,MATCH($G7,'Default Value References'!$F$7:$F$9,0),1) -> 0.000497 | BL7: ='Default Value References'!$I$12 -> 8 | BM7: ='Default Value References'!$I$17 -> 0.1 | BN7: =BM7*IF($F7=1,0.75,0.65) -> 0.065 | BO7: ='Default Value References'!$I$20 -> 0.05 | BP7: =BO7*IF($F7=1,0.75,0.65) -> 0.0325 | BQ7: =INDEX('Default Value References'!$K$32:$K$47,MATCH($D7,'Default Value References'!$J$32:$J$47,0),1) -> 38 | BR7: ='Default Value References'!$K$50 -> 44 | BS7: ='Default Value References'!$I$53 -> 19 | BT7: ='Default Value References'!$J$65 -> 13 | BU7: ='Default Value References'!$L$86 -> 0.3 | BV7: ='Default Value References'!$M$86 -> 0.25 | BX7: ='Default Value References'!$H$106 -> 15 | BY7: ='Default Value References'!$H$110 -> 92 | BZ7: ='Default Value References'!$H$111 -> 95 | CA7: ='Default Value References'!$H$114 -> 70 | CB7: ='Default Value References'!$H$118 -> EF 200 | CC7: ='Default Value References'!$H$119 -> EF 67 | CD7: ='Default Value References'!$H$120 -> EF 70 | CE7: ='Default Value References'!$H$121 -> EF 82 | CF7: ='Default Value References'!$H$122 -> Wrap 5 ft | CG7: ='Default Value References'!$H$123 -> Valve | CH7: ='Default Value References'!$H$124 -> Valve & LF | CI7: ='Default Value References'!$H$125 -> Valve & TS
A8: AC | B8: Furnace | C8: Slab-on-grade | D8: 1 | E8: =VLOOKUP(D8,Lists!$B$3:$C$18,2,FALSE) -> 3 | F8: 1 | G8: pre78 | H8: 1600 | I8: 0.1401634192 | J8: =INDEX('Default Value References'!$G$4:$G$6,MATCH($G8,'Default Value References'!$F$4:$F$6,0),1) -> 0.00071 | K8: 0.00071 | L8: =INDEX('Default Value References'!$G$12:$G$14,MATCH($G8,'Default Value References'!$F$12:$F$14,0),1) -> 3.32 | M8: =INDEX('Default Value References'!$G$17:$G$19,MATCH($G8,'Default Value References'!$F$17:$F$19,0),1) -> 0.33 | N8: 0.2475 | O8: 0.33 | P8: 0.2475 | Q8: =SUMIFS('Default Value References'!$H$32:$H$49,'Default Value References'!$G$32:$G$49,$E8,'Default Value References'!$F$32:$F$49,$G8) -> 6.68 | R8: 6.68 | S8: =INDEX('Default Value References'!$G$53:$G$55,MATCH($G8,'Default Value References'!$F$53:$F$55,0),1) -> 1.34 | T8: =SUMIFS('Default Value References'!$H$65:$H$82,'Default Value References'!$G$65:$G$82,$E8,'Default Value References'!$F$65:$F$82,$G8) -> 0.96 | U8: =SUMIFS('Default Value References'!$H$86:$H$103,'Default Value References'!$G$86:$G$103,$E8,'Default Value References'!$F$86:$F$103,$G8) -> 1.23 | V8: =SUMIFS('Default Value References'!$I$86:$I$103,'Default Value References'!$G$86:$G$103,$E8,'Default Value References'!$F$86:$F$103,$G8) -> 0.87 | X8: ='Default Value References'!$F$106 -> 11.4 | Y8: ='Default Value References'!$F$110 -> 80 | Z8: 80 | AA8: ='Default Value References'!$F$114 -> 62 | AB8: ='Default Value References'!$F$118 -> EF 86 | AC8: ='Default Value References'!$F$119 -> EF 59 | AD8: ='Default Value References'!$F$120 -> EF 59 | AE8: ='Default Value References'!$F$121 -> EF 52 | AF8: ='Default Value References'!$F$122 -> None | AG8: ='Default Value References'!$F$123 -> None | AH8: ='Default Value References'!$F$124 -> None | AI8: ='Default Value References'!$F$125 -> None | AJ8: 0.00071 | AK8: 0.00071 | AL8: 3.32 | AM8: 0.33 | AN8: 0.2475 | AO8: 0.33 | AP8: 0.2475 | AQ8: 6.68 | AR8: 6.68 | AS8: 1.34 | AT8: 0.96 | AU8: 1.23 | AV8: 0.87 | AX8: ='Default Value References'!$G$106 -> 14 | AY8: ='Default Value References'!$G$110 -> 80 | AZ8: 80 | BA8: ='Default Value References'!$G$114 -> 66 | BB8: ='Default Value References'!$G$118 -> EF 95 | BC8: ='Default Value References'!$G$119 -> EF 60 | BD8: ='Default Value References'!$G$120 -> EF 60 | BE8: ='Default Value References'!$G$121 -> EF 74 | BF8: ='Default Value References'!$G$122 -> None | BG8: ='Default Value References'!$G$123 -> None | BH8: ='Default Value References'!$G$124 -> None | BI8: ='Default Value References'!$G$125 -> None | BJ8: =INDEX('Default Value References'!$I$4:$I$6,MATCH($G8,'Default Value References'!$F$4:$F$6,0),1) -> 0.0006035 | BK8: =INDEX('Default Value References'!$I$7:$I$9,MATCH($G8,'Default Value References'!$F$7:$F$9,0),1) -> 0.000497 | BL8: ='Default Value References'!$I$12 -> 8 | BM8: ='Default Value References'!$I$17 -> 0.1 | BN8: 0.075 | BO8: ='Default Value References'!$I$20 -> 0.05 | BP8: 0.0375 | BQ8: =INDEX('Default Value References'!$K$32:$K$47,MATCH($D8,'Default Value References'!$J$32:$J$47,0),1) -> 38 | BR8: ='Default Value References'!$K$50 -> 44 | BS8: ='Default Value References'!$I$53 -> 19 | BT8: ='Default Value References'!$J$65 -> 13 | BU8: ='Default Value References'!$L$86 -> 0.3 | BV8: ='Default Value References'!$M$86 -> 0.25 | BX8: ='Default Value References'!$H$106 -> 15 | BY8: ='Default Value References'!$H$110 -> 92 | BZ8: ='Default Value References'!$H$111 -> 95 | CA8: ='Default Value References'!$H$114 -> 70 | CB8: ='Default Value References'!$H$118 -> EF 200 | CC8: ='Default Value References'!$H$119 -> EF 67 | CD8: ='Default Value References'!$H$120 -> EF 70 | CE8: ='Default Value References'!$H$121 -> EF 82 | CF8: ='Default Value References'!$H$122 -> Wrap 5 ft | CG8: ='Default Value References'!$H$123 -> Valve | CH8: ='Default Value References'!$H$124 -> Valve & LF | CI8: ='Default Value References'!$H$125 -> Valve & TS
A9: AC | B9: Furnace | C9: Slab-on-grade | D9: 1 | E9: =VLOOKUP(D9,Lists!$B$3:$C$18,2,FALSE) -> 3 | F9: 2 | G9: pre78 | H9: 1990 | I9: 0.1401634192 | J9: =INDEX('Default Value References'!$G$4:$G$6,MATCH($G9,'Default Value References'!$F$4:$F$6,0),1) -> 0.00071 | K9: 0.00071 | L9: =INDEX('Default Value References'!$G$12:$G$14,MATCH($G9,'Default Value References'!$F$12:$F$14,0),1) -> 3.32 | M9: =INDEX('Default Value References'!$G$17:$G$19,MATCH($G9,'Default Value References'!$F$17:$F$19,0),1) -> 0.33 | N9: 0.2145 | O9: 0.33 | P9: 0.2145 | Q9: =SUMIFS('Default Value References'!$H$32:$H$49,'Default Value References'!$G$32:$G$49,$E9,'Default Value References'!$F$32:$F$49,$G9) -> 6.68 | R9: 6.68 | S9: =INDEX('Default Value References'!$G$53:$G$55,MATCH($G9,'Default Value References'!$F$53:$F$55,0),1) -> 1.34 | T9: =SUMIFS('Default Value References'!$H$65:$H$82,'Default Value References'!$G$65:$G$82,$E9,'Default Value References'!$F$65:$F$82,$G9) -> 0.96 | U9: =SUMIFS('Default Value References'!$H$86:$H$103,'Default Value References'!$G$86:$G$103,$E9,'Default Value References'!$F$86:$F$103,$G9) -> 1.23 | V9: =SUMIFS('Default Value References'!$I$86:$I$103,'Default Value References'!$G$86:$G$103,$E9,'Default Value References'!$F$86:$F$103,$G9) -> 0.87 | X9: ='Default Value References'!$F$106 -> 11.4 | Y9: ='Default Value References'!$F$110 -> 80 | Z9: 80 | AA9: ='Default Value References'!$F$114 -> 62 | AB9: ='Default Value References'!$F$118 -> EF 86 | AC9: ='Default Value References'!$F$119 -> EF 59 | AD9: ='Default Value References'!$F$120 -> EF 59 | AE9: ='Default Value References'!$F$121 -> EF 52 | AF9: ='Default Value References'!$F$122 -> None | AG9: ='Default Value References'!$F$123 -> None | AH9: ='Default Value References'!$F$124 -> None | AI9: ='Default Value References'!$F$125 -> None | AJ9: 0.00071 | AK9: 0.00071 | AL9: 3.32 | AM9: 0.33 | AN9: 0.2145 | AO9: 0.33 | AP9: 0.2145 | AQ9: 6.68 | AR9: 6.68 | AS9: 1.34 | AT9: 0.96 | AU9: 1.23 | AV9: 0.87 | AX9: ='Default Value References'!$G$106 -> 14 | AY9: ='Default Value References'!$G$110 -> 80 | AZ9: 80 | BA9: ='Default Value References'!$G$114 -> 66 | BB9: ='Default Value References'!$G$118 -> EF 95 | BC9: ='Default Value References'!$G$119 -> EF 60 | BD9: ='Default Value References'!$G$120 -> EF 60 | BE9: ='Default Value References'!$G$121 -> EF 74 | BF9: ='Default Value References'!$G$122 -> None | BG9: ='Default Value References'!$G$123 -> None | BH9: ='Default Value References'!$G$124 -> None | BI9: ='Default Value References'!$G$125 -> None | BJ9: =INDEX('Default Value References'!$I$4:$I$6,MATCH($G9,'Default Value References'!$F$4:$F$6,0),1) -> 0.0006035 | BK9: =INDEX('Default Value References'!$I$7:$I$9,MATCH($G9,'Default Value References'!$F$7:$F$9,0),1) -> 0.000497 | BL9: ='Default Value References'!$I$12 -> 8 | BM9: ='Default Value References'!$I$17 -> 0.1 | BN9: 0.065 | BO9: ='Default Value References'!$I$20 -> 0.05 | BP9: 0.0325 | BQ9: =INDEX('Default Value References'!$K$32:$K$47,MATCH($D9,'Default Value References'!$J$32:$J$47,0),1) -> 38 | BR9: ='Default Value References'!$K$50 -> 44 | BS9: ='Default Value References'!$I$53 -> 19 | BT9: ='Default Value References'!$J$65 -> 13 | BU9: ='Default Value References'!$L$86 -> 0.3 | BV9: ='Default Value References'!$M$86 -> 0.25 | BX9: ='Default Value References'!$H$106 -> 15 | BY9: ='Default Value References'!$H$110 -> 92 | BZ9: ='Default Value References'!$H$111 -> 95 | CA9: ='Default Value References'!$H$114 -> 70 | CB9: ='Default Value References'!$H$118 -> EF 200 | CC9: ='Default Value References'!$H$119 -> EF 67 | CD9: ='Default Value References'!$H$120 -> EF 70 | CE9: ='Default Value References'!$H$121 -> EF 82 | CF9: ='Default Value References'!$H$122 -> Wrap 5 ft | CG9: ='Default Value References'!$H$123 -> Valve | CH9: ='Default Value References'!$H$124 -> Valve & LF | CI9: ='Default Value References'!$H$125 -> Valve & TS
A10: No AC | B10: Furnace | C10: Crawlspace | D10: 1 | E10: =VLOOKUP(D10,Lists!$B$3:$C$18,2,FALSE) -> 3 | F10: 1 | G10: pre78 | H10: 1600 | I10: 0.1401634192 | J10: =INDEX('Default Value References'!$G$4:$G$6,MATCH($G10,'Default Value References'!$F$4:$F$6,0),1) -> 0.00071 | K10: 0.00071 | L10: =INDEX('Default Value References'!$G$12:$G$14,MATCH($G10,'Default Value References'!$F$12:$F$14,0),1) -> 3.32 | M10: =INDEX('Default Value References'!$G$17:$G$19,MATCH($G10,'Default Value References'!$F$17:$F$19,0),1) -> 0.33 | N10: 0.2475 | O10: 0.33 | P10: 0.2475 | Q10: =SUMIFS('Default Value References'!$H$32:$H$49,'Default Value References'!$G$32:$G$49,$E10,'Default Value References'!$F$32:$F$49,$G10) -> 6.68 | R10: 6.68 | S10: =INDEX('Default Value References'!$G$53:$G$55,MATCH($G10,'Default Value References'!$F$53:$F$55,0),1) -> 1.34 | T10: =SUMIFS('Default Value References'!$H$65:$H$82,'Default Value References'!$G$65:$G$82,$E10,'Default Value References'!$F$65:$F$82,$G10) -> 0.96 | U10: =SUMIFS('Default Value References'!$H$86:$H$103,'Default Value References'!$G$86:$G$103,$E10,'Default Value References'!$F$86:$F$103,$G10) -> 1.23 | V10: =SUMIFS('Default Value References'!$I$86:$I$103,'Default Value References'!$G$86:$G$103,$E10,'Default Value References'!$F$86:$F$103,$G10) -> 0.87 | X10: ='Default Value References'!$F$106 -> 11.4 | Y10: ='Default Value References'!$F$110 -> 80 | Z10: 80 | AA10: ='Default Value References'!$F$114 -> 62 | AB10: ='Default Value References'!$F$118 -> EF 86 | AC10: ='Default Value References'!$F$119 -> EF 59 | AD10: ='Default Value References'!$F$120 -> EF 59 | AE10: ='Default Value References'!$F$121 -> EF 52 | AF10: ='Default Value References'!$F$122 -> None | AG10: ='Default Value References'!$F$123 -> None | AH10: ='Default Value References'!$F$124 -> None | AI10: ='Default Value References'!$F$125 -> None | AJ10: 0.00071 | AK10: 0.00071 | AL10: 3.32 | AM10: 0.33 | AN10: 0.2475 | AO10: 0.33 | AP10: 0.2475 | AQ10: 6.68 | AR10: 6.68 | AS10: 1.34 | AT10: 0.96 | AU10: 1.23 | AV10: 0.87 | AX10: ='Default Value References'!$G$106 -> 14 | AY10: ='Default Value References'!$G$110 -> 80 | AZ10: 80 | BA10: ='Default Value References'!$G$114 -> 66 | BB10: ='Default Value References'!$G$118 -> EF 95 | BC10: ='Default Value References'!$G$119 -> EF 60 | BD10: ='Default Value References'!$G$120 -> EF 60 | BE10: ='Default Value References'!$G$121 -> EF 74 | BF10: ='Default Value References'!$G$122 -> None | BG10: ='Default Value References'!$G$123 -> None | BH10: ='Default Value References'!$G$124 -> None | BI10: ='Default Value References'!$G$125 -> None | BJ10: =INDEX('Default Value References'!$I$4:$I$6,MATCH($G10,'Default Value References'!$F$4:$F$6,0),1) -> 0.0006035 | BK10: =INDEX('Default Value References'!$I$7:$I$9,MATCH($G10,'Default Value References'!$F$7:$F$9,0),1) -> 0.000497 | BL10: ='Default Value References'!$I$12 -> 8 | BM10: ='Default Value References'!$I$17 -> 0.1 | BN10: 0.075 | BO10: ='Default Value References'!$I$20 -> 0.05 | BP10: 0.0375 | BQ10: =INDEX('Default Value References'!$K$32:$K$47,MATCH($D10,'Default Value References'!$J$32:$J$47,0),1) -> 38 | BR10: ='Default Value References'!$K$50 -> 44 | BS10: ='Default Value References'!$I$53 -> 19 | BT10: ='Default Value References'!$J$65 -> 13 | BU10: ='Default Value References'!$L$86 -> 0.3 | BV10: ='Default Value References'!$M$86 -> 0.25 | BX10: ='Default Value References'!$H$106 -> 15 | BY10: ='Default Value References'!$H$110 -> 92 | BZ10: ='Default Value References'!$H$111 -> 95 | CA10: ='Default Value References'!$H$114 -> 70 | CB10: ='Default Value References'!$H$118 -> EF 200 | CC10: ='Default Value References'!$H$119 -> EF 67 | CD10: ='Default Value References'!$H$120 -> EF 70 | CE10: ='Default Value References'!$H$121 -> EF 82 | CF10: ='Default Value References'!$H$122 -> Wrap 5 ft | CG10: ='Default Value References'!$H$123 -> Valve | CH10: ='Default Value References'!$H$124 -> Valve & LF | CI10: ='Default Value References'!$H$125 -> Valve & TS
A11: No AC | B11: Furnace | C11: Crawlspace | D11: 1 | E11: =VLOOKUP(D11,Lists!$B$3:$C$18,2,FALSE) -> 3 | F11: 2 | G11: pre78 | H11: 1990 | I11: 0.1401634192 | J11: =INDEX('Default Value References'!$G$4:$G$6,MATCH($G11,'Default Value References'!$F$4:$F$6,0),1) -> 0.00071 | K11: 0.00071 | L11: =INDEX('Default Value References'!$G$12:$G$14,MATCH($G11,'Default Value References'!$F$12:$F$14,0),1) -> 3.32 | M11: =INDEX('Default Value References'!$G$17:$G$19,MATCH($G11,'Default Value References'!$F$17:$F$19,0),1) -> 0.33 | N11: 0.2145 | O11: 0.33 | P11: 0.2145 | Q11: =SUMIFS('Default Value References'!$H$32:$H$49,'Default Value References'!$G$32:$G$49,$E11,'Default Value References'!$F$32:$F$49,$G11) -> 6.68 | R11: 6.68 | S11: =INDEX('Default Value References'!$G$53:$G$55,MATCH($G11,'Default Value References'!$F$53:$F$55,0),1) -> 1.34 | T11: =SUMIFS('Default Value References'!$H$65:$H$82,'Default Value References'!$G$65:$G$82,$E11,'Default Value References'!$F$65:$F$82,$G11) -> 0.96 | U11: =SUMIFS('Default Value References'!$H$86:$H$103,'Default Value References'!$G$86:$G$103,$E11,'Default Value References'!$F$86:$F$103,$G11) -> 1.23 | V11: =SUMIFS('Default Value References'!$I$86:$I$103,'Default Value References'!$G$86:$G$103,$E11,'Default Value References'!$F$86:$F$103,$G11) -> 0.87 | X11: ='Default Value References'!$F$106 -> 11.4 | Y11: ='Default Value References'!$F$110 -> 80 | Z11: 80 | AA11: ='Default Value References'!$F$114 -> 62 | AB11: ='Default Value References'!$F$118 -> EF 86 | AC11: ='Default Value References'!$F$119 -> EF 59 | AD11: ='Default Value References'!$F$120 -> EF 59 | AE11: ='Default Value References'!$F$121 -> EF 52 | AF11: ='Default Value References'!$F$122 -> None | AG11: ='Default Value References'!$F$123 -> None | AH11: ='Default Value References'!$F$124 -> None | AI11: ='Default Value References'!$F$125 -> None | AJ11: 0.00071 | AK11: 0.00071 | AL11: 3.32 | AM11: 0.33 | AN11: 0.2145 | AO11: 0.33 | AP11: 0.2145 | AQ11: 6.68 | AR11: 6.68 | AS11: 1.34 | AT11: 0.96 | AU11: 1.23 | AV11: 0.87 | AX11: ='Default Value References'!$G$106 -> 14 | AY11: ='Default Value References'!$G$110 -> 80 | AZ11: 80 | BA11: ='Default Value References'!$G$114 -> 66 | BB11: ='Default Value References'!$G$118 -> EF 95 | BC11: ='Default Value References'!$G$119 -> EF 60 | BD11: ='Default Value References'!$G$120 -> EF 60 | BE11: ='Default Value References'!$G$121 -> EF 74 | BF11: ='Default Value References'!$G$122 -> None | BG11: ='Default Value References'!$G$123 -> None | BH11: ='Default Value References'!$G$124 -> None | BI11: ='Default Value References'!$G$125 -> None | BJ11: =INDEX('Default Value References'!$I$4:$I$6,MATCH($G11,'Default Value References'!$F$4:$F$6,0),1) -> 0.0006035 | BK11: =INDEX('Default Value References'!$I$7:$I$9,MATCH($G11,'Default Value References'!$F$7:$F$9,0),1) -> 0.000497 | BL11: ='Default Value References'!$I$12 -> 8 | BM11: ='Default Value References'!$I$17 -> 0.1 | BN11: 0.065 | BO11: ='Default Value References'!$I$20 -> 0.05 | BP11: 0.0325 | BQ11: =INDEX('Default Value References'!$K$32:$K$47,MATCH($D11,'Default Value References'!$J$32:$J$47,0),1) -> 38 | BR11: ='Default Value References'!$K$50 -> 44 | BS11: ='Default Value References'!$I$53 -> 19 | BT11: ='Default Value References'!$J$65 -> 13 | BU11: ='Default Value References'!$L$86 -> 0.3 | BV11: ='Default Value References'!$M$86 -> 0.25 | BX11: ='Default Value References'!$H$106 -> 15 | BY11: ='Default Value References'!$H$110 -> 92 | BZ11: ='Default Value References'!$H$111 -> 95 | CA11: ='Default Value References'!$H$114 -> 70 | CB11: ='Default Value References'!$H$118 -> EF 200 | CC11: ='Default Value References'!$H$119 -> EF 67 | CD11: ='Default Value References'!$H$120 -> EF 70 | CE11: ='Default Value References'!$H$121 -> EF 82 | CF11: ='Default Value References'!$H$122 -> Wrap 5 ft | CG11: ='Default Value References'!$H$123 -> Valve | CH11: ='Default Value References'!$H$124 -> Valve & LF | CI11: ='Default Value References'!$H$125 -> Valve & TS
A12: AC | B12: Furnace | C12: Crawlspace | D12: 1 | E12: =VLOOKUP(D12,Lists!$B$3:$C$18,2,FALSE) -> 3 | F12: 1 | G12: pre78 | H12: 1600 | I12: 0.1401634192 | J12: =INDEX('Default Value References'!$G$4:$G$6,MATCH($G12,'Default Value References'!$F$4:$F$6,0),1) -> 0.00071 | K12: 0.00071 | L12: =INDEX('Default Value References'!$G$12:$G$14,MATCH($G12,'Default Value References'!$F$12:$F$14,0),1) -> 3.32 | M12: =INDEX('Default Value References'!$G$17:$G$19,MATCH($G12,'Default Value References'!$F$17:$F$19,0),1) -> 0.33 | N12: 0.2475 | O12: 0.33 | P12: 0.2475 | Q12: =SUMIFS('Default Value References'!$H$32:$H$49,'Default Value References'!$G$32:$G$49,$E12,'Default Value References'!$F$32:$F$49,$G12) -> 6.68 | R12: 6.68 | S12: =INDEX('Default Value References'!$G$53:$G$55,MATCH($G12,'Default Value References'!$F$53:$F$55,0),1) -> 1.34 | T12: =SUMIFS('Default Value References'!$H$65:$H$82,'Default Value References'!$G$65:$G$82,$E12,'Default Value References'!$F$65:$F$82,$G12) -> 0.96 | U12: =SUMIFS('Default Value References'!$H$86:$H$103,'Default Value References'!$G$86:$G$103,$E12,'Default Value References'!$F$86:$F$103,$G12) -> 1.23 | V12: =SUMIFS('Default Value References'!$I$86:$I$103,'Default Value References'!$G$86:$G$103,$E12,'Default Value References'!$F$86:$F$103,$G12) -> 0.87 | X12: ='Default Value References'!$F$106 -> 11.4 | Y12: ='Default Value References'!$F$110 -> 80 | Z12: 80 | AA12: ='Default Value References'!$F$114 -> 62 | AB12: ='Default Value References'!$F$118 -> EF 86 | AC12: ='Default Value References'!$F$119 -> EF 59 | AD12: ='Default Value References'!$F$120 -> EF 59 | AE12: ='Default Value References'!$F$121 -> EF 52 | AF12: ='Default Value References'!$F$122 -> None | AG12: ='Default Value References'!$F$123 -> None | AH12: ='Default Value References'!$F$124 -> None | AI12: ='Default Value References'!$F$125 -> None | AJ12: 0.00071 | AK12: 0.00071 | AL12: 3.32 | AM12: 0.33 | AN12: 0.2475 | AO12: 0.33 | AP12: 0.2475 | AQ12: 6.68 | AR12: 6.68 | AS12: 1.34 | AT12: 0.96 | AU12: 1.23 | AV12: 0.87 | AX12: ='Default Value References'!$G$106 -> 14 | AY12: ='Default Value References'!$G$110 -> 80 | AZ12: 80 | BA12: ='Default Value References'!$G$114 -> 66 | BB12: ='Default Value References'!$G$118 -> EF 95 | BC12: ='Default Value References'!$G$119 -> EF 60 | BD12: ='Default Value References'!$G$120 -> EF 60 | BE12: ='Default Value References'!$G$121 -> EF 74 | BF12: ='Default Value References'!$G$122 -> None | BG12: ='Default Value References'!$G$123 -> None | BH12: ='Default Value References'!$G$124 -> None | BI12: ='Default Value References'!$G$125 -> None | BJ12: =INDEX('Default Value References'!$I$4:$I$6,MATCH($G12,'Default Value References'!$F$4:$F$6,0),1) -> 0.0006035 | BK12: =INDEX('Default Value References'!$I$7:$I$9,MATCH($G12,'Default Value References'!$F$7:$F$9,0),1) -> 0.000497 | BL12: ='Default Value References'!$I$12 -> 8 | BM12: ='Default Value References'!$I$17 -> 0.1 | BN12: 0.075 | BO12: ='Default Value References'!$I$20 -> 0.05 | BP12: 0.0375 | BQ12: =INDEX('Default Value References'!$K$32:$K$47,MATCH($D12,'Default Value References'!$J$32:$J$47,0),1) -> 38 | BR12: ='Default Value References'!$K$50 -> 44 | BS12: ='Default Value References'!$I$53 -> 19 | BT12: ='Default Value References'!$J$65 -> 13 | BU12: ='Default Value References'!$L$86 -> 0.3 | BV12: ='Default Value References'!$M$86 -> 0.25 | BX12: ='Default Value References'!$H$106 -> 15 | BY12: ='Default Value References'!$H$110 -> 92 | BZ12: ='Default Value References'!$H$111 -> 95 | CA12: ='Default Value References'!$H$114 -> 70 | CB12: ='Default Value References'!$H$118 -> EF 200 | CC12: ='Default Value References'!$H$119 -> EF 67 | CD12: ='Default Value References'!$H$120 -> EF 70 | CE12: ='Default Value References'!$H$121 -> EF 82 | CF12: ='Default Value References'!$H$122 -> Wrap 5 ft | CG12: ='Default Value References'!$H$123 -> Valve | CH12: ='Default Value References'!$H$124 -> Valve & LF | CI12: ='Default Value References'!$H$125 -> Valve & TS
A13: AC | B13: Furnace | C13: Crawlspace | D13: 1 | E13: =VLOOKUP(D13,Lists!$B$3:$C$18,2,FALSE) -> 3 | F13: 2 | G13: pre78 | H13: 1990 | I13: 0.1401634192 | J13: =INDEX('Default Value References'!$G$4:$G$6,MATCH($G13,'Default Value References'!$F$4:$F$6,0),1) -> 0.00071 | K13: 0.00071 | L13: =INDEX('Default Value References'!$G$12:$G$14,MATCH($G13,'Default Value References'!$F$12:$F$14,0),1) -> 3.32 | M13: =INDEX('Default Value References'!$G$17:$G$19,MATCH($G13,'Default Value References'!$F$17:$F$19,0),1) -> 0.33 | N13: 0.2145 | O13: 0.33 | P13: 0.2145 | Q13: =SUMIFS('Default Value References'!$H$32:$H$49,'Default Value References'!$G$32:$G$49,$E13,'Default Value References'!$F$32:$F$49,$G13) -> 6.68 | R13: 6.68 | S13: =INDEX('Default Value References'!$G$53:$G$55,MATCH($G13,'Default Value References'!$F$53:$F$55,0),1) -> 1.34 | T13: =SUMIFS('Default Value References'!$H$65:$H$82,'Default Value References'!$G$65:$G$82,$E13,'Default Value References'!$F$65:$F$82,$G13) -> 0.96 | U13: =SUMIFS('Default Value References'!$H$86:$H$103,'Default Value References'!$G$86:$G$103,$E13,'Default Value References'!$F$86:$F$103,$G13) -> 1.23 | V13: =SUMIFS('Default Value References'!$I$86:$I$103,'Default Value References'!$G$86:$G$103,$E13,'Default Value References'!$F$86:$F$103,$G13) -> 0.87 | X13: ='Default Value References'!$F$106 -> 11.4 | Y13: ='Default Value References'!$F$110 -> 80 | Z13: 80 | AA13: ='Default Value References'!$F$114 -> 62 | AB13: ='Default Value References'!$F$118 -> EF 86 | AC13: ='Default Value References'!$F$119 -> EF 59 | AD13: ='Default Value References'!$F$120 -> EF 59 | AE13: ='Default Value References'!$F$121 -> EF 52 | AF13: ='Default Value References'!$F$122 -> None | AG13: ='Default Value References'!$F$123 -> None | AH13: ='Default Value References'!$F$124 -> None | AI13: ='Default Value References'!$F$125 -> None | AJ13: 0.00071 | AK13: 0.00071 | AL13: 3.32 | AM13: 0.33 | AN13: 0.2145 | AO13: 0.33 | AP13: 0.2145 | AQ13: 6.68 | AR13: 6.68 | AS13: 1.34 | AT13: 0.96 | AU13: 1.23 | AV13: 0.87 | AX13: ='Default Value References'!$G$106 -> 14 | AY13: ='Default Value References'!$G$110 -> 80 | AZ13: 80 | BA13: ='Default Value References'!$G$114 -> 66 | BB13: ='Default Value References'!$G$118 -> EF 95 | BC13: ='Default Value References'!$G$119 -> EF 60 | BD13: ='Default Value References'!$G$120 -> EF 60 | BE13: ='Default Value References'!$G$121 -> EF 74 | BF13: ='Default Value References'!$G$122 -> None | BG13: ='Default Value References'!$G$123 -> None | BH13: ='Default Value References'!$G$124 -> None | BI13: ='Default Value References'!$G$125 -> None | BJ13: =INDEX('Default Value References'!$I$4:$I$6,MATCH($G13,'Default Value References'!$F$4:$F$6,0),1) -> 0.0006035 | BK13: =INDEX('Default Value References'!$I$7:$I$9,MATCH($G13,'Default Value References'!$F$7:$F$9,0),1) -> 0.000497 | BL13: ='Default Value References'!$I$12 -> 8 | BM13: ='Default Value References'!$I$17 -> 0.1 | BN13: 0.065 | BO13: ='Default Value References'!$I$20 -> 0.05 | BP13: 0.0325 | BQ13: =INDEX('Default Value References'!$K$32:$K$47,MATCH($D13,'Default Value References'!$J$32:$J$47,0),1) -> 38 | BR13: ='Default Value References'!$K$50 -> 44 | BS13: ='Default Value References'!$I$53 -> 19 | BT13: ='Default Value References'!$J$65 -> 13 | BU13: ='Default Value References'!$L$86 -> 0.3 | BV13: ='Default Value References'!$M$86 -> 0.25 | BX13: ='Default Value References'!$H$106 -> 15 | BY13: ='Default Value References'!$H$110 -> 92 | BZ13: ='Default Value References'!$H$111 -> 95 | CA13: ='Default Value References'!$H$114 -> 70 | CB13: ='Default Value References'!$H$118 -> EF 200 | CC13: ='Default Value References'!$H$119 -> EF 67 | CD13: ='Default Value References'!$H$120 -> EF 70 | CE13: ='Default Value References'!$H$121 -> EF 82 | CF13: ='Default Value References'!$H$122 -> Wrap 5 ft | CG13: ='Default Value References'!$H$123 -> Valve | CH13: ='Default Value References'!$H$124 -> Valve & LF | CI13: ='Default Value References'!$H$125 -> Valve & TS
A14: No AC | B14: Furnace | C14: Slab-on-grade | D14: 1 | E14: =VLOOKUP(D14,Lists!$B$3:$C$18,2,FALSE) -> 3 | F14: 1 | G14: 78-92 | H14: 1810 | I14: 0.1150210084 | J14: =INDEX('Default Value References'!$G$4:$G$6,MATCH($G14,'Default Value References'!$F$4:$F$6,0),1) -> 0.00052 | K14: 0.00052 | L14: =INDEX('Default Value References'!$G$12:$G$14,MATCH($G14,'Default Value References'!$F$12:$F$14,0),1) -> 3.67 | M14: =INDEX('Default Value References'!$G$17:$G$19,MATCH($G14,'Default Value References'!$F$17:$F$19,0),1) -> 0.26 | N14: 0.195 | O14: 0.26 | P14: 0.195 | Q14: =SUMIFS('Default Value References'!$H$32:$H$49,'Default Value References'!$G$32:$G$49,$E14,'Default Value References'!$F$32:$F$49,$G14) -> 10.31 | R14: 10.31 | S14: =INDEX('Default Value References'!$G$53:$G$55,MATCH($G14,'Default Value References'!$F$53:$F$55,0),1) -> 5.96 | T14: =SUMIFS('Default Value References'!$H$65:$H$82,'Default Value References'!$G$65:$G$82,$E14,'Default Value References'!$F$65:$F$82,$G14) -> 10.25 | U14: =SUMIFS('Default Value References'!$H$86:$H$103,'Default Value References'!$G$86:$G$103,$E14,'Default Value References'!$F$86:$F$103,$G14) -> 0.82 | V14: =SUMIFS('Default Value References'!$I$86:$I$103,'Default Value References'!$G$86:$G$103,$E14,'Default Value References'!$F$86:$F$103,$G14) -> 0.79 | X14: ='Default Value References'!$F$106 -> 11.4 | Y14: ='Default Value References'!$F$110 -> 80 | Z14: 80 | AA14: ='Default Value References'!$F$114 -> 62 | AB14: ='Default Value References'!$F$118 -> EF 86 | AC14: ='Default Value References'!$F$119 -> EF 59 | AD14: ='Default Value References'!$F$120 -> EF 59 | AE14: ='Default Value References'!$F$121 -> EF 52 | AF14: ='Default Value References'!$F$122 -> None | AG14: ='Default Value References'!$F$123 -> None | AH14: ='Default Value References'!$F$124 -> None | AI14: ='Default Value References'!$F$125 -> None | AJ14: 0.00052 | AK14: 0.00052 | AL14: 3.67 | AM14: 0.26 | AN14: 0.195 | AO14: 0.26 | AP14: 0.195 | AQ14: 10.31 | AR14: 10.31 | AS14: 5.96 | AT14: 10.25 | AU14: 0.82 | AV14: 0.79 | AX14: ='Default Value References'!$G$106 -> 14 | AY14: ='Default Value References'!$G$110 -> 80 | AZ14: 80 | BA14: ='Default Value References'!$G$114 -> 66 | BB14: ='Default Value References'!$G$118 -> EF 95 | BC14: ='Default Value References'!$G$119 -> EF 60 | BD14: ='Default Value References'!$G$120 -> EF 60 | BE14: ='Default Value References'!$G$121 -> EF 74 | BF14: ='Default Value References'!$G$122 -> None | BG14: ='Default Value References'!$G$123 -> None | BH14: ='Default Value References'!$G$124 -> None | BI14: ='Default Value References'!$G$125 -> None | BJ14: =INDEX('Default Value References'!$I$4:$I$6,MATCH($G14,'Default Value References'!$F$4:$F$6,0),1) -> 0.000442 | BK14: =INDEX('Default Value References'!$I$7:$I$9,MATCH($G14,'Default Value References'!$F$7:$F$9,0),1) -> 0.000364 | BL14: ='Default Value References'!$I$12 -> 8 | BM14: ='Default Value References'!$I$17 -> 0.1 | BN14: 0.075 | BO14: ='Default Value References'!$I$20 -> 0.05 | BP14: 0.0375 | BQ14: =INDEX('Default Value References'!$K$32:$K$47,MATCH($D14,'Default Value References'!$J$32:$J$47,0),1) -> 38 | BR14: ='Default Value References'!$K$50 -> 44 | BS14: ='Default Value References'!$I$53 -> 19 | BT14: ='Default Value References'!$J$65 -> 13 | BU14: ='Default Value References'!$L$86 -> 0.3 | BV14: ='Default Value References'!$M$86 -> 0.25 | BX14: ='Default Value References'!$H$106 -> 15 | BY14: ='Default Value References'!$H$110 -> 92 | BZ14: ='Default Value References'!$H$111 -> 95 | CA14: ='Default Value References'!$H$114 -> 70 | CB14: ='Default Value References'!$H$118 -> EF 200 | CC14: ='Default Value References'!$H$119 -> EF 67 | CD14: ='Default Value References'!$H$120 -> EF 70 | CE14: ='Default Value References'!$H$121 -> EF 82 | CF14: ='Default Value References'!$H$122 -> Wrap 5 ft | CG14: ='Default Value References'!$H$123 -> Valve | CH14: ='Default Value References'!$H$124 -> Valve & LF | CI14: ='Default Value References'!$H$125 -> Valve & TS
A15: No AC | B15: Furnace | C15: Slab-on-grade | D15: 1 | E15: =VLOOKUP(D15,Lists!$B$3:$C$18,2,FALSE) -> 3 | F15: 2 | G15: 78-92 | H15: 2400 | I15: 0.1150210084 | J15: =INDEX('Default Value References'!$G$4:$G$6,MATCH($G15,'Default Value References'!$F$4:$F$6,0),1) -> 0.00052 | K15: 0.00052 | L15: =INDEX('Default Value References'!$G$12:$G$14,MATCH($G15,'Default Value References'!$F$12:$F$14,0),1) -> 3.67 | M15: =INDEX('Default Value References'!$G$17:$G$19,MATCH($G15,'Default Value References'!$F$17:$F$19,0),1) -> 0.26 | N15: 0.169 | O15: 0.26 | P15: 0.169 | Q15: =SUMIFS('Default Value References'!$H$32:$H$49,'Default Value References'!$G$32:$G$49,$E15,'Default Value References'!$F$32:$F$49,$G15) -> 10.31 | R15: 10.31 | S15: =INDEX('Default Value References'!$G$53:$G$55,MATCH($G15,'Default Value References'!$F$53:$F$55,0),1) -> 5.96 | T15: =SUMIFS('Default Value References'!$H$65:$H$82,'Default Value References'!$G$65:$G$82,$E15,'Default Value References'!$F$65:$F$82,$G15) -> 10.25 | U15: =SUMIFS('Default Value References'!$H$86:$H$103,'Default Value References'!$G$86:$G$103,$E15,'Default Value References'!$F$86:$F$103,$G15) -> 0.82 | V15: =SUMIFS('Default Value References'!$I$86:$I$103,'Default Value References'!$G$86:$G$103,$E15,'Default Value References'!$F$86:$F$103,$G15) -> 0.79 | X15: ='Default Value References'!$F$106 -> 11.4 | Y15: ='Default Value References'!$F$110 -> 80 | Z15: 80 | AA15: ='Default Value References'!$F$114 -> 62 | AB15: ='Default Value References'!$F$118 -> EF 86 | AC15: ='Default Value References'!$F$119 -> EF 59 | AD15: ='Default Value References'!$F$120 -> EF 59 | AE15: ='Default Value References'!$F$121 -> EF 52 | AF15: ='Default Value References'!$F$122 -> None | AG15: ='Default Value References'!$F$123 -> None | AH15: ='Default Value References'!$F$124 -> None | AI15: ='Default Value References'!$F$125 -> None | AJ15: 0.00052 | AK15: 0.00052 | AL15: 3.67 | AM15: 0.26 | AN15: 0.169 | AO15: 0.26 | AP15: 0.169 | AQ15: 10.31 | AR15: 10.31 | AS15: 5.96 | AT15: 10.25 | AU15: 0.82 | AV15: 0.79 | AX15: ='Default Value References'!$G$106 -> 14 | AY15: ='Default Value References'!$G$110 -> 80 | AZ15: 80 | BA15: ='Default Value References'!$G$114 -> 66 | BB15: ='Default Value References'!$G$118 -> EF 95 | BC15: ='Default Value References'!$G$119 -> EF 60 | BD15: ='Default Value References'!$G$120 -> EF 60 | BE15: ='Default Value References'!$G$121 -> EF 74 | BF15: ='Default Value References'!$G$122 -> None | BG15: ='Default Value References'!$G$123 -> None | BH15: ='Default Value References'!$G$124 -> None | BI15: ='Default Value References'!$G$125 -> None | BJ15: =INDEX('Default Value References'!$I$4:$I$6,MATCH($G15,'Default Value References'!$F$4:$F$6,0),1) -> 0.000442 | BK15: =INDEX('Default Value References'!$I$7:$I$9,MATCH($G15,'Default Value References'!$F$7:$F$9,0),1) -> 0.000364 | BL15: ='Default Value References'!$I$12 -> 8 | BM15: ='Default Value References'!$I$17 -> 0.1 | BN15: 0.065 | BO15: ='Default Value References'!$I$20 -> 0.05 | BP15: 0.0325 | BQ15: =INDEX('Default Value References'!$K$32:$K$47,MATCH($D15,'Default Value References'!$J$32:$J$47,0),1) -> 38 | BR15: ='Default Value References'!$K$50 -> 44 | BS15: ='Default Value References'!$I$53 -> 19 | BT15: ='Default Value References'!$J$65 -> 13 | BU15: ='Default Value References'!$L$86 -> 0.3 | BV15: ='Default Value References'!$M$86 -> 0.25 | BX15: ='Default Value References'!$H$106 -> 15 | BY15: ='Default Value References'!$H$110 -> 92 | BZ15: ='Default Value References'!$H$111 -> 95 | CA15: ='Default Value References'!$H$114 -> 70 | CB15: ='Default Value References'!$H$118 -> EF 200 | CC15: ='Default Value References'!$H$119 -> EF 67 | CD15: ='Default Value References'!$H$120 -> EF 70 | CE15: ='Default Value References'!$H$121 -> EF 82 | CF15: ='Default Value References'!$H$122 -> Wrap 5 ft | CG15: ='Default Value References'!$H$123 -> Valve | CH15: ='Default Value References'!$H$124 -> Valve & LF | CI15: ='Default Value References'!$H$125 -> Valve & TS
A16: AC | B16: Furnace | C16: Slab-on-grade | D16: 1 | E16: =VLOOKUP(D16,Lists!$B$3:$C$18,2,FALSE) -> 3 | F16: 1 | G16: 78-92 | H16: 1810 | I16: 0.1150210084 | J16: =INDEX('Default Value References'!$G$4:$G$6,MATCH($G16,'Default Value References'!$F$4:$F$6,0),1) -> 0.00052 | K16: 0.00052 | L16: =INDEX('Default Value References'!$G$12:$G$14,MATCH($G16,'Default Value References'!$F$12:$F$14,0),1) -> 3.67 | M16: =INDEX('Default Value References'!$G$17:$G$19,MATCH($G16,'Default Value References'!$F$17:$F$19,0),1) -> 0.26 | N16: 0.195 | O16: 0.26 | P16: 0.195 | Q16: =SUMIFS('Default Value References'!$H$32:$H$49,'Default Value References'!$G$32:$G$49,$E16,'Default Value References'!$F$32:$F$49,$G16) -> 10.31 | R16: 10.31 | S16: =INDEX('Default Value References'!$G$53:$G$55,MATCH($G16,'Default Value References'!$F$53:$F$55,0),1) -> 5.96 | T16: =SUMIFS('Default Value References'!$H$65:$H$82,'Default Value References'!$G$65:$G$82,$E16,'Default Value References'!$F$65:$F$82,$G16) -> 10.25 | U16: =SUMIFS('Default Value References'!$H$86:$H$103,'Default Value References'!$G$86:$G$103,$E16,'Default Value References'!$F$86:$F$103,$G16) -> 0.82 | V16: =SUMIFS('Default Value References'!$I$86:$I$103,'Default Value References'!$G$86:$G$103,$E16,'Default Value References'!$F$86:$F$103,$G16) -> 0.79 | X16: ='Default Value References'!$F$106 -> 11.4 | Y16: ='Default Value References'!$F$110 -> 80 | Z16: 80 | AA16: ='Default Value References'!$F$114 -> 62 | AB16: ='Default Value References'!$F$118 -> EF 86 | AC16: ='Default Value References'!$F$119 -> EF 59 | AD16: ='Default Value References'!$F$120 -> EF 59 | AE16: ='Default Value References'!$F$121 -> EF 52 | AF16: ='Default Value References'!$F$122 -> None | AG16: ='Default Value References'!$F$123 -> None | AH16: ='Default Value References'!$F$124 -> None | AI16: ='Default Value References'!$F$125 -> None | AJ16: 0.00052 | AK16: 0.00052 | AL16: 3.67 | AM16: 0.26 | AN16: 0.195 | AO16: 0.26 | AP16: 0.195 | AQ16: 10.31 | AR16: 10.31 | AS16: 5.96 | AT16: 10.25 | AU16: 0.82 | AV16: 0.79 | AX16: ='Default Value References'!$G$106 -> 14 | AY16: ='Default Value References'!$G$110 -> 80 | AZ16: 80 | BA16: ='Default Value References'!$G$114 -> 66 | BB16: ='Default Value References'!$G$118 -> EF 95 | BC16: ='Default Value References'!$G$119 -> EF 60 | BD16: ='Default Value References'!$G$120 -> EF 60 | BE16: ='Default Value References'!$G$121 -> EF 74 | BF16: ='Default Value References'!$G$122 -> None | BG16: ='Default Value References'!$G$123 -> None | BH16: ='Default Value References'!$G$124 -> None | BI16: ='Default Value References'!$G$125 -> None | BJ16: =INDEX('Default Value References'!$I$4:$I$6,MATCH($G16,'Default Value References'!$F$4:$F$6,0),1) -> 0.000442 | BK16: =INDEX('Default Value References'!$I$7:$I$9,MATCH($G16,'Default Value References'!$F$7:$F$9,0),1) -> 0.000364 | BL16: ='Default Value References'!$I$12 -> 8 | BM16: ='Default Value References'!$I$17 -> 0.1 | BN16: 0.075 | BO16: ='Default Value References'!$I$20 -> 0.05 | BP16: 0.0375 | BQ16: =INDEX('Default Value References'!$K$32:$K$47,MATCH($D16,'Default Value References'!$J$32:$J$47,0),1) -> 38 | BR16: ='Default Value References'!$K$50 -> 44 | BS16: ='Default Value References'!$I$53 -> 19 | BT16: ='Default Value References'!$J$65 -> 13 | BU16: ='Default Value References'!$L$86 -> 0.3 | BV16: ='Default Value References'!$M$86 -> 0.25 | BX16: ='Default Value References'!$H$106 -> 15 | BY16: ='Default Value References'!$H$110 -> 92 | BZ16: ='Default Value References'!$H$111 -> 95 | CA16: ='Default Value References'!$H$114 -> 70 | CB16: ='Default Value References'!$H$118 -> EF 200 | CC16: ='Default Value References'!$H$119 -> EF 67 | CD16: ='Default Value References'!$H$120 -> EF 70 | CE16: ='Default Value References'!$H$121 -> EF 82 | CF16: ='Default Value References'!$H$122 -> Wrap 5 ft | CG16: ='Default Value References'!$H$123 -> Valve | CH16: ='Default Value References'!$H$124 -> Valve & LF | CI16: ='Default Value References'!$H$125 -> Valve & TS
A17: AC | B17: Furnace | C17: Slab-on-grade | D17: 1 | E17: =VLOOKUP(D17,Lists!$B$3:$C$18,2,FALSE) -> 3 | F17: 2 | G17: 78-92 | H17: 2400 | I17: 0.1150210084 | J17: =INDEX('Default Value References'!$G$4:$G$6,MATCH($G17,'Default Value References'!$F$4:$F$6,0),1) -> 0.00052 | K17: 0.00052 | L17: =INDEX('Default Value References'!$G$12:$G$14,MATCH($G17,'Default Value References'!$F$12:$F$14,0),1) -> 3.67 | M17: =INDEX('Default Value References'!$G$17:$G$19,MATCH($G17,'Default Value References'!$F$17:$F$19,0),1) -> 0.26 | N17: 0.169 | O17: 0.26 | P17: 0.169 | Q17: =SUMIFS('Default Value References'!$H$32:$H$49,'Default Value References'!$G$32:$G$49,$E17,'Default Value References'!$F$32:$F$49,$G17) -> 10.31 | R17: 10.31 | S17: =INDEX('Default Value References'!$G$53:$G$55,MATCH($G17,'Default Value References'!$F$53:$F$55,0),1) -> 5.96 | T17: =SUMIFS('Default Value References'!$H$65:$H$82,'Default Value References'!$G$65:$G$82,$E17,'Default Value References'!$F$65:$F$82,$G17) -> 10.25 | U17: =SUMIFS('Default Value References'!$H$86:$H$103,'Default Value References'!$G$86:$G$103,$E17,'Default Value References'!$F$86:$F$103,$G17) -> 0.82 | V17: =SUMIFS('Default Value References'!$I$86:$I$103,'Default Value References'!$G$86:$G$103,$E17,'Default Value References'!$F$86:$F$103,$G17) -> 0.79 | X17: ='Default Value References'!$F$106 -> 11.4 | Y17: ='Default Value References'!$F$110 -> 80 | Z17: 80 | AA17: ='Default Value References'!$F$114 -> 62 | AB17: ='Default Value References'!$F$118 -> EF 86 | AC17: ='Default Value References'!$F$119 -> EF 59 | AD17: ='Default Value References'!$F$120 -> EF 59 | AE17: ='Default Value References'!$F$121 -> EF 52 | AF17: ='Default Value References'!$F$122 -> None | AG17: ='Default Value References'!$F$123 -> None | AH17: ='Default Value References'!$F$124 -> None | AI17: ='Default Value References'!$F$125 -> None | AJ17: 0.00052 | AK17: 0.00052 | AL17: 3.67 | AM17: 0.26 | AN17: 0.169 | AO17: 0.26 | AP17: 0.169 | AQ17: 10.31 | AR17: 10.31 | AS17: 5.96 | AT17: 10.25 | AU17: 0.82 | AV17: 0.79 | AX17: ='Default Value References'!$G$106 -> 14 | AY17: ='Default Value References'!$G$110 -> 80 | AZ17: 80 | BA17: ='Default Value References'!$G$114 -> 66 | BB17: ='Default Value References'!$G$118 -> EF 95 | BC17: ='Default Value References'!$G$119 -> EF 60 | BD17: ='Default Value References'!$G$120 -> EF 60 | BE17: ='Default Value References'!$G$121 -> EF 74 | BF17: ='Default Value References'!$G$122 -> None | BG17: ='Default Value References'!$G$123 -> None | BH17: ='Default Value References'!$G$124 -> None | BI17: ='Default Value References'!$G$125 -> None | BJ17: =INDEX('Default Value References'!$I$4:$I$6,MATCH($G17,'Default Value References'!$F$4:$F$6,0),1) -> 0.000442 | BK17: =INDEX('Default Value References'!$I$7:$I$9,MATCH($G17,'Default Value References'!$F$7:$F$9,0),1) -> 0.000364 | BL17: ='Default Value References'!$I$12 -> 8 | BM17: ='Default Value References'!$I$17 -> 0.1 | BN17: 0.065 | BO17: ='Default Value References'!$I$20 -> 0.05 | BP17: 0.0325 | BQ17: =INDEX('Default Value References'!$K$32:$K$47,MATCH($D17,'Default Value References'!$J$32:$J$47,0),1) -> 38 | BR17: ='Default Value References'!$K$50 -> 44 | BS17: ='Default Value References'!$I$53 -> 19 | BT17: ='Default Value References'!$J$65 -> 13 | BU17: ='Default Value References'!$L$86 -> 0.3 | BV17: ='Default Value References'!$M$86 -> 0.25 | BX17: ='Default Value References'!$H$106 -> 15 | BY17: ='Default Value References'!$H$110 -> 92 | BZ17: ='Default Value References'!$H$111 -> 95 | CA17: ='Default Value References'!$H$114 -> 70 | CB17: ='Default Value References'!$H$118 -> EF 200 | CC17: ='Default Value References'!$H$119 -> EF 67 | CD17: ='Default Value References'!$H$120 -> EF 70 | CE17: ='Default Value References'!$H$121 -> EF 82 | CF17: ='Default Value References'!$H$122 -> Wrap 5 ft | CG17: ='Default Value References'!$H$123 -> Valve | CH17: ='Default Value References'!$H$124 -> Valve & LF | CI17: ='Default Value References'!$H$125 -> Valve & TS
A18: No AC | B18: Furnace | C18: Crawlspace | D18: 1 | E18: =VLOOKUP(D18,Lists!$B$3:$C$18,2,FALSE) -> 3 | F18: 1 | G18: 78-92 | H18: 1810 | I18: 0.1150210084 | J18: =INDEX('Default Value References'!$G$4:$G$6,MATCH($G18,'Default Value References'!$F$4:$F$6,0),1) -> 0.00052 | K18: 0.00052 | L18: =INDEX('Default Value References'!$G$12:$G$14,MATCH($G18,'Default Value References'!$F$12:$F$14,0),1) -> 3.67 | M18: =INDEX('Default Value References'!$G$17:$G$19,MATCH($G18,'Default Value References'!$F$17:$F$19,0),1) -> 0.26 | N18: 0.195 | O18: 0.26 | P18: 0.195 | Q18: =SUMIFS('Default Value References'!$H$32:$H$49,'Default Value References'!$G$32:$G$49,$E18,'Default Value References'!$F$32:$F$49,$G18) -> 10.31 | R18: 10.31 | S18: =INDEX('Default Value References'!$G$53:$G$55,MATCH($G18,'Default Value References'!$F$53:$F$55,0),1) -> 5.96 | T18: =SUMIFS('Default Value References'!$H$65:$H$82,'Default Value References'!$G$65:$G$82,$E18,'Default Value References'!$F$65:$F$82,$G18) -> 10.25 | U18: =SUMIFS('Default Value References'!$H$86:$H$103,'Default Value References'!$G$86:$G$103,$E18,'Default Value References'!$F$86:$F$103,$G18) -> 0.82 | V18: =SUMIFS('Default Value References'!$I$86:$I$103,'Default Value References'!$G$86:$G$103,$E18,'Default Value References'!$F$86:$F$103,$G18) -> 0.79 | X18: ='Default Value References'!$F$106 -> 11.4 | Y18: ='Default Value References'!$F$110 -> 80 | Z18: 80 | AA18: ='Default Value References'!$F$114 -> 62 | AB18: ='Default Value References'!$F$118 -> EF 86 | AC18: ='Default Value References'!$F$119 -> EF 59 | AD18: ='Default Value References'!$F$120 -> EF 59 | AE18: ='Default Value References'!$F$121 -> EF 52 | AF18: ='Default Value References'!$F$122 -> None | AG18: ='Default Value References'!$F$123 -> None | AH18: ='Default Value References'!$F$124 -> None | AI18: ='Default Value References'!$F$125 -> None | AJ18: 0.00052 | AK18: 0.00052 | AL18: 3.67 | AM18: 0.26 | AN18: 0.195 | AO18: 0.26 | AP18: 0.195 | AQ18: 10.31 | AR18: 10.31 | AS18: 5.96 | AT18: 10.25 | AU18: 0.82 | AV18: 0.79 | AX18: ='Default Value References'!$G$106 -> 14 | AY18: ='Default Value References'!$G$110 -> 80 | AZ18: 80 | BA18: ='Default Value References'!$G$114 -> 66 | BB18: ='Default Value References'!$G$118 -> EF 95 | BC18: ='Default Value References'!$G$119 -> EF 60 | BD18: ='Default Value References'!$G$120 -> EF 60 | BE18: ='Default Value References'!$G$121 -> EF 74 | BF18: ='Default Value References'!$G$122 -> None | BG18: ='Default Value References'!$G$123 -> None | BH18: ='Default Value References'!$G$124 -> None | BI18: ='Default Value References'!$G$125 -> None | BJ18: =INDEX('Default Value References'!$I$4:$I$6,MATCH($G18,'Default Value References'!$F$4:$F$6,0),1) -> 0.000442 | BK18: =INDEX('Default Value References'!$I$7:$I$9,MATCH($G18,'Default Value References'!$F$7:$F$9,0),1) -> 0.000364 | BL18: ='Default Value References'!$I$12 -> 8 | BM18: ='Default Value References'!$I$17 -> 0.1 | BN18: 0.075 | BO18: ='Default Value References'!$I$20 -> 0.05 | BP18: 0.0375 | BQ18: =INDEX('Default Value References'!$K$32:$K$47,MATCH($D18,'Default Value References'!$J$32:$J$47,0),1) -> 38 | BR18: ='Default Value References'!$K$50 -> 44 | BS18: ='Default Value References'!$I$53 -> 19 | BT18: ='Default Value References'!$J$65 -> 13 | BU18: ='Default Value References'!$L$86 -> 0.3 | BV18: ='Default Value References'!$M$86 -> 0.25 | BX18: ='Default Value References'!$H$106 -> 15 | BY18: ='Default Value References'!$H$110 -> 92 | BZ18: ='Default Value References'!$H$111 -> 95 | CA18: ='Default Value References'!$H$114 -> 70 | CB18: ='Default Value References'!$H$118 -> EF 200 | CC18: ='Default Value References'!$H$119 -> EF 67 | CD18: ='Default Value References'!$H$120 -> EF 70 | CE18: ='Default Value References'!$H$121 -> EF 82 | CF18: ='Default Value References'!$H$122 -> Wrap 5 ft | CG18: ='Default Value References'!$H$123 -> Valve | CH18: ='Default Value References'!$H$124 -> Valve & LF | CI18: ='Default Value References'!$H$125 -> Valve & TS
A19: No AC | B19: Furnace | C19: Crawlspace | D19: 1 | E19: =VLOOKUP(D19,Lists!$B$3:$C$18,2,FALSE) -> 3 | F19: 2 | G19: 78-92 | H19: 2400 | I19: 0.1150210084 | J19: =INDEX('Default Value References'!$G$4:$G$6,MATCH($G19,'Default Value References'!$F$4:$F$6,0),1) -> 0.00052 | K19: 0.00052 | L19: =INDEX('Default Value References'!$G$12:$G$14,MATCH($G19,'Default Value References'!$F$12:$F$14,0),1) -> 3.67 | M19: =INDEX('Default Value References'!$G$17:$G$19,MATCH($G19,'Default Value References'!$F$17:$F$19,0),1) -> 0.26 | N19: 0.169 | O19: 0.26 | P19: 0.169 | Q19: =SUMIFS('Default Value References'!$H$32:$H$49,'Default Value References'!$G$32:$G$49,$E19,'Default Value References'!$F$32:$F$49,$G19) -> 10.31 | R19: 10.31 | S19: =INDEX('Default Value References'!$G$53:$G$55,MATCH($G19,'Default Value References'!$F$53:$F$55,0),1) -> 5.96 | T19: =SUMIFS('Default Value References'!$H$65:$H$82,'Default Value References'!$G$65:$G$82,$E19,'Default Value References'!$F$65:$F$82,$G19) -> 10.25 | U19: =SUMIFS('Default Value References'!$H$86:$H$103,'Default Value References'!$G$86:$G$103,$E19,'Default Value References'!$F$86:$F$103,$G19) -> 0.82 | V19: =SUMIFS('Default Value References'!$I$86:$I$103,'Default Value References'!$G$86:$G$103,$E19,'Default Value References'!$F$86:$F$103,$G19) -> 0.79 | X19: ='Default Value References'!$F$106 -> 11.4 | Y19: ='Default Value References'!$F$110 -> 80 | Z19: 80 | AA19: ='Default Value References'!$F$114 -> 62 | AB19: ='Default Value References'!$F$118 -> EF 86 | AC19: ='Default Value References'!$F$119 -> EF 59 | AD19: ='Default Value References'!$F$120 -> EF 59 | AE19: ='Default Value References'!$F$121 -> EF 52 | AF19: ='Default Value References'!$F$122 -> None | AG19: ='Default Value References'!$F$123 -> None | AH19: ='Default Value References'!$F$124 -> None | AI19: ='Default Value References'!$F$125 -> None | AJ19: 0.00052 | AK19: 0.00052 | AL19: 3.67 | AM19: 0.26 | AN19: 0.169 | AO19: 0.26 | AP19: 0.169 | AQ19: 10.31 | AR19: 10.31 | AS19: 5.96 | AT19: 10.25 | AU19: 0.82 | AV19: 0.79 | AX19: ='Default Value References'!$G$106 -> 14 | AY19: ='Default Value References'!$G$110 -> 80 | AZ19: 80 | BA19: ='Default Value References'!$G$114 -> 66 | BB19: ='Default Value References'!$G$118 -> EF 95 | BC19: ='Default Value References'!$G$119 -> EF 60 | BD19: ='Default Value References'!$G$120 -> EF 60 | BE19: ='Default Value References'!$G$121 -> EF 74 | BF19: ='Default Value References'!$G$122 -> None | BG19: ='Default Value References'!$G$123 -> None | BH19: ='Default Value References'!$G$124 -> None | BI19: ='Default Value References'!$G$125 -> None | BJ19: =INDEX('Default Value References'!$I$4:$I$6,MATCH($G19,'Default Value References'!$F$4:$F$6,0),1) -> 0.000442 | BK19: =INDEX('Default Value References'!$I$7:$I$9,MATCH($G19,'Default Value References'!$F$7:$F$9,0),1) -> 0.000364 | BL19: ='Default Value References'!$I$12 -> 8 | BM19: ='Default Value References'!$I$17 -> 0.1 | BN19: 0.065 | BO19: ='Default Value References'!$I$20 -> 0.05 | BP19: 0.0325 | BQ19: =INDEX('Default Value References'!$K$32:$K$47,MATCH($D19,'Default Value References'!$J$32:$J$47,0),1) -> 38 | BR19: ='Default Value References'!$K$50 -> 44 | BS19: ='Default Value References'!$I$53 -> 19 | BT19: ='Default Value References'!$J$65 -> 13 | BU19: ='Default Value References'!$L$86 -> 0.3 | BV19: ='Default Value References'!$M$86 -> 0.25 | BX19: ='Default Value References'!$H$106 -> 15 | BY19: ='Default Value References'!$H$110 -> 92 | BZ19: ='Default Value References'!$H$111 -> 95 | CA19: ='Default Value References'!$H$114 -> 70 | CB19: ='Default Value References'!$H$118 -> EF 200 | CC19: ='Default Value References'!$H$119 -> EF 67 | CD19: ='Default Value References'!$H$120 -> EF 70 | CE19: ='Default Value References'!$H$121 -> EF 82 | CF19: ='Default Value References'!$H$122 -> Wrap 5 ft | CG19: ='Default Value References'!$H$123 -> Valve | CH19: ='Default Value References'!$H$124 -> Valve & LF | CI19: ='Default Value References'!$H$125 -> Valve & TS
A20: AC | B20: Furnace | C20: Crawlspace | D20: 1 | E20: =VLOOKUP(D20,Lists!$B$3:$C$18,2,FALSE) -> 3 | F20: 1 | G20: 78-92 | H20: 1810 | I20: 0.1150210084 | J20: =INDEX('Default Value References'!$G$4:$G$6,MATCH($G20,'Default Value References'!$F$4:$F$6,0),1) -> 0.00052 | K20: 0.00052 | L20: =INDEX('Default Value References'!$G$12:$G$14,MATCH($G20,'Default Value References'!$F$12:$F$14,0),1) -> 3.67 | M20: =INDEX('Default Value References'!$G$17:$G$19,MATCH($G20,'Default Value References'!$F$17:$F$19,0),1) -> 0.26 | N20: 0.195 | O20: 0.26 | P20: 0.195 | Q20: =SUMIFS('Default Value References'!$H$32:$H$49,'Default Value References'!$G$32:$G$49,$E20,'Default Value References'!$F$32:$F$49,$G20) -> 10.31 | R20: 10.31 | S20: =INDEX('Default Value References'!$G$53:$G$55,MATCH($G20,'Default Value References'!$F$53:$F$55,0),1) -> 5.96 | T20: =SUMIFS('Default Value References'!$H$65:$H$82,'Default Value References'!$G$65:$G$82,$E20,'Default Value References'!$F$65:$F$82,$G20) -> 10.25 | U20: =SUMIFS('Default Value References'!$H$86:$H$103,'Default Value References'!$G$86:$G$103,$E20,'Default Value References'!$F$86:$F$103,$G20) -> 0.82 | V20: =SUMIFS('Default Value References'!$I$86:$I$103,'Default Value References'!$G$86:$G$103,$E20,'Default Value References'!$F$86:$F$103,$G20) -> 0.79 | X20: ='Default Value References'!$F$106 -> 11.4 | Y20: ='Default Value References'!$F$110 -> 80 | Z20: 80 | AA20: ='Default Value References'!$F$114 -> 62 | AB20: ='Default Value References'!$F$118 -> EF 86 | AC20: ='Default Value References'!$F$119 -> EF 59 | AD20: ='Default Value References'!$F$120 -> EF 59 | AE20: ='Default Value References'!$F$121 -> EF 52 | AF20: ='Default Value References'!$F$122 -> None | AG20: ='Default Value References'!$F$123 -> None | AH20: ='Default Value References'!$F$124 -> None | AI20: ='Default Value References'!$F$125 -> None | AJ20: 0.00052 | AK20: 0.00052 | AL20: 3.67 | AM20: 0.26 | AN20: 0.195 | AO20: 0.26 | AP20: 0.195 | AQ20: 10.31 | AR20: 10.31 | AS20: 5.96 | AT20: 10.25 | AU20: 0.82 | AV20: 0.79 | AX20: ='Default Value References'!$G$106 -> 14 | AY20: ='Default Value References'!$G$110 -> 80 | AZ20: 80 | BA20: ='Default Value References'!$G$114 -> 66 | BB20: ='Default Value References'!$G$118 -> EF 95 | BC20: ='Default Value References'!$G$119 -> EF 60 | BD20: ='Default Value References'!$G$120 -> EF 60 | BE20: ='Default Value References'!$G$121 -> EF 74 | BF20: ='Default Value References'!$G$122 -> None | BG20: ='Default Value References'!$G$123 -> None | BH20: ='Default Value References'!$G$124 -> None | BI20: ='Default Value References'!$G$125 -> None | BJ20: =INDEX('Default Value References'!$I$4:$I$6,MATCH($G20,'Default Value References'!$F$4:$F$6,0),1) -> 0.000442 | BK20: =INDEX('Default Value References'!$I$7:$I$9,MATCH($G20,'Default Value References'!$F$7:$F$9,0),1) -> 0.000364 | BL20: ='Default Value References'!$I$12 -> 8 | BM20: ='Default Value References'!$I$17 -> 0.1 | BN20: 0.075 | BO20: ='Default Value References'!$I$20 -> 0.05 | BP20: 0.0375 | BQ20: =INDEX('Default Value References'!$K$32:$K$47,MATCH($D20,'Default Value References'!$J$32:$J$47,0),1) -> 38 | BR20: ='Default Value References'!$K$50 -> 44 | BS20: ='Default Value References'!$I$53 -> 19 | BT20: ='Default Value References'!$J$65 -> 13 | BU20: ='Default Value References'!$L$86 -> 0.3 | BV20: ='Default Value References'!$M$86 -> 0.25 | BX20: ='Default Value References'!$H$106 -> 15 | BY20: ='Default Value References'!$H$110 -> 92 | BZ20: ='Default Value References'!$H$111 -> 95 | CA20: ='Default Value References'!$H$114 -> 70 | CB20: ='Default Value References'!$H$118 -> EF 200 | CC20: ='Default Value References'!$H$119 -> EF 67 | CD20: ='Default Value References'!$H$120 -> EF 70 | CE20: ='Default Value References'!$H$121 -> EF 82 | CF20: ='Default Value References'!$H$122 -> Wrap 5 ft | CG20: ='Default Value References'!$H$123 -> Valve | CH20: ='Default Value References'!$H$124 -> Valve & LF | CI20: ='Default Value References'!$H$125 -> Valve & TS
A21: AC | B21: Furnace | C21: Crawlspace | D21: 1 | E21: =VLOOKUP(D21,Lists!$B$3:$C$18,2,FALSE) -> 3 | F21: 2 | G21: 78-92 | H21: 2400 | I21: 0.1150210084 | J21: =INDEX('Default Value References'!$G$4:$G$6,MATCH($G21,'Default Value References'!$F$4:$F$6,0),1) -> 0.00052 | K21: 0.00052 | L21: =INDEX('Default Value References'!$G$12:$G$14,MATCH($G21,'Default Value References'!$F$12:$F$14,0),1) -> 3.67 | M21: =INDEX('Default Value References'!$G$17:$G$19,MATCH($G21,'Default Value References'!$F$17:$F$19,0),1) -> 0.26 | N21: 0.169 | O21: 0.26 | P21: 0.169 | Q21: =SUMIFS('Default Value References'!$H$32:$H$49,'Default Value References'!$G$32:$G$49,$E21,'Default Value References'!$F$32:$F$49,$G21) -> 10.31 | R21: 10.31 | S21: =INDEX('Default Value References'!$G$53:$G$55,MATCH($G21,'Default Value References'!$F$53:$F$55,0),1) -> 5.96 | T21: =SUMIFS('Default Value References'!$H$65:$H$82,'Default Value References'!$G$65:$G$82,$E21,'Default Value References'!$F$65:$F$82,$G21) -> 10.25 | U21: =SUMIFS('Default Value References'!$H$86:$H$103,'Default Value References'!$G$86:$G$103,$E21,'Default Value References'!$F$86:$F$103,$G21) -> 0.82 | V21: =SUMIFS('Default Value References'!$I$86:$I$103,'Default Value References'!$G$86:$G$103,$E21,'Default Value References'!$F$86:$F$103,$G21) -> 0.79 | X21: ='Default Value References'!$F$106 -> 11.4 | Y21: ='Default Value References'!$F$110 -> 80 | Z21: 80 | AA21: ='Default Value References'!$F$114 -> 62 | AB21: ='Default Value References'!$F$118 -> EF 86 | AC21: ='Default Value References'!$F$119 -> EF 59 | AD21: ='Default Value References'!$F$120 -> EF 59 | AE21: ='Default Value References'!$F$121 -> EF 52 | AF21: ='Default Value References'!$F$122 -> None | AG21: ='Default Value References'!$F$123 -> None | AH21: ='Default Value References'!$F$124 -> None | AI21: ='Default Value References'!$F$125 -> None | AJ21: 0.00052 | AK21: 0.00052 | AL21: 3.67 | AM21: 0.26 | AN21: 0.169 | AO21: 0.26 | AP21: 0.169 | AQ21: 10.31 | AR21: 10.31 | AS21: 5.96 | AT21: 10.25 | AU21: 0.82 | AV21: 0.79 | AX21: ='Default Value References'!$G$106 -> 14 | AY21: ='Default Value References'!$G$110 -> 80 | AZ21: 80 | BA21: ='Default Value References'!$G$114 -> 66 | BB21: ='Default Value References'!$G$118 -> EF 95 | BC21: ='Default Value References'!$G$119 -> EF 60 | BD21: ='Default Value References'!$G$120 -> EF 60 | BE21: ='Default Value References'!$G$121 -> EF 74 | BF21: ='Default Value References'!$G$122 -> None | BG21: ='Default Value References'!$G$123 -> None | BH21: ='Default Value References'!$G$124 -> None | BI21: ='Default Value References'!$G$125 -> None | BJ21: =INDEX('Default Value References'!$I$4:$I$6,MATCH($G21,'Default Value References'!$F$4:$F$6,0),1) -> 0.000442 | BK21: =INDEX('Default Value References'!$I$7:$I$9,MATCH($G21,'Default Value References'!$F$7:$F$9,0),1) -> 0.000364 | BL21: ='Default Value References'!$I$12 -> 8 | BM21: ='Default Value References'!$I$17 -> 0.1 | BN21: 0.065 | BO21: ='Default Value References'!$I$20 -> 0.05 | BP21: 0.0325 | BQ21: =INDEX('Default Value References'!$K$32:$K$47,MATCH($D21,'Default Value References'!$J$32:$J$47,0),1) -> 38 | BR21: ='Default Value References'!$K$50 -> 44 | BS21: ='Default Value References'!$I$53 -> 19 | BT21: ='Default Value References'!$J$65 -> 13 | BU21: ='Default Value References'!$L$86 -> 0.3 | BV21: ='Default Value References'!$M$86 -> 0.25 | BX21: ='Default Value References'!$H$106 -> 15 | BY21: ='Default Value References'!$H$110 -> 92 | BZ21: ='Default Value References'!$H$111 -> 95 | CA21: ='Default Value References'!$H$114 -> 70 | CB21: ='Default Value References'!$H$118 -> EF 200 | CC21: ='Default Value References'!$H$119 -> EF 67 | CD21: ='Default Value References'!$H$120 -> EF 70 | CE21: ='Default Value References'!$H$121 -> EF 82 | CF21: ='Default Value References'!$H$122 -> Wrap 5 ft | CG21: ='Default Value References'!$H$123 -> Valve | CH21: ='Default Value References'!$H$124 -> Valve & LF | CI21: ='Default Value References'!$H$125 -> Valve & TS
A22: No AC | B22: Furnace | C22: Slab-on-grade | D22: 1 | E22: =VLOOKUP(D22,Lists!$B$3:$C$18,2,FALSE) -> 3 | F22: 1 | G22: 93-01 | H22: 1910 | I22: 0.2 | J22: =INDEX('Default Value References'!$G$4:$G$6,MATCH($G22,'Default Value References'!$F$4:$F$6,0),1) -> 0.00046 | K22: 0.00046 | L22: =INDEX('Default Value References'!$G$12:$G$14,MATCH($G22,'Default Value References'!$F$12:$F$14,0),1) -> 4.26 | M22: =INDEX('Default Value References'!$G$17:$G$19,MATCH($G22,'Default Value References'!$F$17:$F$19,0),1) -> 0.22 | N22: 0.165 | O22: 0.22 | P22: 0.165 | Q22: =SUMIFS('Default Value References'!$H$32:$H$49,'Default Value References'!$G$32:$G$49,$E22,'Default Value References'!$F$32:$F$49,$G22) -> 10.31 | R22: 10.31 | S22: =INDEX('Default Value References'!$G$53:$G$55,MATCH($G22,'Default Value References'!$F$53:$F$55,0),1) -> 5.96 | T22: =SUMIFS('Default Value References'!$H$65:$H$82,'Default Value References'!$G$65:$G$82,$E22,'Default Value References'!$F$65:$F$82,$G22) -> 10.25 | U22: =SUMIFS('Default Value References'!$H$86:$H$103,'Default Value References'!$G$86:$G$103,$E22,'Default Value References'!$F$86:$F$103,$G22) -> 0.67 | V22: =SUMIFS('Default Value References'!$I$86:$I$103,'Default Value References'!$G$86:$G$103,$E22,'Default Value References'!$F$86:$F$103,$G22) -> 0.79 | X22: ='Default Value References'!$F$106 -> 11.4 | Y22: ='Default Value References'!$F$110 -> 80 | Z22: 80 | AA22: ='Default Value References'!$F$114 -> 62 | AB22: ='Default Value References'!$F$118 -> EF 86 | AC22: ='Default Value References'!$F$119 -> EF 59 | AD22: ='Default Value References'!$F$120 -> EF 59 | AE22: ='Default Value References'!$F$121 -> EF 52 | AF22: ='Default Value References'!$F$122 -> None | AG22: ='Default Value References'!$F$123 -> None | AH22: ='Default Value References'!$F$124 -> None | AI22: ='Default Value References'!$F$125 -> None | AJ22: 0.00046 | AK22: 0.00046 | AL22: 4.26 | AM22: 0.22 | AN22: 0.165 | AO22: 0.22 | AP22: 0.165 | AQ22: 10.31 | AR22: 10.31 | AS22: 5.96 | AT22: 10.25 | AU22: 0.67 | AV22: 0.79 | AX22: ='Default Value References'!$G$106 -> 14 | AY22: ='Default Value References'!$G$110 -> 80 | AZ22: 80 | BA22: ='Default Value References'!$G$114 -> 66 | BB22: ='Default Value References'!$G$118 -> EF 95 | BC22: ='Default Value References'!$G$119 -> EF 60 | BD22: ='Default Value References'!$G$120 -> EF 60 | BE22: ='Default Value References'!$G$121 -> EF 74 | BF22: ='Default Value References'!$G$122 -> None | BG22: ='Default Value References'!$G$123 -> None | BH22: ='Default Value References'!$G$124 -> None | BI22: ='Default Value References'!$G$125 -> None | BJ22: =INDEX('Default Value References'!$I$4:$I$6,MATCH($G22,'Default Value References'!$F$4:$F$6,0),1) -> 0.000391 | BK22: =INDEX('Default Value References'!$I$7:$I$9,MATCH($G22,'Default Value References'!$F$7:$F$9,0),1) -> 0.000322 | BL22: ='Default Value References'!$I$12 -> 8 | BM22: ='Default Value References'!$I$17 -> 0.1 | BN22: 0.075 | BO22: ='Default Value References'!$I$20 -> 0.05 | BP22: 0.0375 | BQ22: =INDEX('Default Value References'!$K$32:$K$47,MATCH($D22,'Default Value References'!$J$32:$J$47,0),1) -> 38 | BR22: ='Default Value References'!$K$50 -> 44 | BS22: ='Default Value References'!$I$53 -> 19 | BT22: ='Default Value References'!$J$65 -> 13 | BU22: ='Default Value References'!$L$86 -> 0.3 | BV22: ='Default Value References'!$M$86 -> 0.25 | BX22: ='Default Value References'!$H$106 -> 15 | BY22: ='Default Value References'!$H$110 -> 92 | BZ22: ='Default Value References'!$H$111 -> 95 | CA22: ='Default Value References'!$H$114 -> 70 | CB22: ='Default Value References'!$H$118 -> EF 200 | CC22: ='Default Value References'!$H$119 -> EF 67 | CD22: ='Default Value References'!$H$120 -> EF 70 | CE22: ='Default Value References'!$H$121 -> EF 82 | CF22: ='Default Value References'!$H$122 -> Wrap 5 ft | CG22: ='Default Value References'!$H$123 -> Valve | CH22: ='Default Value References'!$H$124 -> Valve & LF | CI22: ='Default Value References'!$H$125 -> Valve & TS
A23: No AC | B23: Furnace | C23: Slab-on-grade | D23: 1 | E23: =VLOOKUP(D23,Lists!$B$3:$C$18,2,FALSE) -> 3 | F23: 2 | G23: 93-01 | H23: 2730 | I23: 0.2 | J23: =INDEX('Default Value References'!$G$4:$G$6,MATCH($G23,'Default Value References'!$F$4:$F$6,0),1) -> 0.00046 | K23: 0.00046 | L23: =INDEX('Default Value References'!$G$12:$G$14,MATCH($G23,'Default Value References'!$F$12:$F$14,0),1) -> 4.26 | M23: =INDEX('Default Value References'!$G$17:$G$19,MATCH($G23,'Default Value References'!$F$17:$F$19,0),1) -> 0.22 | N23: 0.143 | O23: 0.22 | P23: 0.143 | Q23: =SUMIFS('Default Value References'!$H$32:$H$49,'Default Value References'!$G$32:$G$49,$E23,'Default Value References'!$F$32:$F$49,$G23) -> 10.31 | R23: 10.31 | S23: =INDEX('Default Value References'!$G$53:$G$55,MATCH($G23,'Default Value References'!$F$53:$F$55,0),1) -> 5.96 | T23: =SUMIFS('Default Value References'!$H$65:$H$82,'Default Value References'!$G$65:$G$82,$E23,'Default Value References'!$F$65:$F$82,$G23) -> 10.25 | U23: =SUMIFS('Default Value References'!$H$86:$H$103,'Default Value References'!$G$86:$G$103,$E23,'Default Value References'!$F$86:$F$103,$G23) -> 0.67 | V23: =SUMIFS('Default Value References'!$I$86:$I$103,'Default Value References'!$G$86:$G$103,$E23,'Default Value References'!$F$86:$F$103,$G23) -> 0.79 | X23: ='Default Value References'!$F$106 -> 11.4 | Y23: ='Default Value References'!$F$110 -> 80 | Z23: 80 | AA23: ='Default Value References'!$F$114 -> 62 | AB23: ='Default Value References'!$F$118 -> EF 86 | AC23: ='Default Value References'!$F$119 -> EF 59 | AD23: ='Default Value References'!$F$120 -> EF 59 | AE23: ='Default Value References'!$F$121 -> EF 52 | AF23: ='Default Value References'!$F$122 -> None | AG23: ='Default Value References'!$F$123 -> None | AH23: ='Default Value References'!$F$124 -> None | AI23: ='Default Value References'!$F$125 -> None | AJ23: 0.00046 | AK23: 0.00046 | AL23: 4.26 | AM23: 0.22 | AN23: 0.143 | AO23: 0.22 | AP23: 0.143 | AQ23: 10.31 | AR23: 10.31 | AS23: 5.96 | AT23: 10.25 | AU23: 0.67 | AV23: 0.79 | AX23: ='Default Value References'!$G$106 -> 14 | AY23: ='Default Value References'!$G$110 -> 80 | AZ23: 80 | BA23: ='Default Value References'!$G$114 -> 66 | BB23: ='Default Value References'!$G$118 -> EF 95 | BC23: ='Default Value References'!$G$119 -> EF 60 | BD23: ='Default Value References'!$G$120 -> EF 60 | BE23: ='Default Value References'!$G$121 -> EF 74 | BF23: ='Default Value References'!$G$122 -> None | BG23: ='Default Value References'!$G$123 -> None | BH23: ='Default Value References'!$G$124 -> None | BI23: ='Default Value References'!$G$125 -> None | BJ23: =INDEX('Default Value References'!$I$4:$I$6,MATCH($G23,'Default Value References'!$F$4:$F$6,0),1) -> 0.000391 | BK23: =INDEX('Default Value References'!$I$7:$I$9,MATCH($G23,'Default Value References'!$F$7:$F$9,0),1) -> 0.000322 | BL23: ='Default Value References'!$I$12 -> 8 | BM23: ='Default Value References'!$I$17 -> 0.1 | BN23: 0.065 | BO23: ='Default Value References'!$I$20 -> 0.05 | BP23: 0.0325 | BQ23: =INDEX('Default Value References'!$K$32:$K$47,MATCH($D23,'Default Value References'!$J$32:$J$47,0),1) -> 38 | BR23: ='Default Value References'!$K$50 -> 44 | BS23: ='Default Value References'!$I$53 -> 19 | BT23: ='Default Value References'!$J$65 -> 13 | BU23: ='Default Value References'!$L$86 -> 0.3 | BV23: ='Default Value References'!$M$86 -> 0.25 | BX23: ='Default Value References'!$H$106 -> 15 | BY23: ='Default Value References'!$H$110 -> 92 | BZ23: ='Default Value References'!$H$111 -> 95 | CA23: ='Default Value References'!$H$114 -> 70 | CB23: ='Default Value References'!$H$118 -> EF 200 | CC23: ='Default Value References'!$H$119 -> EF 67 | CD23: ='Default Value References'!$H$120 -> EF 70 | CE23: ='Default Value References'!$H$121 -> EF 82 | CF23: ='Default Value References'!$H$122 -> Wrap 5 ft | CG23: ='Default Value References'!$H$123 -> Valve | CH23: ='Default Value References'!$H$124 -> Valve & LF | CI23: ='Default Value References'!$H$125 -> Valve & TS
A24: AC | B24: Furnace | C24: Slab-on-grade | D24: 1 | E24: =VLOOKUP(D24,Lists!$B$3:$C$18,2,FALSE) -> 3 | F24: 1 | G24: 93-01 | H24: 1910 | I24: 0.2 | J24: =INDEX('Default Value References'!$G$4:$G$6,MATCH($G24,'Default Value References'!$F$4:$F$6,0),1) -> 0.00046 | K24: 0.00046 | L24: =INDEX('Default Value References'!$G$12:$G$14,MATCH($G24,'Default Value References'!$F$12:$F$14,0),1) -> 4.26 | M24: =INDEX('Default Value References'!$G$17:$G$19,MATCH($G24,'Default Value References'!$F$17:$F$19,0),1) -> 0.22 | N24: 0.165 | O24: 0.22 | P24: 0.165 | Q24: =SUMIFS('Default Value References'!$H$32:$H$49,'Default Value References'!$G$32:$G$49,$E24,'Default Value References'!$F$32:$F$49,$G24) -> 10.31 | R24: 10.31 | S24: =INDEX('Default Value References'!$G$53:$G$55,MATCH($G24,'Default Value References'!$F$53:$F$55,0),1) -> 5.96 | T24: =SUMIFS('Default Value References'!$H$65:$H$82,'Default Value References'!$G$65:$G$82,$E24,'Default Value References'!$F$65:$F$82,$G24) -> 10.25 | U24: =SUMIFS('Default Value References'!$H$86:$H$103,'Default Value References'!$G$86:$G$103,$E24,'Default Value References'!$F$86:$F$103,$G24) -> 0.67 | V24: =SUMIFS('Default Value References'!$I$86:$I$103,'Default Value References'!$G$86:$G$103,$E24,'Default Value References'!$F$86:$F$103,$G24) -> 0.79 | X24: ='Default Value References'!$F$106 -> 11.4 | Y24: ='Default Value References'!$F$110 -> 80 | Z24: 80 | AA24: ='Default Value References'!$F$114 -> 62 | AB24: ='Default Value References'!$F$118 -> EF 86 | AC24: ='Default Value References'!$F$119 -> EF 59 | AD24: ='Default Value References'!$F$120 -> EF 59 | AE24: ='Default Value References'!$F$121 -> EF 52 | AF24: ='Default Value References'!$F$122 -> None | AG24: ='Default Value References'!$F$123 -> None | AH24: ='Default Value References'!$F$124 -> None | AI24: ='Default Value References'!$F$125 -> None | AJ24: 0.00046 | AK24: 0.00046 | AL24: 4.26 | AM24: 0.22 | AN24: 0.165 | AO24: 0.22 | AP24: 0.165 | AQ24: 10.31 | AR24: 10.31 | AS24: 5.96 | AT24: 10.25 | AU24: 0.67 | AV24: 0.79 | AX24: ='Default Value References'!$G$106 -> 14 | AY24: ='Default Value References'!$G$110 -> 80 | AZ24: 80 | BA24: ='Default Value References'!$G$114 -> 66 | BB24: ='Default Value References'!$G$118 -> EF 95 | BC24: ='Default Value References'!$G$119 -> EF 60 | BD24: ='Default Value References'!$G$120 -> EF 60 | BE24: ='Default Value References'!$G$121 -> EF 74 | BF24: ='Default Value References'!$G$122 -> None | BG24: ='Default Value References'!$G$123 -> None | BH24: ='Default Value References'!$G$124 -> None | BI24: ='Default Value References'!$G$125 -> None | BJ24: =INDEX('Default Value References'!$I$4:$I$6,MATCH($G24,'Default Value References'!$F$4:$F$6,0),1) -> 0.000391 | BK24: =INDEX('Default Value References'!$I$7:$I$9,MATCH($G24,'Default Value References'!$F$7:$F$9,0),1) -> 0.000322 | BL24: ='Default Value References'!$I$12 -> 8 | BM24: ='Default Value References'!$I$17 -> 0.1 | BN24: 0.075 | BO24: ='Default Value References'!$I$20 -> 0.05 | BP24: 0.0375 | BQ24: =INDEX('Default Value References'!$K$32:$K$47,MATCH($D24,'Default Value References'!$J$32:$J$47,0),1) -> 38 | BR24: ='Default Value References'!$K$50 -> 44 | BS24: ='Default Value References'!$I$53 -> 19 | BT24: ='Default Value References'!$J$65 -> 13 | BU24: ='Default Value References'!$L$86 -> 0.3 | BV24: ='Default Value References'!$M$86 -> 0.25 | BX24: ='Default Value References'!$H$106 -> 15 | BY24: ='Default Value References'!$H$110 -> 92 | BZ24: ='Default Value References'!$H$111 -> 95 | CA24: ='Default Value References'!$H$114 -> 70 | CB24: ='Default Value References'!$H$118 -> EF 200 | CC24: ='Default Value References'!$H$119 -> EF 67 | CD24: ='Default Value References'!$H$120 -> EF 70 | CE24: ='Default Value References'!$H$121 -> EF 82 | CF24: ='Default Value References'!$H$122 -> Wrap 5 ft | CG24: ='Default Value References'!$H$123 -> Valve | CH24: ='Default Value References'!$H$124 -> Valve & LF | CI24: ='Default Value References'!$H$125 -> Valve & TS
A25: AC | B25: Furnace | C25: Slab-on-grade | D25: 1 | E25: =VLOOKUP(D25,Lists!$B$3:$C$18,2,FALSE) -> 3 | F25: 2 | G25: 93-01 | H25: 2730 | I25: 0.2 | J25: =INDEX('Default Value References'!$G$4:$G$6,MATCH($G25,'Default Value References'!$F$4:$F$6,0),1) -> 0.00046 | K25: 0.00046 | L25: =INDEX('Default Value References'!$G$12:$G$14,MATCH($G25,'Default Value References'!$F$12:$F$14,0),1) -> 4.26 | M25: =INDEX('Default Value References'!$G$17:$G$19,MATCH($G25,'Default Value References'!$F$17:$F$19,0),1) -> 0.22 | N25: 0.143 | O25: 0.22 | P25: 0.143 | Q25: =SUMIFS('Default Value References'!$H$32:$H$49,'Default Value References'!$G$32:$G$49,$E25,'Default Value References'!$F$32:$F$49,$G25) -> 10.31 | R25: 10.31 | S25: =INDEX('Default Value References'!$G$53:$G$55,MATCH($G25,'Default Value References'!$F$53:$F$55,0),1) -> 5.96 | T25: =SUMIFS('Default Value References'!$H$65:$H$82,'Default Value References'!$G$65:$G$82,$E25,'Default Value References'!$F$65:$F$82,$G25) -> 10.25 | U25: =SUMIFS('Default Value References'!$H$86:$H$103,'Default Value References'!$G$86:$G$103,$E25,'Default Value References'!$F$86:$F$103,$G25) -> 0.67 | V25: =SUMIFS('Default Value References'!$I$86:$I$103,'Default Value References'!$G$86:$G$103,$E25,'Default Value References'!$F$86:$F$103,$G25) -> 0.79 | X25: ='Default Value References'!$F$106 -> 11.4 | Y25: ='Default Value References'!$F$110 -> 80 | Z25: 80 | AA25: ='Default Value References'!$F$114 -> 62 | AB25: ='Default Value References'!$F$118 -> EF 86 | AC25: ='Default Value References'!$F$119 -> EF 59 | AD25: ='Default Value References'!$F$120 -> EF 59 | AE25: ='Default Value References'!$F$121 -> EF 52 | AF25: ='Default Value References'!$F$122 -> None | AG25: ='Default Value References'!$F$123 -> None | AH25: ='Default Value References'!$F$124 -> None | AI25: ='Default Value References'!$F$125 -> None | AJ25: 0.00046 | AK25: 0.00046 | AL25: 4.26 | AM25: 0.22 | AN25: 0.143 | AO25: 0.22 | AP25: 0.143 | AQ25: 10.31 | AR25: 10.31 | AS25: 5.96 | AT25: 10.25 | AU25: 0.67 | AV25: 0.79 | AX25: ='Default Value References'!$G$106 -> 14 | AY25: ='Default Value References'!$G$110 -> 80 | AZ25: 80 | BA25: ='Default Value References'!$G$114 -> 66 | BB25: ='Default Value References'!$G$118 -> EF 95 | BC25: ='Default Value References'!$G$119 -> EF 60 | BD25: ='Default Value References'!$G$120 -> EF 60 | BE25: ='Default Value References'!$G$121 -> EF 74 | BF25: ='Default Value References'!$G$122 -> None | BG25: ='Default Value References'!$G$123 -> None | BH25: ='Default Value References'!$G$124 -> None | BI25: ='Default Value References'!$G$125 -> None | BJ25: =INDEX('Default Value References'!$I$4:$I$6,MATCH($G25,'Default Value References'!$F$4:$F$6,0),1) -> 0.000391 | BK25: =INDEX('Default Value References'!$I$7:$I$9,MATCH($G25,'Default Value References'!$F$7:$F$9,0),1) -> 0.000322 | BL25: ='Default Value References'!$I$12 -> 8 | BM25: ='Default Value References'!$I$17 -> 0.1 | BN25: 0.065 | BO25: ='Default Value References'!$I$20 -> 0.05 | BP25: 0.0325 | BQ25: =INDEX('Default Value References'!$K$32:$K$47,MATCH($D25,'Default Value References'!$J$32:$J$47,0),1) -> 38 | BR25: ='Default Value References'!$K$50 -> 44 | BS25: ='Default Value References'!$I$53 -> 19 | BT25: ='Default Value References'!$J$65 -> 13 | BU25: ='Default Value References'!$L$86 -> 0.3 | BV25: ='Default Value References'!$M$86 -> 0.25 | BX25: ='Default Value References'!$H$106 -> 15 | BY25: ='Default Value References'!$H$110 -> 92 | BZ25: ='Default Value References'!$H$111 -> 95 | CA25: ='Default Value References'!$H$114 -> 70 | CB25: ='Default Value References'!$H$118 -> EF 200 | CC25: ='Default Value References'!$H$119 -> EF 67 | CD25: ='Default Value References'!$H$120 -> EF 70 | CE25: ='Default Value References'!$H$121 -> EF 82 | CF25: ='Default Value References'!$H$122 -> Wrap 5 ft | CG25: ='Default Value References'!$H$123 -> Valve | CH25: ='Default Value References'!$H$124 -> Valve & LF | CI25: ='Default Value References'!$H$125 -> Valve & TS
A26: No AC | B26: Furnace | C26: Crawlspace | D26: 1 | E26: =VLOOKUP(D26,Lists!$B$3:$C$18,2,FALSE) -> 3 | F26: 1 | G26: 93-01 | H26: 1910 | I26: 0.2 | J26: =INDEX('Default Value References'!$G$4:$G$6,MATCH($G26,'Default Value References'!$F$4:$F$6,0),1) -> 0.00046 | K26: 0.00046 | L26: =INDEX('Default Value References'!$G$12:$G$14,MATCH($G26,'Default Value References'!$F$12:$F$14,0),1) -> 4.26 | M26: =INDEX('Default Value References'!$G$17:$G$19,MATCH($G26,'Default Value References'!$F$17:$F$19,0),1) -> 0.22 | N26: 0.165 | O26: 0.22 | P26: 0.165 | Q26: =SUMIFS('Default Value References'!$H$32:$H$49,'Default Value References'!$G$32:$G$49,$E26,'Default Value References'!$F$32:$F$49,$G26) -> 10.31 | R26: 10.31 | S26: =INDEX('Default Value References'!$G$53:$G$55,MATCH($G26,'Default Value References'!$F$53:$F$55,0),1) -> 5.96 | T26: =SUMIFS('Default Value References'!$H$65:$H$82,'Default Value References'!$G$65:$G$82,$E26,'Default Value References'!$F$65:$F$82,$G26) -> 10.25 | U26: =SUMIFS('Default Value References'!$H$86:$H$103,'Default Value References'!$G$86:$G$103,$E26,'Default Value References'!$F$86:$F$103,$G26) -> 0.67 | V26: =SUMIFS('Default Value References'!$I$86:$I$103,'Default Value References'!$G$86:$G$103,$E26,'Default Value References'!$F$86:$F$103,$G26) -> 0.79 | X26: ='Default Value References'!$F$106 -> 11.4 | Y26: ='Default Value References'!$F$110 -> 80 | Z26: 80 | AA26: ='Default Value References'!$F$114 -> 62 | AB26: ='Default Value References'!$F$118 -> EF 86 | AC26: ='Default Value References'!$F$119 -> EF 59 | AD26: ='Default Value References'!$F$120 -> EF 59 | AE26: ='Default Value References'!$F$121 -> EF 52 | AF26: ='Default Value References'!$F$122 -> None | AG26: ='Default Value References'!$F$123 -> None | AH26: ='Default Value References'!$F$124 -> None | AI26: ='Default Value References'!$F$125 -> None | AJ26: 0.00046 | AK26: 0.00046 | AL26: 4.26 | AM26: 0.22 | AN26: 0.165 | AO26: 0.22 | AP26: 0.165 | AQ26: 10.31 | AR26: 10.31 | AS26: 5.96 | AT26: 10.25 | AU26: 0.67 | AV26: 0.79 | AX26: ='Default Value References'!$G$106 -> 14 | AY26: ='Default Value References'!$G$110 -> 80 | AZ26: 80 | BA26: ='Default Value References'!$G$114 -> 66 | BB26: ='Default Value References'!$G$118 -> EF 95 | BC26: ='Default Value References'!$G$119 -> EF 60 | BD26: ='Default Value References'!$G$120 -> EF 60 | BE26: ='Default Value References'!$G$121 -> EF 74 | BF26: ='Default Value References'!$G$122 -> None | BG26: ='Default Value References'!$G$123 -> None | BH26: ='Default Value References'!$G$124 -> None | BI26: ='Default Value References'!$G$125 -> None | BJ26: =INDEX('Default Value References'!$I$4:$I$6,MATCH($G26,'Default Value References'!$F$4:$F$6,0),1) -> 0.000391 | BK26: =INDEX('Default Value References'!$I$7:$I$9,MATCH($G26,'Default Value References'!$F$7:$F$9,0),1) -> 0.000322 | BL26: ='Default Value References'!$I$12 -> 8 | BM26: ='Default Value References'!$I$17 -> 0.1 | BN26: 0.075 | BO26: ='Default Value References'!$I$20 -> 0.05 | BP26: 0.0375 | BQ26: =INDEX('Default Value References'!$K$32:$K$47,MATCH($D26,'Default Value References'!$J$32:$J$47,0),1) -> 38 | BR26: ='Default Value References'!$K$50 -> 44 | BS26: ='Default Value References'!$I$53 -> 19 | BT26: ='Default Value References'!$J$65 -> 13 | BU26: ='Default Value References'!$L$86 -> 0.3 | BV26: ='Default Value References'!$M$86 -> 0.25 | BX26: ='Default Value References'!$H$106 -> 15 | BY26: ='Default Value References'!$H$110 -> 92 | BZ26: ='Default Value References'!$H$111 -> 95 | CA26: ='Default Value References'!$H$114 -> 70 | CB26: ='Default Value References'!$H$118 -> EF 200 | CC26: ='Default Value References'!$H$119 -> EF 67 | CD26: ='Default Value References'!$H$120 -> EF 70 | CE26: ='Default Value References'!$H$121 -> EF 82 | CF26: ='Default Value References'!$H$122 -> Wrap 5 ft | CG26: ='Default Value References'!$H$123 -> Valve | CH26: ='Default Value References'!$H$124 -> Valve & LF | CI26: ='Default Value References'!$H$125 -> Valve & TS
A27: No AC | B27: Furnace | C27: Crawlspace | D27: 1 | E27: =VLOOKUP(D27,Lists!$B$3:$C$18,2,FALSE) -> 3 | F27: 2 | G27: 93-01 | H27: 2730 | I27: 0.2 | J27: =INDEX('Default Value References'!$G$4:$G$6,MATCH($G27,'Default Value References'!$F$4:$F$6,0),1) -> 0.00046 | K27: 0.00046 | L27: =INDEX('Default Value References'!$G$12:$G$14,MATCH($G27,'Default Value References'!$F$12:$F$14,0),1) -> 4.26 | M27: =INDEX('Default Value References'!$G$17:$G$19,MATCH($G27,'Default Value References'!$F$17:$F$19,0),1) -> 0.22 | N27: 0.143 | O27: 0.22 | P27: 0.143 | Q27: =SUMIFS('Default Value References'!$H$32:$H$49,'Default Value References'!$G$32:$G$49,$E27,'Default Value References'!$F$32:$F$49,$G27) -> 10.31 | R27: 10.31 | S27: =INDEX('Default Value References'!$G$53:$G$55,MATCH($G27,'Default Value References'!$F$53:$F$55,0),1) -> 5.96 | T27: =SUMIFS('Default Value References'!$H$65:$H$82,'Default Value References'!$G$65:$G$82,$E27,'Default Value References'!$F$65:$F$82,$G27) -> 10.25 | U27: =SUMIFS('Default Value References'!$H$86:$H$103,'Default Value References'!$G$86:$G$103,$E27,'Default Value References'!$F$86:$F$103,$G27) -> 0.67 | V27: =SUMIFS('Default Value References'!$I$86:$I$103,'Default Value References'!$G$86:$G$103,$E27,'Default Value References'!$F$86:$F$103,$G27) -> 0.79 | X27: ='Default Value References'!$F$106 -> 11.4 | Y27: ='Default Value References'!$F$110 -> 80 | Z27: 80 | AA27: ='Default Value References'!$F$114 -> 62 | AB27: ='Default Value References'!$F$118 -> EF 86 | AC27: ='Default Value References'!$F$119 -> EF 59 | AD27: ='Default Value References'!$F$120 -> EF 59 | AE27: ='Default Value References'!$F$121 -> EF 52 | AF27: ='Default Value References'!$F$122 -> None | AG27: ='Default Value References'!$F$123 -> None | AH27: ='Default Value References'!$F$124 -> None | AI27: ='Default Value References'!$F$125 -> None | AJ27: 0.00046 | AK27: 0.00046 | AL27: 4.26 | AM27: 0.22 | AN27: 0.143 | AO27: 0.22 | AP27: 0.143 | AQ27: 10.31 | AR27: 10.31 | AS27: 5.96 | AT27: 10.25 | AU27: 0.67 | AV27: 0.79 | AX27: ='Default Value References'!$G$106 -> 14 | AY27: ='Default Value References'!$G$110 -> 80 | AZ27: 80 | BA27: ='Default Value References'!$G$114 -> 66 | BB27: ='Default Value References'!$G$118 -> EF 95 | BC27: ='Default Value References'!$G$119 -> EF 60 | BD27: ='Default Value References'!$G$120 -> EF 60 | BE27: ='Default Value References'!$G$121 -> EF 74 | BF27: ='Default Value References'!$G$122 -> None | BG27: ='Default Value References'!$G$123 -> None | BH27: ='Default Value References'!$G$124 -> None | BI27: ='Default Value References'!$G$125 -> None | BJ27: =INDEX('Default Value References'!$I$4:$I$6,MATCH($G27,'Default Value References'!$F$4:$F$6,0),1) -> 0.000391 | BK27: =INDEX('Default Value References'!$I$7:$I$9,MATCH($G27,'Default Value References'!$F$7:$F$9,0),1) -> 0.000322 | BL27: ='Default Value References'!$I$12 -> 8 | BM27: ='Default Value References'!$I$17 -> 0.1 | BN27: 0.065 | BO27: ='Default Value References'!$I$20 -> 0.05 | BP27: 0.0325 | BQ27: =INDEX('Default Value References'!$K$32:$K$47,MATCH($D27,'Default Value References'!$J$32:$J$47,0),1) -> 38 | BR27: ='Default Value References'!$K$50 -> 44 | BS27: ='Default Value References'!$I$53 -> 19 | BT27: ='Default Value References'!$J$65 -> 13 | BU27: ='Default Value References'!$L$86 -> 0.3 | BV27: ='Default Value References'!$M$86 -> 0.25 | BX27: ='Default Value References'!$H$106 -> 15 | BY27: ='Default Value References'!$H$110 -> 92 | BZ27: ='Default Value References'!$H$111 -> 95 | CA27: ='Default Value References'!$H$114 -> 70 | CB27: ='Default Value References'!$H$118 -> EF 200 | CC27: ='Default Value References'!$H$119 -> EF 67 | CD27: ='Default Value References'!$H$120 -> EF 70 | CE27: ='Default Value References'!$H$121 -> EF 82 | CF27: ='Default Value References'!$H$122 -> Wrap 5 ft | CG27: ='Default Value References'!$H$123 -> Valve | CH27: ='Default Value References'!$H$124 -> Valve & LF | CI27: ='Default Value References'!$H$125 -> Valve & TS
A28: AC | B28: Furnace | C28: Crawlspace | D28: 1 | E28: =VLOOKUP(D28,Lists!$B$3:$C$18,2,FALSE) -> 3 | F28: 1 | G28: 93-01 | H28: 1910 | I28: 0.2 | J28: =INDEX('Default Value References'!$G$4:$G$6,MATCH($G28,'Default Value References'!$F$4:$F$6,0),1) -> 0.00046 | K28: 0.00046 | L28: =INDEX('Default Value References'!$G$12:$G$14,MATCH($G28,'Default Value References'!$F$12:$F$14,0),1) -> 4.26 | M28: =INDEX('Default Value References'!$G$17:$G$19,MATCH($G28,'Default Value References'!$F$17:$F$19,0),1) -> 0.22 | N28: 0.165 | O28: 0.22 | P28: 0.165 | Q28: =SUMIFS('Default Value References'!$H$32:$H$49,'Default Value References'!$G$32:$G$49,$E28,'Default Value References'!$F$32:$F$49,$G28) -> 10.31 | R28: 10.31 | S28: =INDEX('Default Value References'!$G$53:$G$55,MATCH($G28,'Default Value References'!$F$53:$F$55,0),1) -> 5.96 | T28: =SUMIFS('Default Value References'!$H$65:$H$82,'Default Value References'!$G$65:$G$82,$E28,'Default Value References'!$F$65:$F$82,$G28) -> 10.25 | U28: =SUMIFS('Default Value References'!$H$86:$H$103,'Default Value References'!$G$86:$G$103,$E28,'Default Value References'!$F$86:$F$103,$G28) -> 0.67 | V28: =SUMIFS('Default Value References'!$I$86:$I$103,'Default Value References'!$G$86:$G$103,$E28,'Default Value References'!$F$86:$F$103,$G28) -> 0.79 | X28: ='Default Value References'!$F$106 -> 11.4 | Y28: ='Default Value References'!$F$110 -> 80 | Z28: 80 | AA28: ='Default Value References'!$F$114 -> 62 | AB28: ='Default Value References'!$F$118 -> EF 86 | AC28: ='Default Value References'!$F$119 -> EF 59 | AD28: ='Default Value References'!$F$120 -> EF 59 | AE28: ='Default Value References'!$F$121 -> EF 52 | AF28: ='Default Value References'!$F$122 -> None | AG28: ='Default Value References'!$F$123 -> None | AH28: ='Default Value References'!$F$124 -> None | AI28: ='Default Value References'!$F$125 -> None | AJ28: 0.00046 | AK28: 0.00046 | AL28: 4.26 | AM28: 0.22 | AN28: 0.165 | AO28: 0.22 | AP28: 0.165 | AQ28: 10.31 | AR28: 10.31 | AS28: 5.96 | AT28: 10.25 | AU28: 0.67 | AV28: 0.79 | AX28: ='Default Value References'!$G$106 -> 14 | AY28: ='Default Value References'!$G$110 -> 80 | AZ28: 80 | BA28: ='Default Value References'!$G$114 -> 66 | BB28: ='Default Value References'!$G$118 -> EF 95 | BC28: ='Default Value References'!$G$119 -> EF 60 | BD28: ='Default Value References'!$G$120 -> EF 60 | BE28: ='Default Value References'!$G$121 -> EF 74 | BF28: ='Default Value References'!$G$122 -> None | BG28: ='Default Value References'!$G$123 -> None | BH28: ='Default Value References'!$G$124 -> None | BI28: ='Default Value References'!$G$125 -> None | BJ28: =INDEX('Default Value References'!$I$4:$I$6,MATCH($G28,'Default Value References'!$F$4:$F$6,0),1) -> 0.000391 | BK28: =INDEX('Default Value References'!$I$7:$I$9,MATCH($G28,'Default Value References'!$F$7:$F$9,0),1) -> 0.000322 | BL28: ='Default Value References'!$I$12 -> 8 | BM28: ='Default Value References'!$I$17 -> 0.1 | BN28: 0.075 | BO28: ='Default Value References'!$I$20 -> 0.05 | BP28: 0.0375 | BQ28: =INDEX('Default Value References'!$K$32:$K$47,MATCH($D28,'Default Value References'!$J$32:$J$47,0),1) -> 38 | BR28: ='Default Value References'!$K$50 -> 44 | BS28: ='Default Value References'!$I$53 -> 19 | BT28: ='Default Value References'!$J$65 -> 13 | BU28: ='Default Value References'!$L$86 -> 0.3 | BV28: ='Default Value References'!$M$86 -> 0.25 | BX28: ='Default Value References'!$H$106 -> 15 | BY28: ='Default Value References'!$H$110 -> 92 | BZ28: ='Default Value References'!$H$111 -> 95 | CA28: ='Default Value References'!$H$114 -> 70 | CB28: ='Default Value References'!$H$118 -> EF 200 | CC28: ='Default Value References'!$H$119 -> EF 67 | CD28: ='Default Value References'!$H$120 -> EF 70 | CE28: ='Default Value References'!$H$121 -> EF 82 | CF28: ='Default Value References'!$H$122 -> Wrap 5 ft | CG28: ='Default Value References'!$H$123 -> Valve | CH28: ='Default Value References'!$H$124 -> Valve & LF | CI28: ='Default Value References'!$H$125 -> Valve & TS
A29: AC | B29: Furnace | C29: Crawlspace | D29: 1 | E29: =VLOOKUP(D29,Lists!$B$3:$C$18,2,FALSE) -> 3 | F29: 2 | G29: 93-01 | H29: 2730 | I29: 0.2 | J29: =INDEX('Default Value References'!$G$4:$G$6,MATCH($G29,'Default Value References'!$F$4:$F$6,0),1) -> 0.00046 | K29: 0.00046 | L29: =INDEX('Default Value References'!$G$12:$G$14,MATCH($G29,'Default Value References'!$F$12:$F$14,0),1) -> 4.26 | M29: =INDEX('Default Value References'!$G$17:$G$19,MATCH($G29,'Default Value References'!$F$17:$F$19,0),1) -> 0.22 | N29: 0.143 | O29: 0.22 | P29: 0.143 | Q29: =SUMIFS('Default Value References'!$H$32:$H$49,'Default Value References'!$G$32:$G$49,$E29,'Default Value References'!$F$32:$F$49,$G29) -> 10.31 | R29: 10.31 | S29: =INDEX('Default Value References'!$G$53:$G$55,MATCH($G29,'Default Value References'!$F$53:$F$55,0),1) -> 5.96 | T29: =SUMIFS('Default Value References'!$H$65:$H$82,'Default Value References'!$G$65:$G$82,$E29,'Default Value References'!$F$65:$F$82,$G29) -> 10.25 | U29: =SUMIFS('Default Value References'!$H$86:$H$103,'Default Value References'!$G$86:$G$103,$E29,'Default Value References'!$F$86:$F$103,$G29) -> 0.67 | V29: =SUMIFS('Default Value References'!$I$86:$I$103,'Default Value References'!$G$86:$G$103,$E29,'Default Value References'!$F$86:$F$103,$G29) -> 0.79 | X29: ='Default Value References'!$F$106 -> 11.4 | Y29: ='Default Value References'!$F$110 -> 80 | Z29: 80 | AA29: ='Default Value References'!$F$114 -> 62 | AB29: ='Default Value References'!$F$118 -> EF 86 | AC29: ='Default Value References'!$F$119 -> EF 59 | AD29: ='Default Value References'!$F$120 -> EF 59 | AE29: ='Default Value References'!$F$121 -> EF 52 | AF29: ='Default Value References'!$F$122 -> None | AG29: ='Default Value References'!$F$123 -> None | AH29: ='Default Value References'!$F$124 -> None | AI29: ='Default Value References'!$F$125 -> None | AJ29: 0.00046 | AK29: 0.00046 | AL29: 4.26 | AM29: 0.22 | AN29: 0.143 | AO29: 0.22 | AP29: 0.143 | AQ29: 10.31 | AR29: 10.31 | AS29: 5.96 | AT29: 10.25 | AU29: 0.67 | AV29: 0.79 | AX29: ='Default Value References'!$G$106 -> 14 | AY29: ='Default Value References'!$G$110 -> 80 | AZ29: 80 | BA29: ='Default Value References'!$G$114 -> 66 | BB29: ='Default Value References'!$G$118 -> EF 95 | BC29: ='Default Value References'!$G$119 -> EF 60 | BD29: ='Default Value References'!$G$120 -> EF 60 | BE29: ='Default Value References'!$G$121 -> EF 74 | BF29: ='Default Value References'!$G$122 -> None | BG29: ='Default Value References'!$G$123 -> None | BH29: ='Default Value References'!$G$124 -> None | BI29: ='Default Value References'!$G$125 -> None | BJ29: =INDEX('Default Value References'!$I$4:$I$6,MATCH($G29,'Default Value References'!$F$4:$F$6,0),1) -> 0.000391 | BK29: =INDEX('Default Value References'!$I$7:$I$9,MATCH($G29,'Default Value References'!$F$7:$F$9,0),1) -> 0.000322 | BL29: ='Default Value References'!$I$12 -> 8 | BM29: ='Default Value References'!$I$17 -> 0.1 | BN29: 0.065 | BO29: ='Default Value References'!$I$20 -> 0.05 | BP29: 0.0325 | BQ29: =INDEX('Default Value References'!$K$32:$K$47,MATCH($D29,'Default Value References'!$J$32:$J$47,0),1) -> 38 | BR29: ='Default Value References'!$K$50 -> 44 | BS29: ='Default Value References'!$I$53 -> 19 | BT29: ='Default Value References'!$J$65 -> 13 | BU29: ='Default Value References'!$L$86 -> 0.3 | BV29: ='Default Value References'!$M$86 -> 0.25 | BX29: ='Default Value References'!$H$106 -> 15 | BY29: ='Default Value References'!$H$110 -> 92 | BZ29: ='Default Value References'!$H$111 -> 95 | CA29: ='Default Value References'!$H$114 -> 70 | CB29: ='Default Value References'!$H$118 -> EF 200 | CC29: ='Default Value References'!$H$119 -> EF 67 | CD29: ='Default Value References'!$H$120 -> EF 70 | CE29: ='Default Value References'!$H$121 -> EF 82 | CF29: ='Default Value References'!$H$122 -> Wrap 5 ft | CG29: ='Default Value References'!$H$123 -> Valve | CH29: ='Default Value References'!$H$124 -> Valve & LF | CI29: ='Default Value References'!$H$125 -> Valve & TS
A30: No AC | B30: Wall Furnace | C30: Slab-on-grade | D30: 1 | E30: =VLOOKUP(D30,Lists!$B$3:$C$18,2,FALSE) -> 3 | F30: 1 | G30: pre78 | H30: 1600 | I30: 0.1401634192 | J30: =INDEX('Default Value References'!$G$4:$G$6,MATCH($G30,'Default Value References'!$F$4:$F$6,0),1) -> 0.00071 | K30: 0.00071 | L30: =INDEX('Default Value References'!$G$12:$G$14,MATCH($G30,'Default Value References'!$F$12:$F$14,0),1) -> 3.32 | M30: =INDEX('Default Value References'!$G$17:$G$19,MATCH($G30,'Default Value References'!$F$17:$F$19,0),1) -> 0.33 | N30: 0.2475 | O30: 0.33 | P30: 0.2475 | Q30: =SUMIFS('Default Value References'!$H$32:$H$49,'Default Value References'!$G$32:$G$49,$E30,'Default Value References'!$F$32:$F$49,$G30) -> 6.68 | R30: 6.68 | S30: =INDEX('Default Value References'!$G$53:$G$55,MATCH($G30,'Default Value References'!$F$53:$F$55,0),1) -> 1.34 | T30: =SUMIFS('Default Value References'!$H$65:$H$82,'Default Value References'!$G$65:$G$82,$E30,'Default Value References'!$F$65:$F$82,$G30) -> 0.96 | U30: =SUMIFS('Default Value References'!$H$86:$H$103,'Default Value References'!$G$86:$G$103,$E30,'Default Value References'!$F$86:$F$103,$G30) -> 1.23 | V30: =SUMIFS('Default Value References'!$I$86:$I$103,'Default Value References'!$G$86:$G$103,$E30,'Default Value References'!$F$86:$F$103,$G30) -> 0.87 | X30: ='Default Value References'!$F$106 -> 11.4 | Y30: ='Default Value References'!$F$110 -> 80 | Z30: 80 | AA30: ='Default Value References'!$F$114 -> 62 | AB30: ='Default Value References'!$F$118 -> EF 86 | AC30: ='Default Value References'!$F$119 -> EF 59 | AD30: ='Default Value References'!$F$120 -> EF 59 | AE30: ='Default Value References'!$F$121 -> EF 52 | AF30: ='Default Value References'!$F$122 -> None | AG30: ='Default Value References'!$F$123 -> None | AH30: ='Default Value References'!$F$124 -> None | AI30: ='Default Value References'!$F$125 -> None | AJ30: 0.00071 | AK30: 0.00071 | AL30: 3.32 | AM30: 0.33 | AN30: 0.2475 | AO30: 0.33 | AP30: 0.2475 | AQ30: 6.68 | AR30: 6.68 | AS30: 1.34 | AT30: 0.96 | AU30: 1.23 | AV30: 0.87 | AX30: ='Default Value References'!$G$106 -> 14 | AY30: ='Default Value References'!$G$110 -> 80 | AZ30: 80 | BA30: ='Default Value References'!$G$114 -> 66 | BB30: ='Default Value References'!$G$118 -> EF 95 | BC30: ='Default Value References'!$G$119 -> EF 60 | BD30: ='Default Value References'!$G$120 -> EF 60 | BE30: ='Default Value References'!$G$121 -> EF 74 | BF30: ='Default Value References'!$G$122 -> None | BG30: ='Default Value References'!$G$123 -> None | BH30: ='Default Value References'!$G$124 -> None | BI30: ='Default Value References'!$G$125 -> None | BJ30: =INDEX('Default Value References'!$I$4:$I$6,MATCH($G30,'Default Value References'!$F$4:$F$6,0),1) -> 0.0006035 | BK30: =INDEX('Default Value References'!$I$7:$I$9,MATCH($G30,'Default Value References'!$F$7:$F$9,0),1) -> 0.000497 | BL30: ='Default Value References'!$I$12 -> 8 | BM30: ='Default Value References'!$I$17 -> 0.1 | BN30: 0.075 | BO30: ='Default Value References'!$I$20 -> 0.05 | BP30: 0.0375 | BQ30: =INDEX('Default Value References'!$K$32:$K$47,MATCH($D30,'Default Value References'!$J$32:$J$47,0),1) -> 38 | BR30: ='Default Value References'!$K$50 -> 44 | BS30: ='Default Value References'!$I$53 -> 19 | BT30: ='Default Value References'!$J$65 -> 13 | BU30: ='Default Value References'!$L$86 -> 0.3 | BV30: ='Default Value References'!$M$86 -> 0.25 | BX30: ='Default Value References'!$H$106 -> 15 | BY30: ='Default Value References'!$H$110 -> 92 | BZ30: ='Default Value References'!$H$111 -> 95 | CA30: ='Default Value References'!$H$114 -> 70 | CB30: ='Default Value References'!$H$118 -> EF 200 | CC30: ='Default Value References'!$H$119 -> EF 67 | CD30: ='Default Value References'!$H$120 -> EF 70 | CE30: ='Default Value References'!$H$121 -> EF 82 | CF30: ='Default Value References'!$H$122 -> Wrap 5 ft | CG30: ='Default Value References'!$H$123 -> Valve | CH30: ='Default Value References'!$H$124 -> Valve & LF | CI30: ='Default Value References'!$H$125 -> Valve & TS
A31: No AC | B31: Wall Furnace | C31: Slab-on-grade | D31: 1 | E31: =VLOOKUP(D31,Lists!$B$3:$C$18,2,FALSE) -> 3 | F31: 2 | G31: pre78 | H31: 1990 | I31: 0.1401634192 | J31: =INDEX('Default Value References'!$G$4:$G$6,MATCH($G31,'Default Value References'!$F$4:$F$6,0),1) -> 0.00071 | K31: 0.00071 | L31: =INDEX('Default Value References'!$G$12:$G$14,MATCH($G31,'Default Value References'!$F$12:$F$14,0),1) -> 3.32 | M31: =INDEX('Default Value References'!$G$17:$G$19,MATCH($G31,'Default Value References'!$F$17:$F$19,0),1) -> 0.33 | N31: 0.2145 | O31: 0.33 | P31: 0.2145 | Q31: =SUMIFS('Default Value References'!$H$32:$H$49,'Default Value References'!$G$32:$G$49,$E31,'Default Value References'!$F$32:$F$49,$G31) -> 6.68 | R31: 6.68 | S31: =INDEX('Default Value References'!$G$53:$G$55,MATCH($G31,'Default Value References'!$F$53:$F$55,0),1) -> 1.34 | T31: =SUMIFS('Default Value References'!$H$65:$H$82,'Default Value References'!$G$65:$G$82,$E31,'Default Value References'!$F$65:$F$82,$G31) -> 0.96 | U31: =SUMIFS('Default Value References'!$H$86:$H$103,'Default Value References'!$G$86:$G$103,$E31,'Default Value References'!$F$86:$F$103,$G31) -> 1.23 | V31: =SUMIFS('Default Value References'!$I$86:$I$103,'Default Value References'!$G$86:$G$103,$E31,'Default Value References'!$F$86:$F$103,$G31) -> 0.87 | X31: ='Default Value References'!$F$106 -> 11.4 | Y31: ='Default Value References'!$F$110 -> 80 | Z31: 80 | AA31: ='Default Value References'!$F$114 -> 62 | AB31: ='Default Value References'!$F$118 -> EF 86 | AC31: ='Default Value References'!$F$119 -> EF 59 | AD31: ='Default Value References'!$F$120 -> EF 59 | AE31: ='Default Value References'!$F$121 -> EF 52 | AF31: ='Default Value References'!$F$122 -> None | AG31: ='Default Value References'!$F$123 -> None | AH31: ='Default Value References'!$F$124 -> None | AI31: ='Default Value References'!$F$125 -> None | AJ31: 0.00071 | AK31: 0.00071 | AL31: 3.32 | AM31: 0.33 | AN31: 0.2145 | AO31: 0.33 | AP31: 0.2145 | AQ31: 6.68 | AR31: 6.68 | AS31: 1.34 | AT31: 0.96 | AU31: 1.23 | AV31: 0.87 | AX31: ='Default Value References'!$G$106 -> 14 | AY31: ='Default Value References'!$G$110 -> 80 | AZ31: 80 | BA31: ='Default Value References'!$G$114 -> 66 | BB31: ='Default Value References'!$G$118 -> EF 95 | BC31: ='Default Value References'!$G$119 -> EF 60 | BD31: ='Default Value References'!$G$120 -> EF 60 | BE31: ='Default Value References'!$G$121 -> EF 74 | BF31: ='Default Value References'!$G$122 -> None | BG31: ='Default Value References'!$G$123 -> None | BH31: ='Default Value References'!$G$124 -> None | BI31: ='Default Value References'!$G$125 -> None | BJ31: =INDEX('Default Value References'!$I$4:$I$6,MATCH($G31,'Default Value References'!$F$4:$F$6,0),1) -> 0.0006035 | BK31: =INDEX('Default Value References'!$I$7:$I$9,MATCH($G31,'Default Value References'!$F$7:$F$9,0),1) -> 0.000497 | BL31: ='Default Value References'!$I$12 -> 8 | BM31: ='Default Value References'!$I$17 -> 0.1 | BN31: 0.065 | BO31: ='Default Value References'!$I$20 -> 0.05 | BP31: 0.0325 | BQ31: =INDEX('Default Value References'!$K$32:$K$47,MATCH($D31,'Default Value References'!$J$32:$J$47,0),1) -> 38 | BR31: ='Default Value References'!$K$50 -> 44 | BS31: ='Default Value References'!$I$53 -> 19 | BT31: ='Default Value References'!$J$65 -> 13 | BU31: ='Default Value References'!$L$86 -> 0.3 | BV31: ='Default Value References'!$M$86 -> 0.25 | BX31: ='Default Value References'!$H$106 -> 15 | BY31: ='Default Value References'!$H$110 -> 92 | BZ31: ='Default Value References'!$H$111 -> 95 | CA31: ='Default Value References'!$H$114 -> 70 | CB31: ='Default Value References'!$H$118 -> EF 200 | CC31: ='Default Value References'!$H$119 -> EF 67 | CD31: ='Default Value References'!$H$120 -> EF 70 | CE31: ='Default Value References'!$H$121 -> EF 82 | CF31: ='Default Value References'!$H$122 -> Wrap 5 ft | CG31: ='Default Value References'!$H$123 -> Valve | CH31: ='Default Value References'!$H$124 -> Valve & LF | CI31: ='Default Value References'!$H$125 -> Valve & TS
A32: AC | B32: Wall Furnace | C32: Slab-on-grade | D32: 1 | E32: =VLOOKUP(D32,Lists!$B$3:$C$18,2,FALSE) -> 3 | F32: 1 | G32: pre78 | H32: 1600 | I32: 0.1401634192 | J32: =INDEX('Default Value References'!$G$4:$G$6,MATCH($G32,'Default Value References'!$F$4:$F$6,0),1) -> 0.00071 | K32: 0.00071 | L32: =INDEX('Default Value References'!$G$12:$G$14,MATCH($G32,'Default Value References'!$F$12:$F$14,0),1) -> 3.32 | M32: =INDEX('Default Value References'!$G$17:$G$19,MATCH($G32,'Default Value References'!$F$17:$F$19,0),1) -> 0.33 | N32: 0.2475 | O32: 0.33 | P32: 0.2475 | Q32: =SUMIFS('Default Value References'!$H$32:$H$49,'Default Value References'!$G$32:$G$49,$E32,'Default Value References'!$F$32:$F$49,$G32) -> 6.68 | R32: 6.68 | S32: =INDEX('Default Value References'!$G$53:$G$55,MATCH($G32,'Default Value References'!$F$53:$F$55,0),1) -> 1.34 | T32: =SUMIFS('Default Value References'!$H$65:$H$82,'Default Value References'!$G$65:$G$82,$E32,'Default Value References'!$F$65:$F$82,$G32) -> 0.96 | U32: =SUMIFS('Default Value References'!$H$86:$H$103,'Default Value References'!$G$86:$G$103,$E32,'Default Value References'!$F$86:$F$103,$G32) -> 1.23 | V32: =SUMIFS('Default Value References'!$I$86:$I$103,'Default Value References'!$G$86:$G$103,$E32,'Default Value References'!$F$86:$F$103,$G32) -> 0.87 | X32: ='Default Value References'!$F$106 -> 11.4 | Y32: ='Default Value References'!$F$110 -> 80 | Z32: 80 | AA32: ='Default Value References'!$F$114 -> 62 | AB32: ='Default Value References'!$F$118 -> EF 86 | AC32: ='Default Value References'!$F$119 -> EF 59 | AD32: ='Default Value References'!$F$120 -> EF 59 | AE32: ='Default Value References'!$F$121 -> EF 52 | AF32: ='Default Value References'!$F$122 -> None | AG32: ='Default Value References'!$F$123 -> None | AH32: ='Default Value References'!$F$124 -> None | AI32: ='Default Value References'!$F$125 -> None | AJ32: 0.00071 | AK32: 0.00071 | AL32: 3.32 | AM32: 0.33 | AN32: 0.2475 | AO32: 0.33 | AP32: 0.2475 | AQ32: 6.68 | AR32: 6.68 | AS32: 1.34 | AT32: 0.96 | AU32: 1.23 | AV32: 0.87 | AX32: ='Default Value References'!$G$106 -> 14 | AY32: ='Default Value References'!$G$110 -> 80 | AZ32: 80 | BA32: ='Default Value References'!$G$114 -> 66 | BB32: ='Default Value References'!$G$118 -> EF 95 | BC32: ='Default Value References'!$G$119 -> EF 60 | BD32: ='Default Value References'!$G$120 -> EF 60 | BE32: ='Default Value References'!$G$121 -> EF 74 | BF32: ='Default Value References'!$G$122 -> None | BG32: ='Default Value References'!$G$123 -> None | BH32: ='Default Value References'!$G$124 -> None | BI32: ='Default Value References'!$G$125 -> None | BJ32: =INDEX('Default Value References'!$I$4:$I$6,MATCH($G32,'Default Value References'!$F$4:$F$6,0),1) -> 0.0006035 | BK32: =INDEX('Default Value References'!$I$7:$I$9,MATCH($G32,'Default Value References'!$F$7:$F$9,0),1) -> 0.000497 | BL32: ='Default Value References'!$I$12 -> 8 | BM32: ='Default Value References'!$I$17 -> 0.1 | BN32: 0.075 | BO32: ='Default Value References'!$I$20 -> 0.05 | BP32: 0.0375 | BQ32: =INDEX('Default Value References'!$K$32:$K$47,MATCH($D32,'Default Value References'!$J$32:$J$47,0),1) -> 38 | BR32: ='Default Value References'!$K$50 -> 44 | BS32: ='Default Value References'!$I$53 -> 19 | BT32: ='Default Value References'!$J$65 -> 13 | BU32: ='Default Value References'!$L$86 -> 0.3 | BV32: ='Default Value References'!$M$86 -> 0.25 | BX32: ='Default Value References'!$H$106 -> 15 | BY32: ='Default Value References'!$H$110 -> 92 | BZ32: ='Default Value References'!$H$111 -> 95 | CA32: ='Default Value References'!$H$114 -> 70 | CB32: ='Default Value References'!$H$118 -> EF 200 | CC32: ='Default Value References'!$H$119 -> EF 67 | CD32: ='Default Value References'!$H$120 -> EF 70 | CE32: ='Default Value References'!$H$121 -> EF 82 | CF32: ='Default Value References'!$H$122 -> Wrap 5 ft | CG32: ='Default Value References'!$H$123 -> Valve | CH32: ='Default Value References'!$H$124 -> Valve & LF | CI32: ='Default Value References'!$H$125 -> Valve & TS
A33: AC | B33: Wall Furnace | C33: Slab-on-grade | D33: 1 | E33: =VLOOKUP(D33,Lists!$B$3:$C$18,2,FALSE) -> 3 | F33: 2 | G33: pre78 | H33: 1990 | I33: 0.1401634192 | J33: =INDEX('Default Value References'!$G$4:$G$6,MATCH($G33,'Default Value References'!$F$4:$F$6,0),1) -> 0.00071 | K33: 0.00071 | L33: =INDEX('Default Value References'!$G$12:$G$14,MATCH($G33,'Default Value References'!$F$12:$F$14,0),1) -> 3.32 | M33: =INDEX('Default Value References'!$G$17:$G$19,MATCH($G33,'Default Value References'!$F$17:$F$19,0),1) -> 0.33 | N33: 0.2145 | O33: 0.33 | P33: 0.2145 | Q33: =SUMIFS('Default Value References'!$H$32:$H$49,'Default Value References'!$G$32:$G$49,$E33,'Default Value References'!$F$32:$F$49,$G33) -> 6.68 | R33: 6.68 | S33: =INDEX('Default Value References'!$G$53:$G$55,MATCH($G33,'Default Value References'!$F$53:$F$55,0),1) -> 1.34 | T33: =SUMIFS('Default Value References'!$H$65:$H$82,'Default Value References'!$G$65:$G$82,$E33,'Default Value References'!$F$65:$F$82,$G33) -> 0.96 | U33: =SUMIFS('Default Value References'!$H$86:$H$103,'Default Value References'!$G$86:$G$103,$E33,'Default Value References'!$F$86:$F$103,$G33) -> 1.23 | V33: =SUMIFS('Default Value References'!$I$86:$I$103,'Default Value References'!$G$86:$G$103,$E33,'Default Value References'!$F$86:$F$103,$G33) -> 0.87 | X33: ='Default Value References'!$F$106 -> 11.4 | Y33: ='Default Value References'!$F$110 -> 80 | Z33: 80 | AA33: ='Default Value References'!$F$114 -> 62 | AB33: ='Default Value References'!$F$118 -> EF 86 | AC33: ='Default Value References'!$F$119 -> EF 59 | AD33: ='Default Value References'!$F$120 -> EF 59 | AE33: ='Default Value References'!$F$121 -> EF 52 | AF33: ='Default Value References'!$F$122 -> None | AG33: ='Default Value References'!$F$123 -> None | AH33: ='Default Value References'!$F$124 -> None | AI33: ='Default Value References'!$F$125 -> None | AJ33: 0.00071 | AK33: 0.00071 | AL33: 3.32 | AM33: 0.33 | AN33: 0.2145 | AO33: 0.33 | AP33: 0.2145 | AQ33: 6.68 | AR33: 6.68 | AS33: 1.34 | AT33: 0.96 | AU33: 1.23 | AV33: 0.87 | AX33: ='Default Value References'!$G$106 -> 14 | AY33: ='Default Value References'!$G$110 -> 80 | AZ33: 80 | BA33: ='Default Value References'!$G$114 -> 66 | BB33: ='Default Value References'!$G$118 -> EF 95 | BC33: ='Default Value References'!$G$119 -> EF 60 | BD33: ='Default Value References'!$G$120 -> EF 60 | BE33: ='Default Value References'!$G$121 -> EF 74 | BF33: ='Default Value References'!$G$122 -> None | BG33: ='Default Value References'!$G$123 -> None | BH33: ='Default Value References'!$G$124 -> None | BI33: ='Default Value References'!$G$125 -> None | BJ33: =INDEX('Default Value References'!$I$4:$I$6,MATCH($G33,'Default Value References'!$F$4:$F$6,0),1) -> 0.0006035 | BK33: =INDEX('Default Value References'!$I$7:$I$9,MATCH($G33,'Default Value References'!$F$7:$F$9,0),1) -> 0.000497 | BL33: ='Default Value References'!$I$12 -> 8 | BM33: ='Default Value References'!$I$17 -> 0.1 | BN33: 0.065 | BO33: ='Default Value References'!$I$20 -> 0.05 | BP33: 0.0325 | BQ33: =INDEX('Default Value References'!$K$32:$K$47,MATCH($D33,'Default Value References'!$J$32:$J$47,0),1) -> 38 | BR33: ='Default Value References'!$K$50 -> 44 | BS33: ='Default Value References'!$I$53 -> 19 | BT33: ='Default Value References'!$J$65 -> 13 | BU33: ='Default Value References'!$L$86 -> 0.3 | BV33: ='Default Value References'!$M$86 -> 0.25 | BX33: ='Default Value References'!$H$106 -> 15 | BY33: ='Default Value References'!$H$110 -> 92 | BZ33: ='Default Value References'!$H$111 -> 95 | CA33: ='Default Value References'!$H$114 -> 70 | CB33: ='Default Value References'!$H$118 -> EF 200 | CC33: ='Default Value References'!$H$119 -> EF 67 | CD33: ='Default Value References'!$H$120 -> EF 70 | CE33: ='Default Value References'!$H$121 -> EF 82 | CF33: ='Default Value References'!$H$122 -> Wrap 5 ft | CG33: ='Default Value References'!$H$123 -> Valve | CH33: ='Default Value References'!$H$124 -> Valve & LF | CI33: ='Default Value References'!$H$125 -> Valve & TS
A34: No AC | B34: Wall Furnace | C34: Crawlspace | D34: 1 | E34: =VLOOKUP(D34,Lists!$B$3:$C$18,2,FALSE) -> 3 | F34: 1 | G34: pre78 | H34: 1600 | I34: 0.1401634192 | J34: =INDEX('Default Value References'!$G$4:$G$6,MATCH($G34,'Default Value References'!$F$4:$F$6,0),1) -> 0.00071 | K34: 0.00071 | L34: =INDEX('Default Value References'!$G$12:$G$14,MATCH($G34,'Default Value References'!$F$12:$F$14,0),1) -> 3.32 | M34: =INDEX('Default Value References'!$G$17:$G$19,MATCH($G34,'Default Value References'!$F$17:$F$19,0),1) -> 0.33 | N34: 0.2475 | O34: 0.33 | P34: 0.2475 | Q34: =SUMIFS('Default Value References'!$H$32:$H$49,'Default Value References'!$G$32:$G$49,$E34,'Default Value References'!$F$32:$F$49,$G34) -> 6.68 | R34: 6.68 | S34: =INDEX('Default Value References'!$G$53:$G$55,MATCH($G34,'Default Value References'!$F$53:$F$55,0),1) -> 1.34 | T34: =SUMIFS('Default Value References'!$H$65:$H$82,'Default Value References'!$G$65:$G$82,$E34,'Default Value References'!$F$65:$F$82,$G34) -> 0.96 | U34: =SUMIFS('Default Value References'!$H$86:$H$103,'Default Value References'!$G$86:$G$103,$E34,'Default Value References'!$F$86:$F$103,$G34) -> 1.23 | V34: =SUMIFS('Default Value References'!$I$86:$I$103,'Default Value References'!$G$86:$G$103,$E34,'Default Value References'!$F$86:$F$103,$G34) -> 0.87 | X34: ='Default Value References'!$F$106 -> 11.4 | Y34: ='Default Value References'!$F$110 -> 80 | Z34: 80 | AA34: ='Default Value References'!$F$114 -> 62 | AB34: ='Default Value References'!$F$118 -> EF 86 | AC34: ='Default Value References'!$F$119 -> EF 59 | AD34: ='Default Value References'!$F$120 -> EF 59 | AE34: ='Default Value References'!$F$121 -> EF 52 | AF34: ='Default Value References'!$F$122 -> None | AG34: ='Default Value References'!$F$123 -> None | AH34: ='Default Value References'!$F$124 -> None | AI34: ='Default Value References'!$F$125 -> None | AJ34: 0.00071 | AK34: 0.00071 | AL34: 3.32 | AM34: 0.33 | AN34: 0.2475 | AO34: 0.33 | AP34: 0.2475 | AQ34: 6.68 | AR34: 6.68 | AS34: 1.34 | AT34: 0.96 | AU34: 1.23 | AV34: 0.87 | AX34: ='Default Value References'!$G$106 -> 14 | AY34: ='Default Value References'!$G$110 -> 80 | AZ34: 80 | BA34: ='Default Value References'!$G$114 -> 66 | BB34: ='Default Value References'!$G$118 -> EF 95 | BC34: ='Default Value References'!$G$119 -> EF 60 | BD34: ='Default Value References'!$G$120 -> EF 60 | BE34: ='Default Value References'!$G$121 -> EF 74 | BF34: ='Default Value References'!$G$122 -> None | BG34: ='Default Value References'!$G$123 -> None | BH34: ='Default Value References'!$G$124 -> None | BI34: ='Default Value References'!$G$125 -> None | BJ34: =INDEX('Default Value References'!$I$4:$I$6,MATCH($G34,'Default Value References'!$F$4:$F$6,0),1) -> 0.0006035 | BK34: =INDEX('Default Value References'!$I$7:$I$9,MATCH($G34,'Default Value References'!$F$7:$F$9,0),1) -> 0.000497 | BL34: ='Default Value References'!$I$12 -> 8 | BM34: ='Default Value References'!$I$17 -> 0.1 | BN34: 0.075 | BO34: ='Default Value References'!$I$20 -> 0.05 | BP34: 0.0375 | BQ34: =INDEX('Default Value References'!$K$32:$K$47,MATCH($D34,'Default Value References'!$J$32:$J$47,0),1) -> 38 | BR34: ='Default Value References'!$K$50 -> 44 | BS34: ='Default Value References'!$I$53 -> 19 | BT34: ='Default Value References'!$J$65 -> 13 | BU34: ='Default Value References'!$L$86 -> 0.3 | BV34: ='Default Value References'!$M$86 -> 0.25 | BX34: ='Default Value References'!$H$106 -> 15 | BY34: ='Default Value References'!$H$110 -> 92 | BZ34: ='Default Value References'!$H$111 -> 95 | CA34: ='Default Value References'!$H$114 -> 70 | CB34: ='Default Value References'!$H$118 -> EF 200 | CC34: ='Default Value References'!$H$119 -> EF 67 | CD34: ='Default Value References'!$H$120 -> EF 70 | CE34: ='Default Value References'!$H$121 -> EF 82 | CF34: ='Default Value References'!$H$122 -> Wrap 5 ft | CG34: ='Default Value References'!$H$123 -> Valve | CH34: ='Default Value References'!$H$124 -> Valve & LF | CI34: ='Default Value References'!$H$125 -> Valve & TS
A35: No AC | B35: Wall Furnace | C35: Crawlspace | D35: 1 | E35: =VLOOKUP(D35,Lists!$B$3:$C$18,2,FALSE) -> 3 | F35: 2 | G35: pre78 | H35: 1990 | I35: 0.1401634192 | J35: =INDEX('Default Value References'!$G$4:$G$6,MATCH($G35,'Default Value References'!$F$4:$F$6,0),1) -> 0.00071 | K35: 0.00071 | L35: =INDEX('Default Value References'!$G$12:$G$14,MATCH($G35,'Default Value References'!$F$12:$F$14,0),1) -> 3.32 | M35: =INDEX('Default Value References'!$G$17:$G$19,MATCH($G35,'Default Value References'!$F$17:$F$19,0),1) -> 0.33 | N35: 0.2145 | O35: 0.33 | P35: 0.2145 | Q35: =SUMIFS('Default Value References'!$H$32:$H$49,'Default Value References'!$G$32:$G$49,$E35,'Default Value References'!$F$32:$F$49,$G35) -> 6.68 | R35: 6.68 | S35: =INDEX('Default Value References'!$G$53:$G$55,MATCH($G35,'Default Value References'!$F$53:$F$55,0),1) -> 1.34 | T35: =SUMIFS('Default Value References'!$H$65:$H$82,'Default Value References'!$G$65:$G$82,$E35,'Default Value References'!$F$65:$F$82,$G35) -> 0.96 | U35: =SUMIFS('Default Value References'!$H$86:$H$103,'Default Value References'!$G$86:$G$103,$E35,'Default Value References'!$F$86:$F$103,$G35) -> 1.23 | V35: =SUMIFS('Default Value References'!$I$86:$I$103,'Default Value References'!$G$86:$G$103,$E35,'Default Value References'!$F$86:$F$103,$G35) -> 0.87 | X35: ='Default Value References'!$F$106 -> 11.4 | Y35: ='Default Value References'!$F$110 -> 80 | Z35: 80 | AA35: ='Default Value References'!$F$114 -> 62 | AB35: ='Default Value References'!$F$118 -> EF 86 | AC35: ='Default Value References'!$F$119 -> EF 59 | AD35: ='Default Value References'!$F$120 -> EF 59 | AE35: ='Default Value References'!$F$121 -> EF 52 | AF35: ='Default Value References'!$F$122 -> None | AG35: ='Default Value References'!$F$123 -> None | AH35: ='Default Value References'!$F$124 -> None | AI35: ='Default Value References'!$F$125 -> None | AJ35: 0.00071 | AK35: 0.00071 | AL35: 3.32 | AM35: 0.33 | AN35: 0.2145 | AO35: 0.33 | AP35: 0.2145 | AQ35: 6.68 | AR35: 6.68 | AS35: 1.34 | AT35: 0.96 | AU35: 1.23 | AV35: 0.87 | AX35: ='Default Value References'!$G$106 -> 14 | AY35: ='Default Value References'!$G$110 -> 80 | AZ35: 80 | BA35: ='Default Value References'!$G$114 -> 66 | BB35: ='Default Value References'!$G$118 -> EF 95 | BC35: ='Default Value References'!$G$119 -> EF 60 | BD35: ='Default Value References'!$G$120 -> EF 60 | BE35: ='Default Value References'!$G$121 -> EF 74 | BF35: ='Default Value References'!$G$122 -> None | BG35: ='Default Value References'!$G$123 -> None | BH35: ='Default Value References'!$G$124 -> None | BI35: ='Default Value References'!$G$125 -> None | BJ35: =INDEX('Default Value References'!$I$4:$I$6,MATCH($G35,'Default Value References'!$F$4:$F$6,0),1) -> 0.0006035 | BK35: =INDEX('Default Value References'!$I$7:$I$9,MATCH($G35,'Default Value References'!$F$7:$F$9,0),1) -> 0.000497 | BL35: ='Default Value References'!$I$12 -> 8 | BM35: ='Default Value References'!$I$17 -> 0.1 | BN35: 0.065 | BO35: ='Default Value References'!$I$20 -> 0.05 | BP35: 0.0325 | BQ35: =INDEX('Default Value References'!$K$32:$K$47,MATCH($D35,'Default Value References'!$J$32:$J$47,0),1) -> 38 | BR35: ='Default Value References'!$K$50 -> 44 | BS35: ='Default Value References'!$I$53 -> 19 | BT35: ='Default Value References'!$J$65 -> 13 | BU35: ='Default Value References'!$L$86 -> 0.3 | BV35: ='Default Value References'!$M$86 -> 0.25 | BX35: ='Default Value References'!$H$106 -> 15 | BY35: ='Default Value References'!$H$110 -> 92 | BZ35: ='Default Value References'!$H$111 -> 95 | CA35: ='Default Value References'!$H$114 -> 70 | CB35: ='Default Value References'!$H$118 -> EF 200 | CC35: ='Default Value References'!$H$119 -> EF 67 | CD35: ='Default Value References'!$H$120 -> EF 70 | CE35: ='Default Value References'!$H$121 -> EF 82 | CF35: ='Default Value References'!$H$122 -> Wrap 5 ft | CG35: ='Default Value References'!$H$123 -> Valve | CH35: ='Default Value References'!$H$124 -> Valve & LF | CI35: ='Default Value References'!$H$125 -> Valve & TS
A36: AC | B36: Wall Furnace | C36: Crawlspace | D36: 1 | E36: =VLOOKUP(D36,Lists!$B$3:$C$18,2,FALSE) -> 3 | F36: 1 | G36: pre78 | H36: 1600 | I36: 0.1401634192 | J36: =INDEX('Default Value References'!$G$4:$G$6,MATCH($G36,'Default Value References'!$F$4:$F$6,0),1) -> 0.00071 | K36: 0.00071 | L36: =INDEX('Default Value References'!$G$12:$G$14,MATCH($G36,'Default Value References'!$F$12:$F$14,0),1) -> 3.32 | M36: =INDEX('Default Value References'!$G$17:$G$19,MATCH($G36,'Default Value References'!$F$17:$F$19,0),1) -> 0.33 | N36: 0.2475 | O36: 0.33 | P36: 0.2475 | Q36: =SUMIFS('Default Value References'!$H$32:$H$49,'Default Value References'!$G$32:$G$49,$E36,'Default Value References'!$F$32:$F$49,$G36) -> 6.68 | R36: 6.68 | S36: =INDEX('Default Value References'!$G$53:$G$55,MATCH($G36,'Default Value References'!$F$53:$F$55,0),1) -> 1.34 | T36: =SUMIFS('Default Value References'!$H$65:$H$82,'Default Value References'!$G$65:$G$82,$E36,'Default Value References'!$F$65:$F$82,$G36) -> 0.96 | U36: =SUMIFS('Default Value References'!$H$86:$H$103,'Default Value References'!$G$86:$G$103,$E36,'Default Value References'!$F$86:$F$103,$G36) -> 1.23 | V36: =SUMIFS('Default Value References'!$I$86:$I$103,'Default Value References'!$G$86:$G$103,$E36,'Default Value References'!$F$86:$F$103,$G36) -> 0.87 | X36: ='Default Value References'!$F$106 -> 11.4 | Y36: ='Default Value References'!$F$110 -> 80 | Z36: 80 | AA36: ='Default Value References'!$F$114 -> 62 | AB36: ='Default Value References'!$F$118 -> EF 86 | AC36: ='Default Value References'!$F$119 -> EF 59 | AD36: ='Default Value References'!$F$120 -> EF 59 | AE36: ='Default Value References'!$F$121 -> EF 52 | AF36: ='Default Value References'!$F$122 -> None | AG36: ='Default Value References'!$F$123 -> None | AH36: ='Default Value References'!$F$124 -> None | AI36: ='Default Value References'!$F$125 -> None | AJ36: 0.00071 | AK36: 0.00071 | AL36: 3.32 | AM36: 0.33 | AN36: 0.2475 | AO36: 0.33 | AP36: 0.2475 | AQ36: 6.68 | AR36: 6.68 | AS36: 1.34 | AT36: 0.96 | AU36: 1.23 | AV36: 0.87 | AX36: ='Default Value References'!$G$106 -> 14 | AY36: ='Default Value References'!$G$110 -> 80 | AZ36: 80 | BA36: ='Default Value References'!$G$114 -> 66 | BB36: ='Default Value References'!$G$118 -> EF 95 | BC36: ='Default Value References'!$G$119 -> EF 60 | BD36: ='Default Value References'!$G$120 -> EF 60 | BE36: ='Default Value References'!$G$121 -> EF 74 | BF36: ='Default Value References'!$G$122 -> None | BG36: ='Default Value References'!$G$123 -> None | BH36: ='Default Value References'!$G$124 -> None | BI36: ='Default Value References'!$G$125 -> None | BJ36: =INDEX('Default Value References'!$I$4:$I$6,MATCH($G36,'Default Value References'!$F$4:$F$6,0),1) -> 0.0006035 | BK36: =INDEX('Default Value References'!$I$7:$I$9,MATCH($G36,'Default Value References'!$F$7:$F$9,0),1) -> 0.000497 | BL36: ='Default Value References'!$I$12 -> 8 | BM36: ='Default Value References'!$I$17 -> 0.1 | BN36: 0.075 | BO36: ='Default Value References'!$I$20 -> 0.05 | BP36: 0.0375 | BQ36: =INDEX('Default Value References'!$K$32:$K$47,MATCH($D36,'Default Value References'!$J$32:$J$47,0),1) -> 38 | BR36: ='Default Value References'!$K$50 -> 44 | BS36: ='Default Value References'!$I$53 -> 19 | BT36: ='Default Value References'!$J$65 -> 13 | BU36: ='Default Value References'!$L$86 -> 0.3 | BV36: ='Default Value References'!$M$86 -> 0.25 | BX36: ='Default Value References'!$H$106 -> 15 | BY36: ='Default Value References'!$H$110 -> 92 | BZ36: ='Default Value References'!$H$111 -> 95 | CA36: ='Default Value References'!$H$114 -> 70 | CB36: ='Default Value References'!$H$118 -> EF 200 | CC36: ='Default Value References'!$H$119 -> EF 67 | CD36: ='Default Value References'!$H$120 -> EF 70 | CE36: ='Default Value References'!$H$121 -> EF 82 | CF36: ='Default Value References'!$H$122 -> Wrap 5 ft | CG36: ='Default Value References'!$H$123 -> Valve | CH36: ='Default Value References'!$H$124 -> Valve & LF | CI36: ='Default Value References'!$H$125 -> Valve & TS
A37: AC | B37: Wall Furnace | C37: Crawlspace | D37: 1 | E37: =VLOOKUP(D37,Lists!$B$3:$C$18,2,FALSE) -> 3 | F37: 2 | G37: pre78 | H37: 1990 | I37: 0.1401634192 | J37: =INDEX('Default Value References'!$G$4:$G$6,MATCH($G37,'Default Value References'!$F$4:$F$6,0),1) -> 0.00071 | K37: 0.00071 | L37: =INDEX('Default Value References'!$G$12:$G$14,MATCH($G37,'Default Value References'!$F$12:$F$14,0),1) -> 3.32 | M37: =INDEX('Default Value References'!$G$17:$G$19,MATCH($G37,'Default Value References'!$F$17:$F$19,0),1) -> 0.33 | N37: 0.2145 | O37: 0.33 | P37: 0.2145 | Q37: =SUMIFS('Default Value References'!$H$32:$H$49,'Default Value References'!$G$32:$G$49,$E37,'Default Value References'!$F$32:$F$49,$G37) -> 6.68 | R37: 6.68 | S37: =INDEX('Default Value References'!$G$53:$G$55,MATCH($G37,'Default Value References'!$F$53:$F$55,0),1) -> 1.34 | T37: =SUMIFS('Default Value References'!$H$65:$H$82,'Default Value References'!$G$65:$G$82,$E37,'Default Value References'!$F$65:$F$82,$G37) -> 0.96 | U37: =SUMIFS('Default Value References'!$H$86:$H$103,'Default Value References'!$G$86:$G$103,$E37,'Default Value References'!$F$86:$F$103,$G37) -> 1.23 | V37: =SUMIFS('Default Value References'!$I$86:$I$103,'Default Value References'!$G$86:$G$103,$E37,'Default Value References'!$F$86:$F$103,$G37) -> 0.87 | X37: ='Default Value References'!$F$106 -> 11.4 | Y37: ='Default Value References'!$F$110 -> 80 | Z37: 80 | AA37: ='Default Value References'!$F$114 -> 62 | AB37: ='Default Value References'!$F$118 -> EF 86 | AC37: ='Default Value References'!$F$119 -> EF 59 | AD37: ='Default Value References'!$F$120 -> EF 59 | AE37: ='Default Value References'!$F$121 -> EF 52 | AF37: ='Default Value References'!$F$122 -> None | AG37: ='Default Value References'!$F$123 -> None | AH37: ='Default Value References'!$F$124 -> None | AI37: ='Default Value References'!$F$125 -> None | AJ37: 0.00071 | AK37: 0.00071 | AL37: 3.32 | AM37: 0.33 | AN37: 0.2145 | AO37: 0.33 | AP37: 0.2145 | AQ37: 6.68 | AR37: 6.68 | AS37: 1.34 | AT37: 0.96 | AU37: 1.23 | AV37: 0.87 | AX37: ='Default Value References'!$G$106 -> 14 | AY37: ='Default Value References'!$G$110 -> 80 | AZ37: 80 | BA37: ='Default Value References'!$G$114 -> 66 | BB37: ='Default Value References'!$G$118 -> EF 95 | BC37: ='Default Value References'!$G$119 -> EF 60 | BD37: ='Default Value References'!$G$120 -> EF 60 | BE37: ='Default Value References'!$G$121 -> EF 74 | BF37: ='Default Value References'!$G$122 -> None | BG37: ='Default Value References'!$G$123 -> None | BH37: ='Default Value References'!$G$124 -> None | BI37: ='Default Value References'!$G$125 -> None | BJ37: =INDEX('Default Value References'!$I$4:$I$6,MATCH($G37,'Default Value References'!$F$4:$F$6,0),1) -> 0.0006035 | BK37: =INDEX('Default Value References'!$I$7:$I$9,MATCH($G37,'Default Value References'!$F$7:$F$9,0),1) -> 0.000497 | BL37: ='Default Value References'!$I$12 -> 8 | BM37: ='Default Value References'!$I$17 -> 0.1 | BN37: 0.065 | BO37: ='Default Value References'!$I$20 -> 0.05 | BP37: 0.0325 | BQ37: =INDEX('Default Value References'!$K$32:$K$47,MATCH($D37,'Default Value References'!$J$32:$J$47,0),1) -> 38 | BR37: ='Default Value References'!$K$50 -> 44 | BS37: ='Default Value References'!$I$53 -> 19 | BT37: ='Default Value References'!$J$65 -> 13 | BU37: ='Default Value References'!$L$86 -> 0.3 | BV37: ='Default Value References'!$M$86 -> 0.25 | BX37: ='Default Value References'!$H$106 -> 15 | BY37: ='Default Value References'!$H$110 -> 92 | BZ37: ='Default Value References'!$H$111 -> 95 | CA37: ='Default Value References'!$H$114 -> 70 | CB37: ='Default Value References'!$H$118 -> EF 200 | CC37: ='Default Value References'!$H$119 -> EF 67 | CD37: ='Default Value References'!$H$120 -> EF 70 | CE37: ='Default Value References'!$H$121 -> EF 82 | CF37: ='Default Value References'!$H$122 -> Wrap 5 ft | CG37: ='Default Value References'!$H$123 -> Valve | CH37: ='Default Value References'!$H$124 -> Valve & LF | CI37: ='Default Value References'!$H$125 -> Valve & TS
A38: No AC | B38: Wall Furnace | C38: Slab-on-grade | D38: 1 | E38: =VLOOKUP(D38,Lists!$B$3:$C$18,2,FALSE) -> 3 | F38: 1 | G38: 78-92 | H38: 1810 | I38: 0.1150210084 | J38: =INDEX('Default Value References'!$G$4:$G$6,MATCH($G38,'Default Value References'!$F$4:$F$6,0),1) -> 0.00052 | K38: 0.00052 | L38: =INDEX('Default Value References'!$G$12:$G$14,MATCH($G38,'Default Value References'!$F$12:$F$14,0),1) -> 3.67 | M38: =INDEX('Default Value References'!$G$17:$G$19,MATCH($G38,'Default Value References'!$F$17:$F$19,0),1) -> 0.26 | N38: 0.195 | O38: 0.26 | P38: 0.195 | Q38: =SUMIFS('Default Value References'!$H$32:$H$49,'Default Value References'!$G$32:$G$49,$E38,'Default Value References'!$F$32:$F$49,$G38) -> 10.31 | R38: 10.31 | S38: =INDEX('Default Value References'!$G$53:$G$55,MATCH($G38,'Default Value References'!$F$53:$F$55,0),1) -> 5.96 | T38: =SUMIFS('Default Value References'!$H$65:$H$82,'Default Value References'!$G$65:$G$82,$E38,'Default Value References'!$F$65:$F$82,$G38) -> 10.25 | U38: =SUMIFS('Default Value References'!$H$86:$H$103,'Default Value References'!$G$86:$G$103,$E38,'Default Value References'!$F$86:$F$103,$G38) -> 0.82 | V38: =SUMIFS('Default Value References'!$I$86:$I$103,'Default Value References'!$G$86:$G$103,$E38,'Default Value References'!$F$86:$F$103,$G38) -> 0.79 | X38: ='Default Value References'!$F$106 -> 11.4 | Y38: ='Default Value References'!$F$110 -> 80 | Z38: 80 | AA38: ='Default Value References'!$F$114 -> 62 | AB38: ='Default Value References'!$F$118 -> EF 86 | AC38: ='Default Value References'!$F$119 -> EF 59 | AD38: ='Default Value References'!$F$120 -> EF 59 | AE38: ='Default Value References'!$F$121 -> EF 52 | AF38: ='Default Value References'!$F$122 -> None | AG38: ='Default Value References'!$F$123 -> None | AH38: ='Default Value References'!$F$124 -> None | AI38: ='Default Value References'!$F$125 -> None | AJ38: 0.00052 | AK38: 0.00052 | AL38: 3.67 | AM38: 0.26 | AN38: 0.195 | AO38: 0.26 | AP38: 0.195 | AQ38: 10.31 | AR38: 10.31 | AS38: 5.96 | AT38: 10.25 | AU38: 0.82 | AV38: 0.79 | AX38: ='Default Value References'!$G$106 -> 14 | AY38: ='Default Value References'!$G$110 -> 80 | AZ38: 80 | BA38: ='Default Value References'!$G$114 -> 66 | BB38: ='Default Value References'!$G$118 -> EF 95 | BC38: ='Default Value References'!$G$119 -> EF 60 | BD38: ='Default Value References'!$G$120 -> EF 60 | BE38: ='Default Value References'!$G$121 -> EF 74 | BF38: ='Default Value References'!$G$122 -> None | BG38: ='Default Value References'!$G$123 -> None | BH38: ='Default Value References'!$G$124 -> None | BI38: ='Default Value References'!$G$125 -> None | BJ38: =INDEX('Default Value References'!$I$4:$I$6,MATCH($G38,'Default Value References'!$F$4:$F$6,0),1) -> 0.000442 | BK38: =INDEX('Default Value References'!$I$7:$I$9,MATCH($G38,'Default Value References'!$F$7:$F$9,0),1) -> 0.000364 | BL38: ='Default Value References'!$I$12 -> 8 | BM38: ='Default Value References'!$I$17 -> 0.1 | BN38: 0.075 | BO38: ='Default Value References'!$I$20 -> 0.05 | BP38: 0.0375 | BQ38: =INDEX('Default Value References'!$K$32:$K$47,MATCH($D38,'Default Value References'!$J$32:$J$47,0),1) -> 38 | BR38: ='Default Value References'!$K$50 -> 44 | BS38: ='Default Value References'!$I$53 -> 19 | BT38: ='Default Value References'!$J$65 -> 13 | BU38: ='Default Value References'!$L$86 -> 0.3 | BV38: ='Default Value References'!$M$86 -> 0.25 | BX38: ='Default Value References'!$H$106 -> 15 | BY38: ='Default Value References'!$H$110 -> 92 | BZ38: ='Default Value References'!$H$111 -> 95 | CA38: ='Default Value References'!$H$114 -> 70 | CB38: ='Default Value References'!$H$118 -> EF 200 | CC38: ='Default Value References'!$H$119 -> EF 67 | CD38: ='Default Value References'!$H$120 -> EF 70 | CE38: ='Default Value References'!$H$121 -> EF 82 | CF38: ='Default Value References'!$H$122 -> Wrap 5 ft | CG38: ='Default Value References'!$H$123 -> Valve | CH38: ='Default Value References'!$H$124 -> Valve & LF | CI38: ='Default Value References'!$H$125 -> Valve & TS
A39: No AC | B39: Wall Furnace | C39: Slab-on-grade | D39: 1 | E39: =VLOOKUP(D39,Lists!$B$3:$C$18,2,FALSE) -> 3 | F39: 2 | G39: 78-92 | H39: 2400 | I39: 0.1150210084 | J39: =INDEX('Default Value References'!$G$4:$G$6,MATCH($G39,'Default Value References'!$F$4:$F$6,0),1) -> 0.00052 | K39: 0.00052 | L39: =INDEX('Default Value References'!$G$12:$G$14,MATCH($G39,'Default Value References'!$F$12:$F$14,0),1) -> 3.67 | M39: =INDEX('Default Value References'!$G$17:$G$19,MATCH($G39,'Default Value References'!$F$17:$F$19,0),1) -> 0.26 | N39: 0.169 | O39: 0.26 | P39: 0.169 | Q39: =SUMIFS('Default Value References'!$H$32:$H$49,'Default Value References'!$G$32:$G$49,$E39,'Default Value References'!$F$32:$F$49,$G39) -> 10.31 | R39: 10.31 | S39: =INDEX('Default Value References'!$G$53:$G$55,MATCH($G39,'Default Value References'!$F$53:$F$55,0),1) -> 5.96 | T39: =SUMIFS('Default Value References'!$H$65:$H$82,'Default Value References'!$G$65:$G$82,$E39,'Default Value References'!$F$65:$F$82,$G39) -> 10.25 | U39: =SUMIFS('Default Value References'!$H$86:$H$103,'Default Value References'!$G$86:$G$103,$E39,'Default Value References'!$F$86:$F$103,$G39) -> 0.82 | V39: =SUMIFS('Default Value References'!$I$86:$I$103,'Default Value References'!$G$86:$G$103,$E39,'Default Value References'!$F$86:$F$103,$G39) -> 0.79 | X39: ='Default Value References'!$F$106 -> 11.4 | Y39: ='Default Value References'!$F$110 -> 80 | Z39: 80 | AA39: ='Default Value References'!$F$114 -> 62 | AB39: ='Default Value References'!$F$118 -> EF 86 | AC39: ='Default Value References'!$F$119 -> EF 59 | AD39: ='Default Value References'!$F$120 -> EF 59 | AE39: ='Default Value References'!$F$121 -> EF 52 | AF39: ='Default Value References'!$F$122 -> None | AG39: ='Default Value References'!$F$123 -> None | AH39: ='Default Value References'!$F$124 -> None | AI39: ='Default Value References'!$F$125 -> None | AJ39: 0.00052 | AK39: 0.00052 | AL39: 3.67 | AM39: 0.26 | AN39: 0.169 | AO39: 0.26 | AP39: 0.169 | AQ39: 10.31 | AR39: 10.31 | AS39: 5.96 | AT39: 10.25 | AU39: 0.82 | AV39: 0.79 | AX39: ='Default Value References'!$G$106 -> 14 | AY39: ='Default Value References'!$G$110 -> 80 | AZ39: 80 | BA39: ='Default Value References'!$G$114 -> 66 | BB39: ='Default Value References'!$G$118 -> EF 95 | BC39: ='Default Value References'!$G$119 -> EF 60 | BD39: ='Default Value References'!$G$120 -> EF 60 | BE39: ='Default Value References'!$G$121 -> EF 74 | BF39: ='Default Value References'!$G$122 -> None | BG39: ='Default Value References'!$G$123 -> None | BH39: ='Default Value References'!$G$124 -> None | BI39: ='Default Value References'!$G$125 -> None | BJ39: =INDEX('Default Value References'!$I$4:$I$6,MATCH($G39,'Default Value References'!$F$4:$F$6,0),1) -> 0.000442 | BK39: =INDEX('Default Value References'!$I$7:$I$9,MATCH($G39,'Default Value References'!$F$7:$F$9,0),1) -> 0.000364 | BL39: ='Default Value References'!$I$12 -> 8 | BM39: ='Default Value References'!$I$17 -> 0.1 | BN39: 0.065 | BO39: ='Default Value References'!$I$20 -> 0.05 | BP39: 0.0325 | BQ39: =INDEX('Default Value References'!$K$32:$K$47,MATCH($D39,'Default Value References'!$J$32:$J$47,0),1) -> 38 | BR39: ='Default Value References'!$K$50 -> 44 | BS39: ='Default Value References'!$I$53 -> 19 | BT39: ='Default Value References'!$J$65 -> 13 | BU39: ='Default Value References'!$L$86 -> 0.3 | BV39: ='Default Value References'!$M$86 -> 0.25 | BX39: ='Default Value References'!$H$106 -> 15 | BY39: ='Default Value References'!$H$110 -> 92 | BZ39: ='Default Value References'!$H$111 -> 95 | CA39: ='Default Value References'!$H$114 -> 70 | CB39: ='Default Value References'!$H$118 -> EF 200 | CC39: ='Default Value References'!$H$119 -> EF 67 | CD39: ='Default Value References'!$H$120 -> EF 70 | CE39: ='Default Value References'!$H$121 -> EF 82 | CF39: ='Default Value References'!$H$122 -> Wrap 5 ft | CG39: ='Default Value References'!$H$123 -> Valve | CH39: ='Default Value References'!$H$124 -> Valve & LF | CI39: ='Default Value References'!$H$125 -> Valve & TS
A40: AC | B40: Wall Furnace | C40: Slab-on-grade | D40: 1 | E40: =VLOOKUP(D40,Lists!$B$3:$C$18,2,FALSE) -> 3 | F40: 1 | G40: 78-92 | H40: 1810 | I40: 0.1150210084 | J40: =INDEX('Default Value References'!$G$4:$G$6,MATCH($G40,'Default Value References'!$F$4:$F$6,0),1) -> 0.00052 | K40: 0.00052 | L40: =INDEX('Default Value References'!$G$12:$G$14,MATCH($G40,'Default Value References'!$F$12:$F$14,0),1) -> 3.67 | M40: =INDEX('Default Value References'!$G$17:$G$19,MATCH($G40,'Default Value References'!$F$17:$F$19,0),1) -> 0.26 | N40: 0.195 | O40: 0.26 | P40: 0.195 | Q40: =SUMIFS('Default Value References'!$H$32:$H$49,'Default Value References'!$G$32:$G$49,$E40,'Default Value References'!$F$32:$F$49,$G40) -> 10.31 | R40: 10.31 | S40: =INDEX('Default Value References'!$G$53:$G$55,MATCH($G40,'Default Value References'!$F$53:$F$55,0),1) -> 5.96 | T40: =SUMIFS('Default Value References'!$H$65:$H$82,'Default Value References'!$G$65:$G$82,$E40,'Default Value References'!$F$65:$F$82,$G40) -> 10.25 | U40: =SUMIFS('Default Value References'!$H$86:$H$103,'Default Value References'!$G$86:$G$103,$E40,'Default Value References'!$F$86:$F$103,$G40) -> 0.82 | V40: =SUMIFS('Default Value References'!$I$86:$I$103,'Default Value References'!$G$86:$G$103,$E40,'Default Value References'!$F$86:$F$103,$G40) -> 0.79 | X40: ='Default Value References'!$F$106 -> 11.4 | Y40: ='Default Value References'!$F$110 -> 80 | Z40: 80 | AA40: ='Default Value References'!$F$114 -> 62 | AB40: ='Default Value References'!$F$118 -> EF 86 | AC40: ='Default Value References'!$F$119 -> EF 59 | AD40: ='Default Value References'!$F$120 -> EF 59 | AE40: ='Default Value References'!$F$121 -> EF 52 | AF40: ='Default Value References'!$F$122 -> None | AG40: ='Default Value References'!$F$123 -> None | AH40: ='Default Value References'!$F$124 -> None | AI40: ='Default Value References'!$F$125 -> None | AJ40: 0.00052 | AK40: 0.00052 | AL40: 3.67 | AM40: 0.26 | AN40: 0.195 | AO40: 0.26 | AP40: 0.195 | AQ40: 10.31 | AR40: 10.31 | AS40: 5.96 | AT40: 10.25 | AU40: 0.82 | AV40: 0.79 | AX40: ='Default Value References'!$G$106 -> 14 | AY40: ='Default Value References'!$G$110 -> 80 | AZ40: 80 | BA40: ='Default Value References'!$G$114 -> 66 | BB40: ='Default Value References'!$G$118 -> EF 95 | BC40: ='Default Value References'!$G$119 -> EF 60 | BD40: ='Default Value References'!$G$120 -> EF 60 | BE40: ='Default Value References'!$G$121 -> EF 74 | BF40: ='Default Value References'!$G$122 -> None | BG40: ='Default Value References'!$G$123 -> None | BH40: ='Default Value References'!$G$124 -> None | BI40: ='Default Value References'!$G$125 -> None | BJ40: =INDEX('Default Value References'!$I$4:$I$6,MATCH($G40,'Default Value References'!$F$4:$F$6,0),1) -> 0.000442 | BK40: =INDEX('Default Value References'!$I$7:$I$9,MATCH($G40,'Default Value References'!$F$7:$F$9,0),1) -> 0.000364 | BL40: ='Default Value References'!$I$12 -> 8 | BM40: ='Default Value References'!$I$17 -> 0.1 | BN40: 0.075 | BO40: ='Default Value References'!$I$20 -> 0.05 | BP40: 0.0375 | BQ40: =INDEX('Default Value References'!$K$32:$K$47,MATCH($D40,'Default Value References'!$J$32:$J$47,0),1) -> 38 | BR40: ='Default Value References'!$K$50 -> 44 | BS40: ='Default Value References'!$I$53 -> 19 | BT40: ='Default Value References'!$J$65 -> 13 | BU40: ='Default Value References'!$L$86 -> 0.3 | BV40: ='Default Value References'!$M$86 -> 0.25 | BX40: ='Default Value References'!$H$106 -> 15 | BY40: ='Default Value References'!$H$110 -> 92 | BZ40: ='Default Value References'!$H$111 -> 95 | CA40: ='Default Value References'!$H$114 -> 70 | CB40: ='Default Value References'!$H$118 -> EF 200 | CC40: ='Default Value References'!$H$119 -> EF 67 | CD40: ='Default Value References'!$H$120 -> EF 70 | CE40: ='Default Value References'!$H$121 -> EF 82 | CF40: ='Default Value References'!$H$122 -> Wrap 5 ft | CG40: ='Default Value References'!$H$123 -> Valve | CH40: ='Default Value References'!$H$124 -> Valve & LF | CI40: ='Default Value References'!$H$125 -> Valve & TS
A41: AC | B41: Wall Furnace | C41: Slab-on-grade | D41: 1 | E41: =VLOOKUP(D41,Lists!$B$3:$C$18,2,FALSE) -> 3 | F41: 2 | G41: 78-92 | H41: 2400 | I41: 0.1150210084 | J41: =INDEX('Default Value References'!$G$4:$G$6,MATCH($G41,'Default Value References'!$F$4:$F$6,0),1) -> 0.00052 | K41: 0.00052 | L41: =INDEX('Default Value References'!$G$12:$G$14,MATCH($G41,'Default Value References'!$F$12:$F$14,0),1) -> 3.67 | M41: =INDEX('Default Value References'!$G$17:$G$19,MATCH($G41,'Default Value References'!$F$17:$F$19,0),1) -> 0.26 | N41: 0.169 | O41: 0.26 | P41: 0.169 | Q41: =SUMIFS('Default Value References'!$H$32:$H$49,'Default Value References'!$G$32:$G$49,$E41,'Default Value References'!$F$32:$F$49,$G41) -> 10.31 | R41: 10.31 | S41: =INDEX('Default Value References'!$G$53:$G$55,MATCH($G41,'Default Value References'!$F$53:$F$55,0),1) -> 5.96 | T41: =SUMIFS('Default Value References'!$H$65:$H$82,'Default Value References'!$G$65:$G$82,$E41,'Default Value References'!$F$65:$F$82,$G41) -> 10.25 | U41: =SUMIFS('Default Value References'!$H$86:$H$103,'Default Value References'!$G$86:$G$103,$E41,'Default Value References'!$F$86:$F$103,$G41) -> 0.82 | V41: =SUMIFS('Default Value References'!$I$86:$I$103,'Default Value References'!$G$86:$G$103,$E41,'Default Value References'!$F$86:$F$103,$G41) -> 0.79 | X41: ='Default Value References'!$F$106 -> 11.4 | Y41: ='Default Value References'!$F$110 -> 80 | Z41: 80 | AA41: ='Default Value References'!$F$114 -> 62 | AB41: ='Default Value References'!$F$118 -> EF 86 | AC41: ='Default Value References'!$F$119 -> EF 59 | AD41: ='Default Value References'!$F$120 -> EF 59 | AE41: ='Default Value References'!$F$121 -> EF 52 | AF41: ='Default Value References'!$F$122 -> None | AG41: ='Default Value References'!$F$123 -> None | AH41: ='Default Value References'!$F$124 -> None | AI41: ='Default Value References'!$F$125 -> None | AJ41: 0.00052 | AK41: 0.00052 | AL41: 3.67 | AM41: 0.26 | AN41: 0.169 | AO41: 0.26 | AP41: 0.169 | AQ41: 10.31 | AR41: 10.31 | AS41: 5.96 | AT41: 10.25 | AU41: 0.82 | AV41: 0.79 | AX41: ='Default Value References'!$G$106 -> 14 | AY41: ='Default Value References'!$G$110 -> 80 | AZ41: 80 | BA41: ='Default Value References'!$G$114 -> 66 | BB41: ='Default Value References'!$G$118 -> EF 95 | BC41: ='Default Value References'!$G$119 -> EF 60 | BD41: ='Default Value References'!$G$120 -> EF 60 | BE41: ='Default Value References'!$G$121 -> EF 74 | BF41: ='Default Value References'!$G$122 -> None | BG41: ='Default Value References'!$G$123 -> None | BH41: ='Default Value References'!$G$124 -> None | BI41: ='Default Value References'!$G$125 -> None | BJ41: =INDEX('Default Value References'!$I$4:$I$6,MATCH($G41,'Default Value References'!$F$4:$F$6,0),1) -> 0.000442 | BK41: =INDEX('Default Value References'!$I$7:$I$9,MATCH($G41,'Default Value References'!$F$7:$F$9,0),1) -> 0.000364 | BL41: ='Default Value References'!$I$12 -> 8 | BM41: ='Default Value References'!$I$17 -> 0.1 | BN41: 0.065 | BO41: ='Default Value References'!$I$20 -> 0.05 | BP41: 0.0325 | BQ41: =INDEX('Default Value References'!$K$32:$K$47,MATCH($D41,'Default Value References'!$J$32:$J$47,0),1) -> 38 | BR41: ='Default Value References'!$K$50 -> 44 | BS41: ='Default Value References'!$I$53 -> 19 | BT41: ='Default Value References'!$J$65 -> 13 | BU41: ='Default Value References'!$L$86 -> 0.3 | BV41: ='Default Value References'!$M$86 -> 0.25 | BX41: ='Default Value References'!$H$106 -> 15 | BY41: ='Default Value References'!$H$110 -> 92 | BZ41: ='Default Value References'!$H$111 -> 95 | CA41: ='Default Value References'!$H$114 -> 70 | CB41: ='Default Value References'!$H$118 -> EF 200 | CC41: ='Default Value References'!$H$119 -> EF 67 | CD41: ='Default Value References'!$H$120 -> EF 70 | CE41: ='Default Value References'!$H$121 -> EF 82 | CF41: ='Default Value References'!$H$122 -> Wrap 5 ft | CG41: ='Default Value References'!$H$123 -> Valve | CH41: ='Default Value References'!$H$124 -> Valve & LF | CI41: ='Default Value References'!$H$125 -> Valve & TS
A42: No AC | B42: Wall Furnace | C42: Crawlspace | D42: 1 | E42: =VLOOKUP(D42,Lists!$B$3:$C$18,2,FALSE) -> 3 | F42: 1 | G42: 78-92 | H42: 1810 | I42: 0.1150210084 | J42: =INDEX('Default Value References'!$G$4:$G$6,MATCH($G42,'Default Value References'!$F$4:$F$6,0),1) -> 0.00052 | K42: 0.00052 | L42: =INDEX('Default Value References'!$G$12:$G$14,MATCH($G42,'Default Value References'!$F$12:$F$14,0),1) -> 3.67 | M42: =INDEX('Default Value References'!$G$17:$G$19,MATCH($G42,'Default Value References'!$F$17:$F$19,0),1) -> 0.26 | N42: 0.195 | O42: 0.26 | P42: 0.195 | Q42: =SUMIFS('Default Value References'!$H$32:$H$49,'Default Value References'!$G$32:$G$49,$E42,'Default Value References'!$F$32:$F$49,$G42) -> 10.31 | R42: 10.31 | S42: =INDEX('Default Value References'!$G$53:$G$55,MATCH($G42,'Default Value References'!$F$53:$F$55,0),1) -> 5.96 | T42: =SUMIFS('Default Value References'!$H$65:$H$82,'Default Value References'!$G$65:$G$82,$E42,'Default Value References'!$F$65:$F$82,$G42) -> 10.25 | U42: =SUMIFS('Default Value References'!$H$86:$H$103,'Default Value References'!$G$86:$G$103,$E42,'Default Value References'!$F$86:$F$103,$G42) -> 0.82 | V42: =SUMIFS('Default Value References'!$I$86:$I$103,'Default Value References'!$G$86:$G$103,$E42,'Default Value References'!$F$86:$F$103,$G42) -> 0.79 | X42: ='Default Value References'!$F$106 -> 11.4 | Y42: ='Default Value References'!$F$110 -> 80 | Z42: 80 | AA42: ='Default Value References'!$F$114 -> 62 | AB42: ='Default Value References'!$F$118 -> EF 86 | AC42: ='Default Value References'!$F$119 -> EF 59 | AD42: ='Default Value References'!$F$120 -> EF 59 | AE42: ='Default Value References'!$F$121 -> EF 52 | AF42: ='Default Value References'!$F$122 -> None | AG42: ='Default Value References'!$F$123 -> None | AH42: ='Default Value References'!$F$124 -> None | AI42: ='Default Value References'!$F$125 -> None | AJ42: 0.00052 | AK42: 0.00052 | AL42: 3.67 | AM42: 0.26 | AN42: 0.195 | AO42: 0.26 | AP42: 0.195 | AQ42: 10.31 | AR42: 10.31 | AS42: 5.96 | AT42: 10.25 | AU42: 0.82 | AV42: 0.79 | AX42: ='Default Value References'!$G$106 -> 14 | AY42: ='Default Value References'!$G$110 -> 80 | AZ42: 80 | BA42: ='Default Value References'!$G$114 -> 66 | BB42: ='Default Value References'!$G$118 -> EF 95 | BC42: ='Default Value References'!$G$119 -> EF 60 | BD42: ='Default Value References'!$G$120 -> EF 60 | BE42: ='Default Value References'!$G$121 -> EF 74 | BF42: ='Default Value References'!$G$122 -> None | BG42: ='Default Value References'!$G$123 -> None | BH42: ='Default Value References'!$G$124 -> None | BI42: ='Default Value References'!$G$125 -> None | BJ42: =INDEX('Default Value References'!$I$4:$I$6,MATCH($G42,'Default Value References'!$F$4:$F$6,0),1) -> 0.000442 | BK42: =INDEX('Default Value References'!$I$7:$I$9,MATCH($G42,'Default Value References'!$F$7:$F$9,0),1) -> 0.000364 | BL42: ='Default Value References'!$I$12 -> 8 | BM42: ='Default Value References'!$I$17 -> 0.1 | BN42: 0.075 | BO42: ='Default Value References'!$I$20 -> 0.05 | BP42: 0.0375 | BQ42: =INDEX('Default Value References'!$K$32:$K$47,MATCH($D42,'Default Value References'!$J$32:$J$47,0),1) -> 38 | BR42: ='Default Value References'!$K$50 -> 44 | BS42: ='Default Value References'!$I$53 -> 19 | BT42: ='Default Value References'!$J$65 -> 13 | BU42: ='Default Value References'!$L$86 -> 0.3 | BV42: ='Default Value References'!$M$86 -> 0.25 | BX42: ='Default Value References'!$H$106 -> 15 | BY42: ='Default Value References'!$H$110 -> 92 | BZ42: ='Default Value References'!$H$111 -> 95 | CA42: ='Default Value References'!$H$114 -> 70 | CB42: ='Default Value References'!$H$118 -> EF 200 | CC42: ='Default Value References'!$H$119 -> EF 67 | CD42: ='Default Value References'!$H$120 -> EF 70 | CE42: ='Default Value References'!$H$121 -> EF 82 | CF42: ='Default Value References'!$H$122 -> Wrap 5 ft | CG42: ='Default Value References'!$H$123 -> Valve | CH42: ='Default Value References'!$H$124 -> Valve & LF | CI42: ='Default Value References'!$H$125 -> Valve & TS
A43: No AC | B43: Wall Furnace | C43: Crawlspace | D43: 1 | E43: =VLOOKUP(D43,Lists!$B$3:$C$18,2,FALSE) -> 3 | F43: 2 | G43: 78-92 | H43: 2400 | I43: 0.1150210084 | J43: =INDEX('Default Value References'!$G$4:$G$6,MATCH($G43,'Default Value References'!$F$4:$F$6,0),1) -> 0.00052 | K43: 0.00052 | L43: =INDEX('Default Value References'!$G$12:$G$14,MATCH($G43,'Default Value References'!$F$12:$F$14,0),1) -> 3.67 | M43: =INDEX('Default Value References'!$G$17:$G$19,MATCH($G43,'Default Value References'!$F$17:$F$19,0),1) -> 0.26 | N43: 0.169 | O43: 0.26 | P43: 0.169 | Q43: =SUMIFS('Default Value References'!$H$32:$H$49,'Default Value References'!$G$32:$G$49,$E43,'Default Value References'!$F$32:$F$49,$G43) -> 10.31 | R43: 10.31 | S43: =INDEX('Default Value References'!$G$53:$G$55,MATCH($G43,'Default Value References'!$F$53:$F$55,0),1) -> 5.96 | T43: =SUMIFS('Default Value References'!$H$65:$H$82,'Default Value References'!$G$65:$G$82,$E43,'Default Value References'!$F$65:$F$82,$G43) -> 10.25 | U43: =SUMIFS('Default Value References'!$H$86:$H$103,'Default Value References'!$G$86:$G$103,$E43,'Default Value References'!$F$86:$F$103,$G43) -> 0.82 | V43: =SUMIFS('Default Value References'!$I$86:$I$103,'Default Value References'!$G$86:$G$103,$E43,'Default Value References'!$F$86:$F$103,$G43) -> 0.79 | X43: ='Default Value References'!$F$106 -> 11.4 | Y43: ='Default Value References'!$F$110 -> 80 | Z43: 80 | AA43: ='Default Value References'!$F$114 -> 62 | AB43: ='Default Value References'!$F$118 -> EF 86 | AC43: ='Default Value References'!$F$119 -> EF 59 | AD43: ='Default Value References'!$F$120 -> EF 59 | AE43: ='Default Value References'!$F$121 -> EF 52 | AF43: ='Default Value References'!$F$122 -> None | AG43: ='Default Value References'!$F$123 -> None | AH43: ='Default Value References'!$F$124 -> None | AI43: ='Default Value References'!$F$125 -> None | AJ43: 0.00052 | AK43: 0.00052 | AL43: 3.67 | AM43: 0.26 | AN43: 0.169 | AO43: 0.26 | AP43: 0.169 | AQ43: 10.31 | AR43: 10.31 | AS43: 5.96 | AT43: 10.25 | AU43: 0.82 | AV43: 0.79 | AX43: ='Default Value References'!$G$106 -> 14 | AY43: ='Default Value References'!$G$110 -> 80 | AZ43: 80 | BA43: ='Default Value References'!$G$114 -> 66 | BB43: ='Default Value References'!$G$118 -> EF 95 | BC43: ='Default Value References'!$G$119 -> EF 60 | BD43: ='Default Value References'!$G$120 -> EF 60 | BE43: ='Default Value References'!$G$121 -> EF 74 | BF43: ='Default Value References'!$G$122 -> None | BG43: ='Default Value References'!$G$123 -> None | BH43: ='Default Value References'!$G$124 -> None | BI43: ='Default Value References'!$G$125 -> None | BJ43: =INDEX('Default Value References'!$I$4:$I$6,MATCH($G43,'Default Value References'!$F$4:$F$6,0),1) -> 0.000442 | BK43: =INDEX('Default Value References'!$I$7:$I$9,MATCH($G43,'Default Value References'!$F$7:$F$9,0),1) -> 0.000364 | BL43: ='Default Value References'!$I$12 -> 8 | BM43: ='Default Value References'!$I$17 -> 0.1 | BN43: 0.065 | BO43: ='Default Value References'!$I$20 -> 0.05 | BP43: 0.0325 | BQ43: =INDEX('Default Value References'!$K$32:$K$47,MATCH($D43,'Default Value References'!$J$32:$J$47,0),1) -> 38 | BR43: ='Default Value References'!$K$50 -> 44 | BS43: ='Default Value References'!$I$53 -> 19 | BT43: ='Default Value References'!$J$65 -> 13 | BU43: ='Default Value References'!$L$86 -> 0.3 | BV43: ='Default Value References'!$M$86 -> 0.25 | BX43: ='Default Value References'!$H$106 -> 15 | BY43: ='Default Value References'!$H$110 -> 92 | BZ43: ='Default Value References'!$H$111 -> 95 | CA43: ='Default Value References'!$H$114 -> 70 | CB43: ='Default Value References'!$H$118 -> EF 200 | CC43: ='Default Value References'!$H$119 -> EF 67 | CD43: ='Default Value References'!$H$120 -> EF 70 | CE43: ='Default Value References'!$H$121 -> EF 82 | CF43: ='Default Value References'!$H$122 -> Wrap 5 ft | CG43: ='Default Value References'!$H$123 -> Valve | CH43: ='Default Value References'!$H$124 -> Valve & LF | CI43: ='Default Value References'!$H$125 -> Valve & TS
A44: AC | B44: Wall Furnace | C44: Crawlspace | D44: 1 | E44: =VLOOKUP(D44,Lists!$B$3:$C$18,2,FALSE) -> 3 | F44: 1 | G44: 78-92 | H44: 1810 | I44: 0.1150210084 | J44: =INDEX('Default Value References'!$G$4:$G$6,MATCH($G44,'Default Value References'!$F$4:$F$6,0),1) -> 0.00052 | K44: 0.00052 | L44: =INDEX('Default Value References'!$G$12:$G$14,MATCH($G44,'Default Value References'!$F$12:$F$14,0),1) -> 3.67 | M44: =INDEX('Default Value References'!$G$17:$G$19,MATCH($G44,'Default Value References'!$F$17:$F$19,0),1) -> 0.26 | N44: 0.195 | O44: 0.26 | P44: 0.195 | Q44: =SUMIFS('Default Value References'!$H$32:$H$49,'Default Value References'!$G$32:$G$49,$E44,'Default Value References'!$F$32:$F$49,$G44) -> 10.31 | R44: 10.31 | S44: =INDEX('Default Value References'!$G$53:$G$55,MATCH($G44,'Default Value References'!$F$53:$F$55,0),1) -> 5.96 | T44: =SUMIFS('Default Value References'!$H$65:$H$82,'Default Value References'!$G$65:$G$82,$E44,'Default Value References'!$F$65:$F$82,$G44) -> 10.25 | U44: =SUMIFS('Default Value References'!$H$86:$H$103,'Default Value References'!$G$86:$G$103,$E44,'Default Value References'!$F$86:$F$103,$G44) -> 0.82 | V44: =SUMIFS('Default Value References'!$I$86:$I$103,'Default Value References'!$G$86:$G$103,$E44,'Default Value References'!$F$86:$F$103,$G44) -> 0.79 | X44: ='Default Value References'!$F$106 -> 11.4 | Y44: ='Default Value References'!$F$110 -> 80 | Z44: 80 | AA44: ='Default Value References'!$F$114 -> 62 | AB44: ='Default Value References'!$F$118 -> EF 86 | AC44: ='Default Value References'!$F$119 -> EF 59 | AD44: ='Default Value References'!$F$120 -> EF 59 | AE44: ='Default Value References'!$F$121 -> EF 52 | AF44: ='Default Value References'!$F$122 -> None | AG44: ='Default Value References'!$F$123 -> None | AH44: ='Default Value References'!$F$124 -> None | AI44: ='Default Value References'!$F$125 -> None | AJ44: 0.00052 | AK44: 0.00052 | AL44: 3.67 | AM44: 0.26 | AN44: 0.195 | AO44: 0.26 | AP44: 0.195 | AQ44: 10.31 | AR44: 10.31 | AS44: 5.96 | AT44: 10.25 | AU44: 0.82 | AV44: 0.79 | AX44: ='Default Value References'!$G$106 -> 14 | AY44: ='Default Value References'!$G$110 -> 80 | AZ44: 80 | BA44: ='Default Value References'!$G$114 -> 66 | BB44: ='Default Value References'!$G$118 -> EF 95 | BC44: ='Default Value References'!$G$119 -> EF 60 | BD44: ='Default Value References'!$G$120 -> EF 60 | BE44: ='Default Value References'!$G$121 -> EF 74 | BF44: ='Default Value References'!$G$122 -> None | BG44: ='Default Value References'!$G$123 -> None | BH44: ='Default Value References'!$G$124 -> None | BI44: ='Default Value References'!$G$125 -> None | BJ44: =INDEX('Default Value References'!$I$4:$I$6,MATCH($G44,'Default Value References'!$F$4:$F$6,0),1) -> 0.000442 | BK44: =INDEX('Default Value References'!$I$7:$I$9,MATCH($G44,'Default Value References'!$F$7:$F$9,0),1) -> 0.000364 | BL44: ='Default Value References'!$I$12 -> 8 | BM44: ='Default Value References'!$I$17 -> 0.1 | BN44: 0.075 | BO44: ='Default Value References'!$I$20 -> 0.05 | BP44: 0.0375 | BQ44: =INDEX('Default Value References'!$K$32:$K$47,MATCH($D44,'Default Value References'!$J$32:$J$47,0),1) -> 38 | BR44: ='Default Value References'!$K$50 -> 44 | BS44: ='Default Value References'!$I$53 -> 19 | BT44: ='Default Value References'!$J$65 -> 13 | BU44: ='Default Value References'!$L$86 -> 0.3 | BV44: ='Default Value References'!$M$86 -> 0.25 | BX44: ='Default Value References'!$H$106 -> 15 | BY44: ='Default Value References'!$H$110 -> 92 | BZ44: ='Default Value References'!$H$111 -> 95 | CA44: ='Default Value References'!$H$114 -> 70 | CB44: ='Default Value References'!$H$118 -> EF 200 | CC44: ='Default Value References'!$H$119 -> EF 67 | CD44: ='Default Value References'!$H$120 -> EF 70 | CE44: ='Default Value References'!$H$121 -> EF 82 | CF44: ='Default Value References'!$H$122 -> Wrap 5 ft | CG44: ='Default Value References'!$H$123 -> Valve | CH44: ='Default Value References'!$H$124 -> Valve & LF | CI44: ='Default Value References'!$H$125 -> Valve & TS
A45: AC | B45: Wall Furnace | C45: Crawlspace | D45: 1 | E45: =VLOOKUP(D45,Lists!$B$3:$C$18,2,FALSE) -> 3 | F45: 2 | G45: 78-92 | H45: 2400 | I45: 0.1150210084 | J45: =INDEX('Default Value References'!$G$4:$G$6,MATCH($G45,'Default Value References'!$F$4:$F$6,0),1) -> 0.00052 | K45: 0.00052 | L45: =INDEX('Default Value References'!$G$12:$G$14,MATCH($G45,'Default Value References'!$F$12:$F$14,0),1) -> 3.67 | M45: =INDEX('Default Value References'!$G$17:$G$19,MATCH($G45,'Default Value References'!$F$17:$F$19,0),1) -> 0.26 | N45: 0.169 | O45: 0.26 | P45: 0.169 | Q45: =SUMIFS('Default Value References'!$H$32:$H$49,'Default Value References'!$G$32:$G$49,$E45,'Default Value References'!$F$32:$F$49,$G45) -> 10.31 | R45: 10.31 | S45: =INDEX('Default Value References'!$G$53:$G$55,MATCH($G45,'Default Value References'!$F$53:$F$55,0),1) -> 5.96 | T45: =SUMIFS('Default Value References'!$H$65:$H$82,'Default Value References'!$G$65:$G$82,$E45,'Default Value References'!$F$65:$F$82,$G45) -> 10.25 | U45: =SUMIFS('Default Value References'!$H$86:$H$103,'Default Value References'!$G$86:$G$103,$E45,'Default Value References'!$F$86:$F$103,$G45) -> 0.82 | V45: =SUMIFS('Default Value References'!$I$86:$I$103,'Default Value References'!$G$86:$G$103,$E45,'Default Value References'!$F$86:$F$103,$G45) -> 0.79 | X45: ='Default Value References'!$F$106 -> 11.4 | Y45: ='Default Value References'!$F$110 -> 80 | Z45: 80 | AA45: ='Default Value References'!$F$114 -> 62 | AB45: ='Default Value References'!$F$118 -> EF 86 | AC45: ='Default Value References'!$F$119 -> EF 59 | AD45: ='Default Value References'!$F$120 -> EF 59 | AE45: ='Default Value References'!$F$121 -> EF 52 | AF45: ='Default Value References'!$F$122 -> None | AG45: ='Default Value References'!$F$123 -> None | AH45: ='Default Value References'!$F$124 -> None | AI45: ='Default Value References'!$F$125 -> None | AJ45: 0.00052 | AK45: 0.00052 | AL45: 3.67 | AM45: 0.26 | AN45: 0.169 | AO45: 0.26 | AP45: 0.169 | AQ45: 10.31 | AR45: 10.31 | AS45: 5.96 | AT45: 10.25 | AU45: 0.82 | AV45: 0.79 | AX45: ='Default Value References'!$G$106 -> 14 | AY45: ='Default Value References'!$G$110 -> 80 | AZ45: 80 | BA45: ='Default Value References'!$G$114 -> 66 | BB45: ='Default Value References'!$G$118 -> EF 95 | BC45: ='Default Value References'!$G$119 -> EF 60 | BD45: ='Default Value References'!$G$120 -> EF 60 | BE45: ='Default Value References'!$G$121 -> EF 74 | BF45: ='Default Value References'!$G$122 -> None | BG45: ='Default Value References'!$G$123 -> None | BH45: ='Default Value References'!$G$124 -> None | BI45: ='Default Value References'!$G$125 -> None | BJ45: =INDEX('Default Value References'!$I$4:$I$6,MATCH($G45,'Default Value References'!$F$4:$F$6,0),1) -> 0.000442 | BK45: =INDEX('Default Value References'!$I$7:$I$9,MATCH($G45,'Default Value References'!$F$7:$F$9,0),1) -> 0.000364 | BL45: ='Default Value References'!$I$12 -> 8 | BM45: ='Default Value References'!$I$17 -> 0.1 | BN45: 0.065 | BO45: ='Default Value References'!$I$20 -> 0.05 | BP45: 0.0325 | BQ45: =INDEX('Default Value References'!$K$32:$K$47,MATCH($D45,'Default Value References'!$J$32:$J$47,0),1) -> 38 | BR45: ='Default Value References'!$K$50 -> 44 | BS45: ='Default Value References'!$I$53 -> 19 | BT45: ='Default Value References'!$J$65 -> 13 | BU45: ='Default Value References'!$L$86 -> 0.3 | BV45: ='Default Value References'!$M$86 -> 0.25 | BX45: ='Default Value References'!$H$106 -> 15 | BY45: ='Default Value References'!$H$110 -> 92 | BZ45: ='Default Value References'!$H$111 -> 95 | CA45: ='Default Value References'!$H$114 -> 70 | CB45: ='Default Value References'!$H$118 -> EF 200 | CC45: ='Default Value References'!$H$119 -> EF 67 | CD45: ='Default Value References'!$H$120 -> EF 70 | CE45: ='Default Value References'!$H$121 -> EF 82 | CF45: ='Default Value References'!$H$122 -> Wrap 5 ft | CG45: ='Default Value References'!$H$123 -> Valve | CH45: ='Default Value References'!$H$124 -> Valve & LF | CI45: ='Default Value References'!$H$125 -> Valve & TS
A46: No AC | B46: Wall Furnace | C46: Slab-on-grade | D46: 1 | E46: =VLOOKUP(D46,Lists!$B$3:$C$18,2,FALSE) -> 3 | F46: 1 | G46: 93-01 | H46: 1910 | I46: 0.2 | J46: =INDEX('Default Value References'!$G$4:$G$6,MATCH($G46,'Default Value References'!$F$4:$F$6,0),1) -> 0.00046 | K46: 0.00046 | L46: =INDEX('Default Value References'!$G$12:$G$14,MATCH($G46,'Default Value References'!$F$12:$F$14,0),1) -> 4.26 | M46: =INDEX('Default Value References'!$G$17:$G$19,MATCH($G46,'Default Value References'!$F$17:$F$19,0),1) -> 0.22 | N46: 0.165 | O46: 0.22 | P46: 0.165 | Q46: =SUMIFS('Default Value References'!$H$32:$H$49,'Default Value References'!$G$32:$G$49,$E46,'Default Value References'!$F$32:$F$49,$G46) -> 10.31 | R46: 10.31 | S46: =INDEX('Default Value References'!$G$53:$G$55,MATCH($G46,'Default Value References'!$F$53:$F$55,0),1) -> 5.96 | T46: =SUMIFS('Default Value References'!$H$65:$H$82,'Default Value References'!$G$65:$G$82,$E46,'Default Value References'!$F$65:$F$82,$G46) -> 10.25 | U46: =SUMIFS('Default Value References'!$H$86:$H$103,'Default Value References'!$G$86:$G$103,$E46,'Default Value References'!$F$86:$F$103,$G46) -> 0.67 | V46: =SUMIFS('Default Value References'!$I$86:$I$103,'Default Value References'!$G$86:$G$103,$E46,'Default Value References'!$F$86:$F$103,$G46) -> 0.79 | X46: ='Default Value References'!$F$106 -> 11.4 | Y46: ='Default Value References'!$F$110 -> 80 | Z46: 80 | AA46: ='Default Value References'!$F$114 -> 62 | AB46: ='Default Value References'!$F$118 -> EF 86 | AC46: ='Default Value References'!$F$119 -> EF 59 | AD46: ='Default Value References'!$F$120 -> EF 59 | AE46: ='Default Value References'!$F$121 -> EF 52 | AF46: ='Default Value References'!$F$122 -> None | AG46: ='Default Value References'!$F$123 -> None | AH46: ='Default Value References'!$F$124 -> None | AI46: ='Default Value References'!$F$125 -> None | AJ46: 0.00046 | AK46: 0.00046 | AL46: 4.26 | AM46: 0.22 | AN46: 0.165 | AO46: 0.22 | AP46: 0.165 | AQ46: 10.31 | AR46: 10.31 | AS46: 5.96 | AT46: 10.25 | AU46: 0.67 | AV46: 0.79 | AX46: ='Default Value References'!$G$106 -> 14 | AY46: ='Default Value References'!$G$110 -> 80 | AZ46: 80 | BA46: ='Default Value References'!$G$114 -> 66 | BB46: ='Default Value References'!$G$118 -> EF 95 | BC46: ='Default Value References'!$G$119 -> EF 60 | BD46: ='Default Value References'!$G$120 -> EF 60 | BE46: ='Default Value References'!$G$121 -> EF 74 | BF46: ='Default Value References'!$G$122 -> None | BG46: ='Default Value References'!$G$123 -> None | BH46: ='Default Value References'!$G$124 -> None | BI46: ='Default Value References'!$G$125 -> None | BJ46: =INDEX('Default Value References'!$I$4:$I$6,MATCH($G46,'Default Value References'!$F$4:$F$6,0),1) -> 0.000391 | BK46: =INDEX('Default Value References'!$I$7:$I$9,MATCH($G46,'Default Value References'!$F$7:$F$9,0),1) -> 0.000322 | BL46: ='Default Value References'!$I$12 -> 8 | BM46: ='Default Value References'!$I$17 -> 0.1 | BN46: 0.075 | BO46: ='Default Value References'!$I$20 -> 0.05 | BP46: 0.0375 | BQ46: =INDEX('Default Value References'!$K$32:$K$47,MATCH($D46,'Default Value References'!$J$32:$J$47,0),1) -> 38 | BR46: ='Default Value References'!$K$50 -> 44 | BS46: ='Default Value References'!$I$53 -> 19 | BT46: ='Default Value References'!$J$65 -> 13 | BU46: ='Default Value References'!$L$86 -> 0.3 | BV46: ='Default Value References'!$M$86 -> 0.25 | BX46: ='Default Value References'!$H$106 -> 15 | BY46: ='Default Value References'!$H$110 -> 92 | BZ46: ='Default Value References'!$H$111 -> 95 | CA46: ='Default Value References'!$H$114 -> 70 | CB46: ='Default Value References'!$H$118 -> EF 200 | CC46: ='Default Value References'!$H$119 -> EF 67 | CD46: ='Default Value References'!$H$120 -> EF 70 | CE46: ='Default Value References'!$H$121 -> EF 82 | CF46: ='Default Value References'!$H$122 -> Wrap 5 ft | CG46: ='Default Value References'!$H$123 -> Valve | CH46: ='Default Value References'!$H$124 -> Valve & LF | CI46: ='Default Value References'!$H$125 -> Valve & TS
A47: No AC | B47: Wall Furnace | C47: Slab-on-grade | D47: 1 | E47: =VLOOKUP(D47,Lists!$B$3:$C$18,2,FALSE) -> 3 | F47: 2 | G47: 93-01 | H47: 2730 | I47: 0.2 | J47: =INDEX('Default Value References'!$G$4:$G$6,MATCH($G47,'Default Value References'!$F$4:$F$6,0),1) -> 0.00046 | K47: 0.00046 | L47: =INDEX('Default Value References'!$G$12:$G$14,MATCH($G47,'Default Value References'!$F$12:$F$14,0),1) -> 4.26 | M47: =INDEX('Default Value References'!$G$17:$G$19,MATCH($G47,'Default Value References'!$F$17:$F$19,0),1) -> 0.22 | N47: 0.143 | O47: 0.22 | P47: 0.143 | Q47: =SUMIFS('Default Value References'!$H$32:$H$49,'Default Value References'!$G$32:$G$49,$E47,'Default Value References'!$F$32:$F$49,$G47) -> 10.31 | R47: 10.31 | S47: =INDEX('Default Value References'!$G$53:$G$55,MATCH($G47,'Default Value References'!$F$53:$F$55,0),1) -> 5.96 | T47: =SUMIFS('Default Value References'!$H$65:$H$82,'Default Value References'!$G$65:$G$82,$E47,'Default Value References'!$F$65:$F$82,$G47) -> 10.25 | U47: =SUMIFS('Default Value References'!$H$86:$H$103,'Default Value References'!$G$86:$G$103,$E47,'Default Value References'!$F$86:$F$103,$G47) -> 0.67 | V47: =SUMIFS('Default Value References'!$I$86:$I$103,'Default Value References'!$G$86:$G$103,$E47,'Default Value References'!$F$86:$F$103,$G47) -> 0.79 | X47: ='Default Value References'!$F$106 -> 11.4 | Y47: ='Default Value References'!$F$110 -> 80 | Z47: 80 | AA47: ='Default Value References'!$F$114 -> 62 | AB47: ='Default Value References'!$F$118 -> EF 86 | AC47: ='Default Value References'!$F$119 -> EF 59 | AD47: ='Default Value References'!$F$120 -> EF 59 | AE47: ='Default Value References'!$F$121 -> EF 52 | AF47: ='Default Value References'!$F$122 -> None | AG47: ='Default Value References'!$F$123 -> None | AH47: ='Default Value References'!$F$124 -> None | AI47: ='Default Value References'!$F$125 -> None | AJ47: 0.00046 | AK47: 0.00046 | AL47: 4.26 | AM47: 0.22 | AN47: 0.143 | AO47: 0.22 | AP47: 0.143 | AQ47: 10.31 | AR47: 10.31 | AS47: 5.96 | AT47: 10.25 | AU47: 0.67 | AV47: 0.79 | AX47: ='Default Value References'!$G$106 -> 14 | AY47: ='Default Value References'!$G$110 -> 80 | AZ47: 80 | BA47: ='Default Value References'!$G$114 -> 66 | BB47: ='Default Value References'!$G$118 -> EF 95 | BC47: ='Default Value References'!$G$119 -> EF 60 | BD47: ='Default Value References'!$G$120 -> EF 60 | BE47: ='Default Value References'!$G$121 -> EF 74 | BF47: ='Default Value References'!$G$122 -> None | BG47: ='Default Value References'!$G$123 -> None | BH47: ='Default Value References'!$G$124 -> None | BI47: ='Default Value References'!$G$125 -> None | BJ47: =INDEX('Default Value References'!$I$4:$I$6,MATCH($G47,'Default Value References'!$F$4:$F$6,0),1) -> 0.000391 | BK47: =INDEX('Default Value References'!$I$7:$I$9,MATCH($G47,'Default Value References'!$F$7:$F$9,0),1) -> 0.000322 | BL47: ='Default Value References'!$I$12 -> 8 | BM47: ='Default Value References'!$I$17 -> 0.1 | BN47: 0.065 | BO47: ='Default Value References'!$I$20 -> 0.05 | BP47: 0.0325 | BQ47: =INDEX('Default Value References'!$K$32:$K$47,MATCH($D47,'Default Value References'!$J$32:$J$47,0),1) -> 38 | BR47: ='Default Value References'!$K$50 -> 44 | BS47: ='Default Value References'!$I$53 -> 19 | BT47: ='Default Value References'!$J$65 -> 13 | BU47: ='Default Value References'!$L$86 -> 0.3 | BV47: ='Default Value References'!$M$86 -> 0.25 | BX47: ='Default Value References'!$H$106 -> 15 | BY47: ='Default Value References'!$H$110 -> 92 | BZ47: ='Default Value References'!$H$111 -> 95 | CA47: ='Default Value References'!$H$114 -> 70 | CB47: ='Default Value References'!$H$118 -> EF 200 | CC47: ='Default Value References'!$H$119 -> EF 67 | CD47: ='Default Value References'!$H$120 -> EF 70 | CE47: ='Default Value References'!$H$121 -> EF 82 | CF47: ='Default Value References'!$H$122 -> Wrap 5 ft | CG47: ='Default Value References'!$H$123 -> Valve | CH47: ='Default Value References'!$H$124 -> Valve & LF | CI47: ='Default Value References'!$H$125 -> Valve & TS
A48: AC | B48: Wall Furnace | C48: Slab-on-grade | D48: 1 | E48: =VLOOKUP(D48,Lists!$B$3:$C$18,2,FALSE) -> 3 | F48: 1 | G48: 93-01 | H48: 1910 | I48: 0.2 | J48: =INDEX('Default Value References'!$G$4:$G$6,MATCH($G48,'Default Value References'!$F$4:$F$6,0),1) -> 0.00046 | K48: 0.00046 | L48: =INDEX('Default Value References'!$G$12:$G$14,MATCH($G48,'Default Value References'!$F$12:$F$14,0),1) -> 4.26 | M48: =INDEX('Default Value References'!$G$17:$G$19,MATCH($G48,'Default Value References'!$F$17:$F$19,0),1) -> 0.22 | N48: 0.165 | O48: 0.22 | P48: 0.165 | Q48: =SUMIFS('Default Value References'!$H$32:$H$49,'Default Value References'!$G$32:$G$49,$E48,'Default Value References'!$F$32:$F$49,$G48) -> 10.31 | R48: 10.31 | S48: =INDEX('Default Value References'!$G$53:$G$55,MATCH($G48,'Default Value References'!$F$53:$F$55,0),1) -> 5.96 | T48: =SUMIFS('Default Value References'!$H$65:$H$82,'Default Value References'!$G$65:$G$82,$E48,'Default Value References'!$F$65:$F$82,$G48) -> 10.25 | U48: =SUMIFS('Default Value References'!$H$86:$H$103,'Default Value References'!$G$86:$G$103,$E48,'Default Value References'!$F$86:$F$103,$G48) -> 0.67 | V48: =SUMIFS('Default Value References'!$I$86:$I$103,'Default Value References'!$G$86:$G$103,$E48,'Default Value References'!$F$86:$F$103,$G48) -> 0.79 | X48: ='Default Value References'!$F$106 -> 11.4 | Y48: ='Default Value References'!$F$110 -> 80 | Z48: 80 | AA48: ='Default Value References'!$F$114 -> 62 | AB48: ='Default Value References'!$F$118 -> EF 86 | AC48: ='Default Value References'!$F$119 -> EF 59 | AD48: ='Default Value References'!$F$120 -> EF 59 | AE48: ='Default Value References'!$F$121 -> EF 52 | AF48: ='Default Value References'!$F$122 -> None | AG48: ='Default Value References'!$F$123 -> None | AH48: ='Default Value References'!$F$124 -> None | AI48: ='Default Value References'!$F$125 -> None | AJ48: 0.00046 | AK48: 0.00046 | AL48: 4.26 | AM48: 0.22 | AN48: 0.165 | AO48: 0.22 | AP48: 0.165 | AQ48: 10.31 | AR48: 10.31 | AS48: 5.96 | AT48: 10.25 | AU48: 0.67 | AV48: 0.79 | AX48: ='Default Value References'!$G$106 -> 14 | AY48: ='Default Value References'!$G$110 -> 80 | AZ48: 80 | BA48: ='Default Value References'!$G$114 -> 66 | BB48: ='Default Value References'!$G$118 -> EF 95 | BC48: ='Default Value References'!$G$119 -> EF 60 | BD48: ='Default Value References'!$G$120 -> EF 60 | BE48: ='Default Value References'!$G$121 -> EF 74 | BF48: ='Default Value References'!$G$122 -> None | BG48: ='Default Value References'!$G$123 -> None | BH48: ='Default Value References'!$G$124 -> None | BI48: ='Default Value References'!$G$125 -> None | BJ48: =INDEX('Default Value References'!$I$4:$I$6,MATCH($G48,'Default Value References'!$F$4:$F$6,0),1) -> 0.000391 | BK48: =INDEX('Default Value References'!$I$7:$I$9,MATCH($G48,'Default Value References'!$F$7:$F$9,0),1) -> 0.000322 | BL48: ='Default Value References'!$I$12 -> 8 | BM48: ='Default Value References'!$I$17 -> 0.1 | BN48: 0.075 | BO48: ='Default Value References'!$I$20 -> 0.05 | BP48: 0.0375 | BQ48: =INDEX('Default Value References'!$K$32:$K$47,MATCH($D48,'Default Value References'!$J$32:$J$47,0),1) -> 38 | BR48: ='Default Value References'!$K$50 -> 44 | BS48: ='Default Value References'!$I$53 -> 19 | BT48: ='Default Value References'!$J$65 -> 13 | BU48: ='Default Value References'!$L$86 -> 0.3 | BV48: ='Default Value References'!$M$86 -> 0.25 | BX48: ='Default Value References'!$H$106 -> 15 | BY48: ='Default Value References'!$H$110 -> 92 | BZ48: ='Default Value References'!$H$111 -> 95 | CA48: ='Default Value References'!$H$114 -> 70 | CB48: ='Default Value References'!$H$118 -> EF 200 | CC48: ='Default Value References'!$H$119 -> EF 67 | CD48: ='Default Value References'!$H$120 -> EF 70 | CE48: ='Default Value References'!$H$121 -> EF 82 | CF48: ='Default Value References'!$H$122 -> Wrap 5 ft | CG48: ='Default Value References'!$H$123 -> Valve | CH48: ='Default Value References'!$H$124 -> Valve & LF | CI48: ='Default Value References'!$H$125 -> Valve & TS
A49: AC | B49: Wall Furnace | C49: Slab-on-grade | D49: 1 | E49: =VLOOKUP(D49,Lists!$B$3:$C$18,2,FALSE) -> 3 | F49: 2 | G49: 93-01 | H49: 2730 | I49: 0.2 | J49: =INDEX('Default Value References'!$G$4:$G$6,MATCH($G49,'Default Value References'!$F$4:$F$6,0),1) -> 0.00046 | K49: 0.00046 | L49: =INDEX('Default Value References'!$G$12:$G$14,MATCH($G49,'Default Value References'!$F$12:$F$14,0),1) -> 4.26 | M49: =INDEX('Default Value References'!$G$17:$G$19,MATCH($G49,'Default Value References'!$F$17:$F$19,0),1) -> 0.22 | N49: 0.143 | O49: 0.22 | P49: 0.143 | Q49: =SUMIFS('Default Value References'!$H$32:$H$49,'Default Value References'!$G$32:$G$49,$E49,'Default Value References'!$F$32:$F$49,$G49) -> 10.31 | R49: 10.31 | S49: =INDEX('Default Value References'!$G$53:$G$55,MATCH($G49,'Default Value References'!$F$53:$F$55,0),1) -> 5.96 | T49: =SUMIFS('Default Value References'!$H$65:$H$82,'Default Value References'!$G$65:$G$82,$E49,'Default Value References'!$F$65:$F$82,$G49) -> 10.25 | U49: =SUMIFS('Default Value References'!$H$86:$H$103,'Default Value References'!$G$86:$G$103,$E49,'Default Value References'!$F$86:$F$103,$G49) -> 0.67 | V49: =SUMIFS('Default Value References'!$I$86:$I$103,'Default Value References'!$G$86:$G$103,$E49,'Default Value References'!$F$86:$F$103,$G49) -> 0.79 | X49: ='Default Value References'!$F$106 -> 11.4 | Y49: ='Default Value References'!$F$110 -> 80 | Z49: 80 | AA49: ='Default Value References'!$F$114 -> 62 | AB49: ='Default Value References'!$F$118 -> EF 86 | AC49: ='Default Value References'!$F$119 -> EF 59 | AD49: ='Default Value References'!$F$120 -> EF 59 | AE49: ='Default Value References'!$F$121 -> EF 52 | AF49: ='Default Value References'!$F$122 -> None | AG49: ='Default Value References'!$F$123 -> None | AH49: ='Default Value References'!$F$124 -> None | AI49: ='Default Value References'!$F$125 -> None | AJ49: 0.00046 | AK49: 0.00046 | AL49: 4.26 | AM49: 0.22 | AN49: 0.143 | AO49: 0.22 | AP49: 0.143 | AQ49: 10.31 | AR49: 10.31 | AS49: 5.96 | AT49: 10.25 | AU49: 0.67 | AV49: 0.79 | AX49: ='Default Value References'!$G$106 -> 14 | AY49: ='Default Value References'!$G$110 -> 80 | AZ49: 80 | BA49: ='Default Value References'!$G$114 -> 66 | BB49: ='Default Value References'!$G$118 -> EF 95 | BC49: ='Default Value References'!$G$119 -> EF 60 | BD49: ='Default Value References'!$G$120 -> EF 60 | BE49: ='Default Value References'!$G$121 -> EF 74 | BF49: ='Default Value References'!$G$122 -> None | BG49: ='Default Value References'!$G$123 -> None | BH49: ='Default Value References'!$G$124 -> None | BI49: ='Default Value References'!$G$125 -> None | BJ49: =INDEX('Default Value References'!$I$4:$I$6,MATCH($G49,'Default Value References'!$F$4:$F$6,0),1) -> 0.000391 | BK49: =INDEX('Default Value References'!$I$7:$I$9,MATCH($G49,'Default Value References'!$F$7:$F$9,0),1) -> 0.000322 | BL49: ='Default Value References'!$I$12 -> 8 | BM49: ='Default Value References'!$I$17 -> 0.1 | BN49: 0.065 | BO49: ='Default Value References'!$I$20 -> 0.05 | BP49: 0.0325 | BQ49: =INDEX('Default Value References'!$K$32:$K$47,MATCH($D49,'Default Value References'!$J$32:$J$47,0),1) -> 38 | BR49: ='Default Value References'!$K$50 -> 44 | BS49: ='Default Value References'!$I$53 -> 19 | BT49: ='Default Value References'!$J$65 -> 13 | BU49: ='Default Value References'!$L$86 -> 0.3 | BV49: ='Default Value References'!$M$86 -> 0.25 | BX49: ='Default Value References'!$H$106 -> 15 | BY49: ='Default Value References'!$H$110 -> 92 | BZ49: ='Default Value References'!$H$111 -> 95 | CA49: ='Default Value References'!$H$114 -> 70 | CB49: ='Default Value References'!$H$118 -> EF 200 | CC49: ='Default Value References'!$H$119 -> EF 67 | CD49: ='Default Value References'!$H$120 -> EF 70 | CE49: ='Default Value References'!$H$121 -> EF 82 | CF49: ='Default Value References'!$H$122 -> Wrap 5 ft | CG49: ='Default Value References'!$H$123 -> Valve | CH49: ='Default Value References'!$H$124 -> Valve & LF | CI49: ='Default Value References'!$H$125 -> Valve & TS
A50: No AC | B50: Wall Furnace | C50: Crawlspace | D50: 1 | E50: =VLOOKUP(D50,Lists!$B$3:$C$18,2,FALSE) -> 3 | F50: 1 | G50: 93-01 | H50: 1910 | I50: 0.2 | J50: =INDEX('Default Value References'!$G$4:$G$6,MATCH($G50,'Default Value References'!$F$4:$F$6,0),1) -> 0.00046 | K50: 0.00046 | L50: =INDEX('Default Value References'!$G$12:$G$14,MATCH($G50,'Default Value References'!$F$12:$F$14,0),1) -> 4.26 | M50: =INDEX('Default Value References'!$G$17:$G$19,MATCH($G50,'Default Value References'!$F$17:$F$19,0),1) -> 0.22 | N50: 0.165 | O50: 0.22 | P50: 0.165 | Q50: =SUMIFS('Default Value References'!$H$32:$H$49,'Default Value References'!$G$32:$G$49,$E50,'Default Value References'!$F$32:$F$49,$G50) -> 10.31 | R50: 10.31 | S50: =INDEX('Default Value References'!$G$53:$G$55,MATCH($G50,'Default Value References'!$F$53:$F$55,0),1) -> 5.96 | T50: =SUMIFS('Default Value References'!$H$65:$H$82,'Default Value References'!$G$65:$G$82,$E50,'Default Value References'!$F$65:$F$82,$G50) -> 10.25 | U50: =SUMIFS('Default Value References'!$H$86:$H$103,'Default Value References'!$G$86:$G$103,$E50,'Default Value References'!$F$86:$F$103,$G50) -> 0.67 | V50: =SUMIFS('Default Value References'!$I$86:$I$103,'Default Value References'!$G$86:$G$103,$E50,'Default Value References'!$F$86:$F$103,$G50) -> 0.79 | X50: ='Default Value References'!$F$106 -> 11.4 | Y50: ='Default Value References'!$F$110 -> 80 | Z50: 80 | AA50: ='Default Value References'!$F$114 -> 62 | AB50: ='Default Value References'!$F$118 -> EF 86 | AC50: ='Default Value References'!$F$119 -> EF 59 | AD50: ='Default Value References'!$F$120 -> EF 59 | AE50: ='Default Value References'!$F$121 -> EF 52 | AF50: ='Default Value References'!$F$122 -> None | AG50: ='Default Value References'!$F$123 -> None | AH50: ='Default Value References'!$F$124 -> None | AI50: ='Default Value References'!$F$125 -> None | AJ50: 0.00046 | AK50: 0.00046 | AL50: 4.26 | AM50: 0.22 | AN50: 0.165 | AO50: 0.22 | AP50: 0.165 | AQ50: 10.31 | AR50: 10.31 | AS50: 5.96 | AT50: 10.25 | AU50: 0.67 | AV50: 0.79 | AX50: ='Default Value References'!$G$106 -> 14 | AY50: ='Default Value References'!$G$110 -> 80 | AZ50: 80 | BA50: ='Default Value References'!$G$114 -> 66 | BB50: ='Default Value References'!$G$118 -> EF 95 | BC50: ='Default Value References'!$G$119 -> EF 60 | BD50: ='Default Value References'!$G$120 -> EF 60 | BE50: ='Default Value References'!$G$121 -> EF 74 | BF50: ='Default Value References'!$G$122 -> None | BG50: ='Default Value References'!$G$123 -> None | BH50: ='Default Value References'!$G$124 -> None | BI50: ='Default Value References'!$G$125 -> None | BJ50: =INDEX('Default Value References'!$I$4:$I$6,MATCH($G50,'Default Value References'!$F$4:$F$6,0),1) -> 0.000391 | BK50: =INDEX('Default Value References'!$I$7:$I$9,MATCH($G50,'Default Value References'!$F$7:$F$9,0),1) -> 0.000322 | BL50: ='Default Value References'!$I$12 -> 8 | BM50: ='Default Value References'!$I$17 -> 0.1 | BN50: 0.075 | BO50: ='Default Value References'!$I$20 -> 0.05 | BP50: 0.0375 | BQ50: =INDEX('Default Value References'!$K$32:$K$47,MATCH($D50,'Default Value References'!$J$32:$J$47,0),1) -> 38 | BR50: ='Default Value References'!$K$50 -> 44 | BS50: ='Default Value References'!$I$53 -> 19 | BT50: ='Default Value References'!$J$65 -> 13 | BU50: ='Default Value References'!$L$86 -> 0.3 | BV50: ='Default Value References'!$M$86 -> 0.25 | BX50: ='Default Value References'!$H$106 -> 15 | BY50: ='Default Value References'!$H$110 -> 92 | BZ50: ='Default Value References'!$H$111 -> 95 | CA50: ='Default Value References'!$H$114 -> 70 | CB50: ='Default Value References'!$H$118 -> EF 200 | CC50: ='Default Value References'!$H$119 -> EF 67 | CD50: ='Default Value References'!$H$120 -> EF 70 | CE50: ='Default Value References'!$H$121 -> EF 82 | CF50: ='Default Value References'!$H$122 -> Wrap 5 ft | CG50: ='Default Value References'!$H$123 -> Valve | CH50: ='Default Value References'!$H$124 -> Valve & LF | CI50: ='Default Value References'!$H$125 -> Valve & TS
A51: No AC | B51: Wall Furnace | C51: Crawlspace | D51: 1 | E51: =VLOOKUP(D51,Lists!$B$3:$C$18,2,FALSE) -> 3 | F51: 2 | G51: 93-01 | H51: 2730 | I51: 0.2 | J51: =INDEX('Default Value References'!$G$4:$G$6,MATCH($G51,'Default Value References'!$F$4:$F$6,0),1) -> 0.00046 | K51: 0.00046 | L51: =INDEX('Default Value References'!$G$12:$G$14,MATCH($G51,'Default Value References'!$F$12:$F$14,0),1) -> 4.26 | M51: =INDEX('Default Value References'!$G$17:$G$19,MATCH($G51,'Default Value References'!$F$17:$F$19,0),1) -> 0.22 | N51: 0.143 | O51: 0.22 | P51: 0.143 | Q51: =SUMIFS('Default Value References'!$H$32:$H$49,'Default Value References'!$G$32:$G$49,$E51,'Default Value References'!$F$32:$F$49,$G51) -> 10.31 | R51: 10.31 | S51: =INDEX('Default Value References'!$G$53:$G$55,MATCH($G51,'Default Value References'!$F$53:$F$55,0),1) -> 5.96 | T51: =SUMIFS('Default Value References'!$H$65:$H$82,'Default Value References'!$G$65:$G$82,$E51,'Default Value References'!$F$65:$F$82,$G51) -> 10.25 | U51: =SUMIFS('Default Value References'!$H$86:$H$103,'Default Value References'!$G$86:$G$103,$E51,'Default Value References'!$F$86:$F$103,$G51) -> 0.67 | V51: =SUMIFS('Default Value References'!$I$86:$I$103,'Default Value References'!$G$86:$G$103,$E51,'Default Value References'!$F$86:$F$103,$G51) -> 0.79 | X51: ='Default Value References'!$F$106 -> 11.4 | Y51: ='Default Value References'!$F$110 -> 80 | Z51: 80 | AA51: ='Default Value References'!$F$114 -> 62 | AB51: ='Default Value References'!$F$118 -> EF 86 | AC51: ='Default Value References'!$F$119 -> EF 59 | AD51: ='Default Value References'!$F$120 -> EF 59 | AE51: ='Default Value References'!$F$121 -> EF 52 | AF51: ='Default Value References'!$F$122 -> None | AG51: ='Default Value References'!$F$123 -> None | AH51: ='Default Value References'!$F$124 -> None | AI51: ='Default Value References'!$F$125 -> None | AJ51: 0.00046 | AK51: 0.00046 | AL51: 4.26 | AM51: 0.22 | AN51: 0.143 | AO51: 0.22 | AP51: 0.143 | AQ51: 10.31 | AR51: 10.31 | AS51: 5.96 | AT51: 10.25 | AU51: 0.67 | AV51: 0.79 | AX51: ='Default Value References'!$G$106 -> 14 | AY51: ='Default Value References'!$G$110 -> 80 | AZ51: 80 | BA51: ='Default Value References'!$G$114 -> 66 | BB51: ='Default Value References'!$G$118 -> EF 95 | BC51: ='Default Value References'!$G$119 -> EF 60 | BD51: ='Default Value References'!$G$120 -> EF 60 | BE51: ='Default Value References'!$G$121 -> EF 74 | BF51: ='Default Value References'!$G$122 -> None | BG51: ='Default Value References'!$G$123 -> None | BH51: ='Default Value References'!$G$124 -> None | BI51: ='Default Value References'!$G$125 -> None | BJ51: =INDEX('Default Value References'!$I$4:$I$6,MATCH($G51,'Default Value References'!$F$4:$F$6,0),1) -> 0.000391 | BK51: =INDEX('Default Value References'!$I$7:$I$9,MATCH($G51,'Default Value References'!$F$7:$F$9,0),1) -> 0.000322 | BL51: ='Default Value References'!$I$12 -> 8 | BM51: ='Default Value References'!$I$17 -> 0.1 | BN51: 0.065 | BO51: ='Default Value References'!$I$20 -> 0.05 | BP51: 0.0325 | BQ51: =INDEX('Default Value References'!$K$32:$K$47,MATCH($D51,'Default Value References'!$J$32:$J$47,0),1) -> 38 | BR51: ='Default Value References'!$K$50 -> 44 | BS51: ='Default Value References'!$I$53 -> 19 | BT51: ='Default Value References'!$J$65 -> 13 | BU51: ='Default Value References'!$L$86 -> 0.3 | BV51: ='Default Value References'!$M$86 -> 0.25 | BX51: ='Default Value References'!$H$106 -> 15 | BY51: ='Default Value References'!$H$110 -> 92 | BZ51: ='Default Value References'!$H$111 -> 95 | CA51: ='Default Value References'!$H$114 -> 70 | CB51: ='Default Value References'!$H$118 -> EF 200 | CC51: ='Default Value References'!$H$119 -> EF 67 | CD51: ='Default Value References'!$H$120 -> EF 70 | CE51: ='Default Value References'!$H$121 -> EF 82 | CF51: ='Default Value References'!$H$122 -> Wrap 5 ft | CG51: ='Default Value References'!$H$123 -> Valve | CH51: ='Default Value References'!$H$124 -> Valve & LF | CI51: ='Default Value References'!$H$125 -> Valve & TS
A52: AC | B52: Wall Furnace | C52: Crawlspace | D52: 1 | E52: =VLOOKUP(D52,Lists!$B$3:$C$18,2,FALSE) -> 3 | F52: 1 | G52: 93-01 | H52: 1910 | I52: 0.2 | J52: =INDEX('Default Value References'!$G$4:$G$6,MATCH($G52,'Default Value References'!$F$4:$F$6,0),1) -> 0.00046 | K52: 0.00046 | L52: =INDEX('Default Value References'!$G$12:$G$14,MATCH($G52,'Default Value References'!$F$12:$F$14,0),1) -> 4.26 | M52: =INDEX('Default Value References'!$G$17:$G$19,MATCH($G52,'Default Value References'!$F$17:$F$19,0),1) -> 0.22 | N52: 0.165 | O52: 0.22 | P52: 0.165 | Q52: =SUMIFS('Default Value References'!$H$32:$H$49,'Default Value References'!$G$32:$G$49,$E52,'Default Value References'!$F$32:$F$49,$G52) -> 10.31 | R52: 10.31 | S52: =INDEX('Default Value References'!$G$53:$G$55,MATCH($G52,'Default Value References'!$F$53:$F$55,0),1) -> 5.96 | T52: =SUMIFS('Default Value References'!$H$65:$H$82,'Default Value References'!$G$65:$G$82,$E52,'Default Value References'!$F$65:$F$82,$G52) -> 10.25 | U52: =SUMIFS('Default Value References'!$H$86:$H$103,'Default Value References'!$G$86:$G$103,$E52,'Default Value References'!$F$86:$F$103,$G52) -> 0.67 | V52: =SUMIFS('Default Value References'!$I$86:$I$103,'Default Value References'!$G$86:$G$103,$E52,'Default Value References'!$F$86:$F$103,$G52) -> 0.79 | X52: ='Default Value References'!$F$106 -> 11.4 | Y52: ='Default Value References'!$F$110 -> 80 | Z52: 80 | AA52: ='Default Value References'!$F$114 -> 62 | AB52: ='Default Value References'!$F$118 -> EF 86 | AC52: ='Default Value References'!$F$119 -> EF 59 | AD52: ='Default Value References'!$F$120 -> EF 59 | AE52: ='Default Value References'!$F$121 -> EF 52 | AF52: ='Default Value References'!$F$122 -> None | AG52: ='Default Value References'!$F$123 -> None | AH52: ='Default Value References'!$F$124 -> None | AI52: ='Default Value References'!$F$125 -> None | AJ52: 0.00046 | AK52: 0.00046 | AL52: 4.26 | AM52: 0.22 | AN52: 0.165 | AO52: 0.22 | AP52: 0.165 | AQ52: 10.31 | AR52: 10.31 | AS52: 5.96 | AT52: 10.25 | AU52: 0.67 | AV52: 0.79 | AX52: ='Default Value References'!$G$106 -> 14 | AY52: ='Default Value References'!$G$110 -> 80 | AZ52: 80 | BA52: ='Default Value References'!$G$114 -> 66 | BB52: ='Default Value References'!$G$118 -> EF 95 | BC52: ='Default Value References'!$G$119 -> EF 60 | BD52: ='Default Value References'!$G$120 -> EF 60 | BE52: ='Default Value References'!$G$121 -> EF 74 | BF52: ='Default Value References'!$G$122 -> None | BG52: ='Default Value References'!$G$123 -> None | BH52: ='Default Value References'!$G$124 -> None | BI52: ='Default Value References'!$G$125 -> None | BJ52: =INDEX('Default Value References'!$I$4:$I$6,MATCH($G52,'Default Value References'!$F$4:$F$6,0),1) -> 0.000391 | BK52: =INDEX('Default Value References'!$I$7:$I$9,MATCH($G52,'Default Value References'!$F$7:$F$9,0),1) -> 0.000322 | BL52: ='Default Value References'!$I$12 -> 8 | BM52: ='Default Value References'!$I$17 -> 0.1 | BN52: 0.075 | BO52: ='Default Value References'!$I$20 -> 0.05 | BP52: 0.0375 | BQ52: =INDEX('Default Value References'!$K$32:$K$47,MATCH($D52,'Default Value References'!$J$32:$J$47,0),1) -> 38 | BR52: ='Default Value References'!$K$50 -> 44 | BS52: ='Default Value References'!$I$53 -> 19 | BT52: ='Default Value References'!$J$65 -> 13 | BU52: ='Default Value References'!$L$86 -> 0.3 | BV52: ='Default Value References'!$M$86 -> 0.25 | BX52: ='Default Value References'!$H$106 -> 15 | BY52: ='Default Value References'!$H$110 -> 92 | BZ52: ='Default Value References'!$H$111 -> 95 | CA52: ='Default Value References'!$H$114 -> 70 | CB52: ='Default Value References'!$H$118 -> EF 200 | CC52: ='Default Value References'!$H$119 -> EF 67 | CD52: ='Default Value References'!$H$120 -> EF 70 | CE52: ='Default Value References'!$H$121 -> EF 82 | CF52: ='Default Value References'!$H$122 -> Wrap 5 ft | CG52: ='Default Value References'!$H$123 -> Valve | CH52: ='Default Value References'!$H$124 -> Valve & LF | CI52: ='Default Value References'!$H$125 -> Valve & TS
A53: AC | B53: Wall Furnace | C53: Crawlspace | D53: 1 | E53: =VLOOKUP(D53,Lists!$B$3:$C$18,2,FALSE) -> 3 | F53: 2 | G53: 93-01 | H53: 2730 | I53: 0.2 | J53: =INDEX('Default Value References'!$G$4:$G$6,MATCH($G53,'Default Value References'!$F$4:$F$6,0),1) -> 0.00046 | K53: 0.00046 | L53: =INDEX('Default Value References'!$G$12:$G$14,MATCH($G53,'Default Value References'!$F$12:$F$14,0),1) -> 4.26 | M53: =INDEX('Default Value References'!$G$17:$G$19,MATCH($G53,'Default Value References'!$F$17:$F$19,0),1) -> 0.22 | N53: 0.143 | O53: 0.22 | P53: 0.143 | Q53: =SUMIFS('Default Value References'!$H$32:$H$49,'Default Value References'!$G$32:$G$49,$E53,'Default Value References'!$F$32:$F$49,$G53) -> 10.31 | R53: 10.31 | S53: =INDEX('Default Value References'!$G$53:$G$55,MATCH($G53,'Default Value References'!$F$53:$F$55,0),1) -> 5.96 | T53: =SUMIFS('Default Value References'!$H$65:$H$82,'Default Value References'!$G$65:$G$82,$E53,'Default Value References'!$F$65:$F$82,$G53) -> 10.25 | U53: =SUMIFS('Default Value References'!$H$86:$H$103,'Default Value References'!$G$86:$G$103,$E53,'Default Value References'!$F$86:$F$103,$G53) -> 0.67 | V53: =SUMIFS('Default Value References'!$I$86:$I$103,'Default Value References'!$G$86:$G$103,$E53,'Default Value References'!$F$86:$F$103,$G53) -> 0.79 | X53: ='Default Value References'!$F$106 -> 11.4 | Y53: ='Default Value References'!$F$110 -> 80 | Z53: 80 | AA53: ='Default Value References'!$F$114 -> 62 | AB53: ='Default Value References'!$F$118 -> EF 86 | AC53: ='Default Value References'!$F$119 -> EF 59 | AD53: ='Default Value References'!$F$120 -> EF 59 | AE53: ='Default Value References'!$F$121 -> EF 52 | AF53: ='Default Value References'!$F$122 -> None | AG53: ='Default Value References'!$F$123 -> None | AH53: ='Default Value References'!$F$124 -> None | AI53: ='Default Value References'!$F$125 -> None | AJ53: 0.00046 | AK53: 0.00046 | AL53: 4.26 | AM53: 0.22 | AN53: 0.143 | AO53: 0.22 | AP53: 0.143 | AQ53: 10.31 | AR53: 10.31 | AS53: 5.96 | AT53: 10.25 | AU53: 0.67 | AV53: 0.79 | AX53: ='Default Value References'!$G$106 -> 14 | AY53: ='Default Value References'!$G$110 -> 80 | AZ53: 80 | BA53: ='Default Value References'!$G$114 -> 66 | BB53: ='Default Value References'!$G$118 -> EF 95 | BC53: ='Default Value References'!$G$119 -> EF 60 | BD53: ='Default Value References'!$G$120 -> EF 60 | BE53: ='Default Value References'!$G$121 -> EF 74 | BF53: ='Default Value References'!$G$122 -> None | BG53: ='Default Value References'!$G$123 -> None | BH53: ='Default Value References'!$G$124 -> None | BI53: ='Default Value References'!$G$125 -> None | BJ53: =INDEX('Default Value References'!$I$4:$I$6,MATCH($G53,'Default Value References'!$F$4:$F$6,0),1) -> 0.000391 | BK53: =INDEX('Default Value References'!$I$7:$I$9,MATCH($G53,'Default Value References'!$F$7:$F$9,0),1) -> 0.000322 | BL53: ='Default Value References'!$I$12 -> 8 | BM53: ='Default Value References'!$I$17 -> 0.1 | BN53: 0.065 | BO53: ='Default Value References'!$I$20 -> 0.05 | BP53: 0.0325 | BQ53: =INDEX('Default Value References'!$K$32:$K$47,MATCH($D53,'Default Value References'!$J$32:$J$47,0),1) -> 38 | BR53: ='Default Value References'!$K$50 -> 44 | BS53: ='Default Value References'!$I$53 -> 19 | BT53: ='Default Value References'!$J$65 -> 13 | BU53: ='Default Value References'!$L$86 -> 0.3 | BV53: ='Default Value References'!$M$86 -> 0.25 | BX53: ='Default Value References'!$H$106 -> 15 | BY53: ='Default Value References'!$H$110 -> 92 | BZ53: ='Default Value References'!$H$111 -> 95 | CA53: ='Default Value References'!$H$114 -> 70 | CB53: ='Default Value References'!$H$118 -> EF 200 | CC53: ='Default Value References'!$H$119 -> EF 67 | CD53: ='Default Value References'!$H$120 -> EF 70 | CE53: ='Default Value References'!$H$121 -> EF 82 | CF53: ='Default Value References'!$H$122 -> Wrap 5 ft | CG53: ='Default Value References'!$H$123 -> Valve | CH53: ='Default Value References'!$H$124 -> Valve & LF | CI53: ='Default Value References'!$H$125 -> Valve & TS
A54: No AC | B54: Furnace | C54: Slab-on-grade | D54: 3 | E54: =VLOOKUP(D54,Lists!$B$3:$C$18,2,FALSE) -> 3 | F54: 1 | G54: pre78 | H54: 1600 | I54: 0.1401634192 | J54: =INDEX('Default Value References'!$G$4:$G$6,MATCH($G54,'Default Value References'!$F$4:$F$6,0),1) -> 0.00071 | K54: 0.00071 | L54: =INDEX('Default Value References'!$G$12:$G$14,MATCH($G54,'Default Value References'!$F$12:$F$14,0),1) -> 3.32 | M54: =INDEX('Default Value References'!$G$17:$G$19,MATCH($G54,'Default Value References'!$F$17:$F$19,0),1) -> 0.33 | N54: 0.2475 | O54: 0.33 | P54: 0.2475 | Q54: =SUMIFS('Default Value References'!$H$32:$H$49,'Default Value References'!$G$32:$G$49,$E54,'Default Value References'!$F$32:$F$49,$G54) -> 6.68 | R54: 6.68 | S54: =INDEX('Default Value References'!$G$53:$G$55,MATCH($G54,'Default Value References'!$F$53:$F$55,0),1) -> 1.34 | T54: =SUMIFS('Default Value References'!$H$65:$H$82,'Default Value References'!$G$65:$G$82,$E54,'Default Value References'!$F$65:$F$82,$G54) -> 0.96 | U54: =SUMIFS('Default Value References'!$H$86:$H$103,'Default Value References'!$G$86:$G$103,$E54,'Default Value References'!$F$86:$F$103,$G54) -> 1.23 | V54: =SUMIFS('Default Value References'!$I$86:$I$103,'Default Value References'!$G$86:$G$103,$E54,'Default Value References'!$F$86:$F$103,$G54) -> 0.87 | X54: ='Default Value References'!$F$106 -> 11.4 | Y54: ='Default Value References'!$F$110 -> 80 | Z54: 80 | AA54: ='Default Value References'!$F$114 -> 62 | AB54: ='Default Value References'!$F$118 -> EF 86 | AC54: ='Default Value References'!$F$119 -> EF 59 | AD54: ='Default Value References'!$F$120 -> EF 59 | AE54: ='Default Value References'!$F$121 -> EF 52 | AF54: ='Default Value References'!$F$122 -> None | AG54: ='Default Value References'!$F$123 -> None | AH54: ='Default Value References'!$F$124 -> None | AI54: ='Default Value References'!$F$125 -> None | AJ54: 0.00071 | AK54: 0.00071 | AL54: 3.32 | AM54: 0.33 | AN54: 0.2475 | AO54: 0.33 | AP54: 0.2475 | AQ54: 6.68 | AR54: 6.68 | AS54: 1.34 | AT54: 0.96 | AU54: 1.23 | AV54: 0.87 | AX54: ='Default Value References'!$G$106 -> 14 | AY54: ='Default Value References'!$G$110 -> 80 | AZ54: 80 | BA54: ='Default Value References'!$G$114 -> 66 | BB54: ='Default Value References'!$G$118 -> EF 95 | BC54: ='Default Value References'!$G$119 -> EF 60 | BD54: ='Default Value References'!$G$120 -> EF 60 | BE54: ='Default Value References'!$G$121 -> EF 74 | BF54: ='Default Value References'!$G$122 -> None | BG54: ='Default Value References'!$G$123 -> None | BH54: ='Default Value References'!$G$124 -> None | BI54: ='Default Value References'!$G$125 -> None | BJ54: =INDEX('Default Value References'!$I$4:$I$6,MATCH($G54,'Default Value References'!$F$4:$F$6,0),1) -> 0.0006035 | BK54: =INDEX('Default Value References'!$I$7:$I$9,MATCH($G54,'Default Value References'!$F$7:$F$9,0),1) -> 0.000497 | BL54: ='Default Value References'!$I$12 -> 8 | BM54: ='Default Value References'!$I$17 -> 0.1 | BN54: 0.075 | BO54: ='Default Value References'!$I$20 -> 0.05 | BP54: 0.0375 | BQ54: =INDEX('Default Value References'!$K$32:$K$47,MATCH($D54,'Default Value References'!$J$32:$J$47,0),1) -> 30 | BR54: ='Default Value References'!$K$50 -> 44 | BS54: ='Default Value References'!$I$53 -> 19 | BT54: ='Default Value References'!$J$65 -> 13 | BU54: ='Default Value References'!$L$86 -> 0.3 | BV54: ='Default Value References'!$M$86 -> 0.25 | BX54: ='Default Value References'!$H$106 -> 15 | BY54: ='Default Value References'!$H$110 -> 92 | BZ54: ='Default Value References'!$H$111 -> 95 | CA54: ='Default Value References'!$H$114 -> 70 | CB54: ='Default Value References'!$H$118 -> EF 200 | CC54: ='Default Value References'!$H$119 -> EF 67 | CD54: ='Default Value References'!$H$120 -> EF 70 | CE54: ='Default Value References'!$H$121 -> EF 82 | CF54: ='Default Value References'!$H$122 -> Wrap 5 ft | CG54: ='Default Value References'!$H$123 -> Valve | CH54: ='Default Value References'!$H$124 -> Valve & LF | CI54: ='Default Value References'!$H$125 -> Valve & TS
A55: No AC | B55: Furnace | C55: Slab-on-grade | D55: 3 | E55: =VLOOKUP(D55,Lists!$B$3:$C$18,2,FALSE) -> 3 | F55: 2 | G55: pre78 | H55: 1990 | I55: 0.1401634192 | J55: =INDEX('Default Value References'!$G$4:$G$6,MATCH($G55,'Default Value References'!$F$4:$F$6,0),1) -> 0.00071 | K55: 0.00071 | L55: =INDEX('Default Value References'!$G$12:$G$14,MATCH($G55,'Default Value References'!$F$12:$F$14,0),1) -> 3.32 | M55: =INDEX('Default Value References'!$G$17:$G$19,MATCH($G55,'Default Value References'!$F$17:$F$19,0),1) -> 0.33 | N55: 0.2145 | O55: 0.33 | P55: 0.2145 | Q55: =SUMIFS('Default Value References'!$H$32:$H$49,'Default Value References'!$G$32:$G$49,$E55,'Default Value References'!$F$32:$F$49,$G55) -> 6.68 | R55: 6.68 | S55: =INDEX('Default Value References'!$G$53:$G$55,MATCH($G55,'Default Value References'!$F$53:$F$55,0),1) -> 1.34 | T55: =SUMIFS('Default Value References'!$H$65:$H$82,'Default Value References'!$G$65:$G$82,$E55,'Default Value References'!$F$65:$F$82,$G55) -> 0.96 | U55: =SUMIFS('Default Value References'!$H$86:$H$103,'Default Value References'!$G$86:$G$103,$E55,'Default Value References'!$F$86:$F$103,$G55) -> 1.23 | V55: =SUMIFS('Default Value References'!$I$86:$I$103,'Default Value References'!$G$86:$G$103,$E55,'Default Value References'!$F$86:$F$103,$G55) -> 0.87 | X55: ='Default Value References'!$F$106 -> 11.4 | Y55: ='Default Value References'!$F$110 -> 80 | Z55: 80 | AA55: ='Default Value References'!$F$114 -> 62 | AB55: ='Default Value References'!$F$118 -> EF 86 | AC55: ='Default Value References'!$F$119 -> EF 59 | AD55: ='Default Value References'!$F$120 -> EF 59 | AE55: ='Default Value References'!$F$121 -> EF 52 | AF55: ='Default Value References'!$F$122 -> None | AG55: ='Default Value References'!$F$123 -> None | AH55: ='Default Value References'!$F$124 -> None | AI55: ='Default Value References'!$F$125 -> None | AJ55: 0.00071 | AK55: 0.00071 | AL55: 3.32 | AM55: 0.33 | AN55: 0.2145 | AO55: 0.33 | AP55: 0.2145 | AQ55: 6.68 | AR55: 6.68 | AS55: 1.34 | AT55: 0.96 | AU55: 1.23 | AV55: 0.87 | AX55: ='Default Value References'!$G$106 -> 14 | AY55: ='Default Value References'!$G$110 -> 80 | AZ55: 80 | BA55: ='Default Value References'!$G$114 -> 66 | BB55: ='Default Value References'!$G$118 -> EF 95 | BC55: ='Default Value References'!$G$119 -> EF 60 | BD55: ='Default Value References'!$G$120 -> EF 60 | BE55: ='Default Value References'!$G$121 -> EF 74 | BF55: ='Default Value References'!$G$122 -> None | BG55: ='Default Value References'!$G$123 -> None | BH55: ='Default Value References'!$G$124 -> None | BI55: ='Default Value References'!$G$125 -> None | BJ55: =INDEX('Default Value References'!$I$4:$I$6,MATCH($G55,'Default Value References'!$F$4:$F$6,0),1) -> 0.0006035 | BK55: =INDEX('Default Value References'!$I$7:$I$9,MATCH($G55,'Default Value References'!$F$7:$F$9,0),1) -> 0.000497 | BL55: ='Default Value References'!$I$12 -> 8 | BM55: ='Default Value References'!$I$17 -> 0.1 | BN55: 0.065 | BO55: ='Default Value References'!$I$20 -> 0.05 | BP55: 0.0325 | BQ55: =INDEX('Default Value References'!$K$32:$K$47,MATCH($D55,'Default Value References'!$J$32:$J$47,0),1) -> 30 | BR55: ='Default Value References'!$K$50 -> 44 | BS55: ='Default Value References'!$I$53 -> 19 | BT55: ='Default Value References'!$J$65 -> 13 | BU55: ='Default Value References'!$L$86 -> 0.3 | BV55: ='Default Value References'!$M$86 -> 0.25 | BX55: ='Default Value References'!$H$106 -> 15 | BY55: ='Default Value References'!$H$110 -> 92 | BZ55: ='Default Value References'!$H$111 -> 95 | CA55: ='Default Value References'!$H$114 -> 70 | CB55: ='Default Value References'!$H$118 -> EF 200 | CC55: ='Default Value References'!$H$119 -> EF 67 | CD55: ='Default Value References'!$H$120 -> EF 70 | CE55: ='Default Value References'!$H$121 -> EF 82 | CF55: ='Default Value References'!$H$122 -> Wrap 5 ft | CG55: ='Default Value References'!$H$123 -> Valve | CH55: ='Default Value References'!$H$124 -> Valve & LF | CI55: ='Default Value References'!$H$125 -> Valve & TS
A56: AC | B56: Furnace | C56: Slab-on-grade | D56: 3 | E56: =VLOOKUP(D56,Lists!$B$3:$C$18,2,FALSE) -> 3 | F56: 1 | G56: pre78 | H56: 1600 | I56: 0.1401634192 | J56: =INDEX('Default Value References'!$G$4:$G$6,MATCH($G56,'Default Value References'!$F$4:$F$6,0),1) -> 0.00071 | K56: 0.00071 | L56: =INDEX('Default Value References'!$G$12:$G$14,MATCH($G56,'Default Value References'!$F$12:$F$14,0),1) -> 3.32 | M56: =INDEX('Default Value References'!$G$17:$G$19,MATCH($G56,'Default Value References'!$F$17:$F$19,0),1) -> 0.33 | N56: 0.2475 | O56: 0.33 | P56: 0.2475 | Q56: =SUMIFS('Default Value References'!$H$32:$H$49,'Default Value References'!$G$32:$G$49,$E56,'Default Value References'!$F$32:$F$49,$G56) -> 6.68 | R56: 6.68 | S56: =INDEX('Default Value References'!$G$53:$G$55,MATCH($G56,'Default Value References'!$F$53:$F$55,0),1) -> 1.34 | T56: =SUMIFS('Default Value References'!$H$65:$H$82,'Default Value References'!$G$65:$G$82,$E56,'Default Value References'!$F$65:$F$82,$G56) -> 0.96 | U56: =SUMIFS('Default Value References'!$H$86:$H$103,'Default Value References'!$G$86:$G$103,$E56,'Default Value References'!$F$86:$F$103,$G56) -> 1.23 | V56: =SUMIFS('Default Value References'!$I$86:$I$103,'Default Value References'!$G$86:$G$103,$E56,'Default Value References'!$F$86:$F$103,$G56) -> 0.87 | X56: ='Default Value References'!$F$106 -> 11.4 | Y56: ='Default Value References'!$F$110 -> 80 | Z56: 80 | AA56: ='Default Value References'!$F$114 -> 62 | AB56: ='Default Value References'!$F$118 -> EF 86 | AC56: ='Default Value References'!$F$119 -> EF 59 | AD56: ='Default Value References'!$F$120 -> EF 59 | AE56: ='Default Value References'!$F$121 -> EF 52 | AF56: ='Default Value References'!$F$122 -> None | AG56: ='Default Value References'!$F$123 -> None | AH56: ='Default Value References'!$F$124 -> None | AI56: ='Default Value References'!$F$125 -> None | AJ56: 0.00071 | AK56: 0.00071 | AL56: 3.32 | AM56: 0.33 | AN56: 0.2475 | AO56: 0.33 | AP56: 0.2475 | AQ56: 6.68 | AR56: 6.68 | AS56: 1.34 | AT56: 0.96 | AU56: 1.23 | AV56: 0.87 | AX56: ='Default Value References'!$G$106 -> 14 | AY56: ='Default Value References'!$G$110 -> 80 | AZ56: 80 | BA56: ='Default Value References'!$G$114 -> 66 | BB56: ='Default Value References'!$G$118 -> EF 95 | BC56: ='Default Value References'!$G$119 -> EF 60 | BD56: ='Default Value References'!$G$120 -> EF 60 | BE56: ='Default Value References'!$G$121 -> EF 74 | BF56: ='Default Value References'!$G$122 -> None | BG56: ='Default Value References'!$G$123 -> None | BH56: ='Default Value References'!$G$124 -> None | BI56: ='Default Value References'!$G$125 -> None | BJ56: =INDEX('Default Value References'!$I$4:$I$6,MATCH($G56,'Default Value References'!$F$4:$F$6,0),1) -> 0.0006035 | BK56: =INDEX('Default Value References'!$I$7:$I$9,MATCH($G56,'Default Value References'!$F$7:$F$9,0),1) -> 0.000497 | BL56: ='Default Value References'!$I$12 -> 8 | BM56: ='Default Value References'!$I$17 -> 0.1 | BN56: 0.075 | BO56: ='Default Value References'!$I$20 -> 0.05 | BP56: 0.0375 | BQ56: =INDEX('Default Value References'!$K$32:$K$47,MATCH($D56,'Default Value References'!$J$32:$J$47,0),1) -> 30 | BR56: ='Default Value References'!$K$50 -> 44 | BS56: ='Default Value References'!$I$53 -> 19 | BT56: ='Default Value References'!$J$65 -> 13 | BU56: ='Default Value References'!$L$86 -> 0.3 | BV56: ='Default Value References'!$M$86 -> 0.25 | BX56: ='Default Value References'!$H$106 -> 15 | BY56: ='Default Value References'!$H$110 -> 92 | BZ56: ='Default Value References'!$H$111 -> 95 | CA56: ='Default Value References'!$H$114 -> 70 | CB56: ='Default Value References'!$H$118 -> EF 200 | CC56: ='Default Value References'!$H$119 -> EF 67 | CD56: ='Default Value References'!$H$120 -> EF 70 | CE56: ='Default Value References'!$H$121 -> EF 82 | CF56: ='Default Value References'!$H$122 -> Wrap 5 ft | CG56: ='Default Value References'!$H$123 -> Valve | CH56: ='Default Value References'!$H$124 -> Valve & LF | CI56: ='Default Value References'!$H$125 -> Valve & TS
A57: AC | B57: Furnace | C57: Slab-on-grade | D57: 3 | E57: =VLOOKUP(D57,Lists!$B$3:$C$18,2,FALSE) -> 3 | F57: 2 | G57: pre78 | H57: 1990 | I57: 0.1401634192 | J57: =INDEX('Default Value References'!$G$4:$G$6,MATCH($G57,'Default Value References'!$F$4:$F$6,0),1) -> 0.00071 | K57: 0.00071 | L57: =INDEX('Default Value References'!$G$12:$G$14,MATCH($G57,'Default Value References'!$F$12:$F$14,0),1) -> 3.32 | M57: =INDEX('Default Value References'!$G$17:$G$19,MATCH($G57,'Default Value References'!$F$17:$F$19,0),1) -> 0.33 | N57: 0.2145 | O57: 0.33 | P57: 0.2145 | Q57: =SUMIFS('Default Value References'!$H$32:$H$49,'Default Value References'!$G$32:$G$49,$E57,'Default Value References'!$F$32:$F$49,$G57) -> 6.68 | R57: 6.68 | S57: =INDEX('Default Value References'!$G$53:$G$55,MATCH($G57,'Default Value References'!$F$53:$F$55,0),1) -> 1.34 | T57: =SUMIFS('Default Value References'!$H$65:$H$82,'Default Value References'!$G$65:$G$82,$E57,'Default Value References'!$F$65:$F$82,$G57) -> 0.96 | U57: =SUMIFS('Default Value References'!$H$86:$H$103,'Default Value References'!$G$86:$G$103,$E57,'Default Value References'!$F$86:$F$103,$G57) -> 1.23 | V57: =SUMIFS('Default Value References'!$I$86:$I$103,'Default Value References'!$G$86:$G$103,$E57,'Default Value References'!$F$86:$F$103,$G57) -> 0.87 | X57: ='Default Value References'!$F$106 -> 11.4 | Y57: ='Default Value References'!$F$110 -> 80 | Z57: 80 | AA57: ='Default Value References'!$F$114 -> 62 | AB57: ='Default Value References'!$F$118 -> EF 86 | AC57: ='Default Value References'!$F$119 -> EF 59 | AD57: ='Default Value References'!$F$120 -> EF 59 | AE57: ='Default Value References'!$F$121 -> EF 52 | AF57: ='Default Value References'!$F$122 -> None | AG57: ='Default Value References'!$F$123 -> None | AH57: ='Default Value References'!$F$124 -> None | AI57: ='Default Value References'!$F$125 -> None | AJ57: 0.00071 | AK57: 0.00071 | AL57: 3.32 | AM57: 0.33 | AN57: 0.2145 | AO57: 0.33 | AP57: 0.2145 | AQ57: 6.68 | AR57: 6.68 | AS57: 1.34 | AT57: 0.96 | AU57: 1.23 | AV57: 0.87 | AX57: ='Default Value References'!$G$106 -> 14 | AY57: ='Default Value References'!$G$110 -> 80 | AZ57: 80 | BA57: ='Default Value References'!$G$114 -> 66 | BB57: ='Default Value References'!$G$118 -> EF 95 | BC57: ='Default Value References'!$G$119 -> EF 60 | BD57: ='Default Value References'!$G$120 -> EF 60 | BE57: ='Default Value References'!$G$121 -> EF 74 | BF57: ='Default Value References'!$G$122 -> None | BG57: ='Default Value References'!$G$123 -> None | BH57: ='Default Value References'!$G$124 -> None | BI57: ='Default Value References'!$G$125 -> None | BJ57: =INDEX('Default Value References'!$I$4:$I$6,MATCH($G57,'Default Value References'!$F$4:$F$6,0),1) -> 0.0006035 | BK57: =INDEX('Default Value References'!$I$7:$I$9,MATCH($G57,'Default Value References'!$F$7:$F$9,0),1) -> 0.000497 | BL57: ='Default Value References'!$I$12 -> 8 | BM57: ='Default Value References'!$I$17 -> 0.1 | BN57: 0.065 | BO57: ='Default Value References'!$I$20 -> 0.05 | BP57: 0.0325 | BQ57: =INDEX('Default Value References'!$K$32:$K$47,MATCH($D57,'Default Value References'!$J$32:$J$47,0),1) -> 30 | BR57: ='Default Value References'!$K$50 -> 44 | BS57: ='Default Value References'!$I$53 -> 19 | BT57: ='Default Value References'!$J$65 -> 13 | BU57: ='Default Value References'!$L$86 -> 0.3 | BV57: ='Default Value References'!$M$86 -> 0.25 | BX57: ='Default Value References'!$H$106 -> 15 | BY57: ='Default Value References'!$H$110 -> 92 | BZ57: ='Default Value References'!$H$111 -> 95 | CA57: ='Default Value References'!$H$114 -> 70 | CB57: ='Default Value References'!$H$118 -> EF 200 | CC57: ='Default Value References'!$H$119 -> EF 67 | CD57: ='Default Value References'!$H$120 -> EF 70 | CE57: ='Default Value References'!$H$121 -> EF 82 | CF57: ='Default Value References'!$H$122 -> Wrap 5 ft | CG57: ='Default Value References'!$H$123 -> Valve | CH57: ='Default Value References'!$H$124 -> Valve & LF | CI57: ='Default Value References'!$H$125 -> Valve & TS
A58: No AC | B58: Furnace | C58: Crawlspace | D58: 3 | E58: =VLOOKUP(D58,Lists!$B$3:$C$18,2,FALSE) -> 3 | F58: 1 | G58: pre78 | H58: 1600 | I58: 0.1401634192 | J58: =INDEX('Default Value References'!$G$4:$G$6,MATCH($G58,'Default Value References'!$F$4:$F$6,0),1) -> 0.00071 | K58: 0.00071 | L58: =INDEX('Default Value References'!$G$12:$G$14,MATCH($G58,'Default Value References'!$F$12:$F$14,0),1) -> 3.32 | M58: =INDEX('Default Value References'!$G$17:$G$19,MATCH($G58,'Default Value References'!$F$17:$F$19,0),1) -> 0.33 | N58: 0.2475 | O58: 0.33 | P58: 0.2475 | Q58: =SUMIFS('Default Value References'!$H$32:$H$49,'Default Value References'!$G$32:$G$49,$E58,'Default Value References'!$F$32:$F$49,$G58) -> 6.68 | R58: 6.68 | S58: =INDEX('Default Value References'!$G$53:$G$55,MATCH($G58,'Default Value References'!$F$53:$F$55,0),1) -> 1.34 | T58: =SUMIFS('Default Value References'!$H$65:$H$82,'Default Value References'!$G$65:$G$82,$E58,'Default Value References'!$F$65:$F$82,$G58) -> 0.96 | U58: =SUMIFS('Default Value References'!$H$86:$H$103,'Default Value References'!$G$86:$G$103,$E58,'Default Value References'!$F$86:$F$103,$G58) -> 1.23 | V58: =SUMIFS('Default Value References'!$I$86:$I$103,'Default Value References'!$G$86:$G$103,$E58,'Default Value References'!$F$86:$F$103,$G58) -> 0.87 | X58: ='Default Value References'!$F$106 -> 11.4 | Y58: ='Default Value References'!$F$110 -> 80 | Z58: 80 | AA58: ='Default Value References'!$F$114 -> 62 | AB58: ='Default Value References'!$F$118 -> EF 86 | AC58: ='Default Value References'!$F$119 -> EF 59 | AD58: ='Default Value References'!$F$120 -> EF 59 | AE58: ='Default Value References'!$F$121 -> EF 52 | AF58: ='Default Value References'!$F$122 -> None | AG58: ='Default Value References'!$F$123 -> None | AH58: ='Default Value References'!$F$124 -> None | AI58: ='Default Value References'!$F$125 -> None | AJ58: 0.00071 | AK58: 0.00071 | AL58: 3.32 | AM58: 0.33 | AN58: 0.2475 | AO58: 0.33 | AP58: 0.2475 | AQ58: 6.68 | AR58: 6.68 | AS58: 1.34 | AT58: 0.96 | AU58: 1.23 | AV58: 0.87 | AX58: ='Default Value References'!$G$106 -> 14 | AY58: ='Default Value References'!$G$110 -> 80 | AZ58: 80 | BA58: ='Default Value References'!$G$114 -> 66 | BB58: ='Default Value References'!$G$118 -> EF 95 | BC58: ='Default Value References'!$G$119 -> EF 60 | BD58: ='Default Value References'!$G$120 -> EF 60 | BE58: ='Default Value References'!$G$121 -> EF 74 | BF58: ='Default Value References'!$G$122 -> None | BG58: ='Default Value References'!$G$123 -> None | BH58: ='Default Value References'!$G$124 -> None | BI58: ='Default Value References'!$G$125 -> None | BJ58: =INDEX('Default Value References'!$I$4:$I$6,MATCH($G58,'Default Value References'!$F$4:$F$6,0),1) -> 0.0006035 | BK58: =INDEX('Default Value References'!$I$7:$I$9,MATCH($G58,'Default Value References'!$F$7:$F$9,0),1) -> 0.000497 | BL58: ='Default Value References'!$I$12 -> 8 | BM58: ='Default Value References'!$I$17 -> 0.1 | BN58: 0.075 | BO58: ='Default Value References'!$I$20 -> 0.05 | BP58: 0.0375 | BQ58: =INDEX('Default Value References'!$K$32:$K$47,MATCH($D58,'Default Value References'!$J$32:$J$47,0),1) -> 30 | BR58: ='Default Value References'!$K$50 -> 44 | BS58: ='Default Value References'!$I$53 -> 19 | BT58: ='Default Value References'!$J$65 -> 13 | BU58: ='Default Value References'!$L$86 -> 0.3 | BV58: ='Default Value References'!$M$86 -> 0.25 | BX58: ='Default Value References'!$H$106 -> 15 | BY58: ='Default Value References'!$H$110 -> 92 | BZ58: ='Default Value References'!$H$111 -> 95 | CA58: ='Default Value References'!$H$114 -> 70 | CB58: ='Default Value References'!$H$118 -> EF 200 | CC58: ='Default Value References'!$H$119 -> EF 67 | CD58: ='Default Value References'!$H$120 -> EF 70 | CE58: ='Default Value References'!$H$121 -> EF 82 | CF58: ='Default Value References'!$H$122 -> Wrap 5 ft | CG58: ='Default Value References'!$H$123 -> Valve | CH58: ='Default Value References'!$H$124 -> Valve & LF | CI58: ='Default Value References'!$H$125 -> Valve & TS
A59: No AC | B59: Furnace | C59: Crawlspace | D59: 3 | E59: =VLOOKUP(D59,Lists!$B$3:$C$18,2,FALSE) -> 3 | F59: 2 | G59: pre78 | H59: 1990 | I59: 0.1401634192 | J59: =INDEX('Default Value References'!$G$4:$G$6,MATCH($G59,'Default Value References'!$F$4:$F$6,0),1) -> 0.00071 | K59: 0.00071 | L59: =INDEX('Default Value References'!$G$12:$G$14,MATCH($G59,'Default Value References'!$F$12:$F$14,0),1) -> 3.32 | M59: =INDEX('Default Value References'!$G$17:$G$19,MATCH($G59,'Default Value References'!$F$17:$F$19,0),1) -> 0.33 | N59: 0.2145 | O59: 0.33 | P59: 0.2145 | Q59: =SUMIFS('Default Value References'!$H$32:$H$49,'Default Value References'!$G$32:$G$49,$E59,'Default Value References'!$F$32:$F$49,$G59) -> 6.68 | R59: 6.68 | S59: =INDEX('Default Value References'!$G$53:$G$55,MATCH($G59,'Default Value References'!$F$53:$F$55,0),1) -> 1.34 | T59: =SUMIFS('Default Value References'!$H$65:$H$82,'Default Value References'!$G$65:$G$82,$E59,'Default Value References'!$F$65:$F$82,$G59) -> 0.96 | U59: =SUMIFS('Default Value References'!$H$86:$H$103,'Default Value References'!$G$86:$G$103,$E59,'Default Value References'!$F$86:$F$103,$G59) -> 1.23 | V59: =SUMIFS('Default Value References'!$I$86:$I$103,'Default Value References'!$G$86:$G$103,$E59,'Default Value References'!$F$86:$F$103,$G59) -> 0.87 | X59: ='Default Value References'!$F$106 -> 11.4 | Y59: ='Default Value References'!$F$110 -> 80 | Z59: 80 | AA59: ='Default Value References'!$F$114 -> 62 | AB59: ='Default Value References'!$F$118 -> EF 86 | AC59: ='Default Value References'!$F$119 -> EF 59 | AD59: ='Default Value References'!$F$120 -> EF 59 | AE59: ='Default Value References'!$F$121 -> EF 52 | AF59: ='Default Value References'!$F$122 -> None | AG59: ='Default Value References'!$F$123 -> None | AH59: ='Default Value References'!$F$124 -> None | AI59: ='Default Value References'!$F$125 -> None | AJ59: 0.00071 | AK59: 0.00071 | AL59: 3.32 | AM59: 0.33 | AN59: 0.2145 | AO59: 0.33 | AP59: 0.2145 | AQ59: 6.68 | AR59: 6.68 | AS59: 1.34 | AT59: 0.96 | AU59: 1.23 | AV59: 0.87 | AX59: ='Default Value References'!$G$106 -> 14 | AY59: ='Default Value References'!$G$110 -> 80 | AZ59: 80 | BA59: ='Default Value References'!$G$114 -> 66 | BB59: ='Default Value References'!$G$118 -> EF 95 | BC59: ='Default Value References'!$G$119 -> EF 60 | BD59: ='Default Value References'!$G$120 -> EF 60 | BE59: ='Default Value References'!$G$121 -> EF 74 | BF59: ='Default Value References'!$G$122 -> None | BG59: ='Default Value References'!$G$123 -> None | BH59: ='Default Value References'!$G$124 -> None | BI59: ='Default Value References'!$G$125 -> None | BJ59: =INDEX('Default Value References'!$I$4:$I$6,MATCH($G59,'Default Value References'!$F$4:$F$6,0),1) -> 0.0006035 | BK59: =INDEX('Default Value References'!$I$7:$I$9,MATCH($G59,'Default Value References'!$F$7:$F$9,0),1) -> 0.000497 | BL59: ='Default Value References'!$I$12 -> 8 | BM59: ='Default Value References'!$I$17 -> 0.1 | BN59: 0.065 | BO59: ='Default Value References'!$I$20 -> 0.05 | BP59: 0.0325 | BQ59: =INDEX('Default Value References'!$K$32:$K$47,MATCH($D59,'Default Value References'!$J$32:$J$47,0),1) -> 30 | BR59: ='Default Value References'!$K$50 -> 44 | BS59: ='Default Value References'!$I$53 -> 19 | BT59: ='Default Value References'!$J$65 -> 13 | BU59: ='Default Value References'!$L$86 -> 0.3 | BV59: ='Default Value References'!$M$86 -> 0.25 | BX59: ='Default Value References'!$H$106 -> 15 | BY59: ='Default Value References'!$H$110 -> 92 | BZ59: ='Default Value References'!$H$111 -> 95 | CA59: ='Default Value References'!$H$114 -> 70 | CB59: ='Default Value References'!$H$118 -> EF 200 | CC59: ='Default Value References'!$H$119 -> EF 67 | CD59: ='Default Value References'!$H$120 -> EF 70 | CE59: ='Default Value References'!$H$121 -> EF 82 | CF59: ='Default Value References'!$H$122 -> Wrap 5 ft | CG59: ='Default Value References'!$H$123 -> Valve | CH59: ='Default Value References'!$H$124 -> Valve & LF | CI59: ='Default Value References'!$H$125 -> Valve & TS
A60: AC | B60: Furnace | C60: Crawlspace | D60: 3 | E60: =VLOOKUP(D60,Lists!$B$3:$C$18,2,FALSE) -> 3 | F60: 1 | G60: pre78 | H60: 1600 | I60: 0.1401634192 | J60: =INDEX('Default Value References'!$G$4:$G$6,MATCH($G60,'Default Value References'!$F$4:$F$6,0),1) -> 0.00071 | K60: 0.00071 | L60: =INDEX('Default Value References'!$G$12:$G$14,MATCH($G60,'Default Value References'!$F$12:$F$14,0),1) -> 3.32 | M60: =INDEX('Default Value References'!$G$17:$G$19,MATCH($G60,'Default Value References'!$F$17:$F$19,0),1) -> 0.33 | N60: 0.2475 | O60: 0.33 | P60: 0.2475 | Q60: =SUMIFS('Default Value References'!$H$32:$H$49,'Default Value References'!$G$32:$G$49,$E60,'Default Value References'!$F$32:$F$49,$G60) -> 6.68 | R60: 6.68 | S60: =INDEX('Default Value References'!$G$53:$G$55,MATCH($G60,'Default Value References'!$F$53:$F$55,0),1) -> 1.34 | T60: =SUMIFS('Default Value References'!$H$65:$H$82,'Default Value References'!$G$65:$G$82,$E60,'Default Value References'!$F$65:$F$82,$G60) -> 0.96 | U60: =SUMIFS('Default Value References'!$H$86:$H$103,'Default Value References'!$G$86:$G$103,$E60,'Default Value References'!$F$86:$F$103,$G60) -> 1.23 | V60: =SUMIFS('Default Value References'!$I$86:$I$103,'Default Value References'!$G$86:$G$103,$E60,'Default Value References'!$F$86:$F$103,$G60) -> 0.87 | X60: ='Default Value References'!$F$106 -> 11.4 | Y60: ='Default Value References'!$F$110 -> 80 | Z60: 80 | AA60: ='Default Value References'!$F$114 -> 62 | AB60: ='Default Value References'!$F$118 -> EF 86 | AC60: ='Default Value References'!$F$119 -> EF 59 | AD60: ='Default Value References'!$F$120 -> EF 59 | AE60: ='Default Value References'!$F$121 -> EF 52 | AF60: ='Default Value References'!$F$122 -> None | AG60: ='Default Value References'!$F$123 -> None | AH60: ='Default Value References'!$F$124 -> None | AI60: ='Default Value References'!$F$125 -> None | AJ60: 0.00071 | AK60: 0.00071 | AL60: 3.32 | AM60: 0.33 | AN60: 0.2475 | AO60: 0.33 | AP60: 0.2475 | AQ60: 6.68 | AR60: 6.68 | AS60: 1.34 | AT60: 0.96 | AU60: 1.23 | AV60: 0.87 | AX60: ='Default Value References'!$G$106 -> 14 | AY60: ='Default Value References'!$G$110 -> 80 | AZ60: 80 | BA60: ='Default Value References'!$G$114 -> 66 | BB60: ='Default Value References'!$G$118 -> EF 95 | BC60: ='Default Value References'!$G$119 -> EF 60 | BD60: ='Default Value References'!$G$120 -> EF 60 | BE60: ='Default Value References'!$G$121 -> EF 74 | BF60: ='Default Value References'!$G$122 -> None | BG60: ='Default Value References'!$G$123 -> None | BH60: ='Default Value References'!$G$124 -> None | BI60: ='Default Value References'!$G$125 -> None | BJ60: =INDEX('Default Value References'!$I$4:$I$6,MATCH($G60,'Default Value References'!$F$4:$F$6,0),1) -> 0.0006035 | BK60: =INDEX('Default Value References'!$I$7:$I$9,MATCH($G60,'Default Value References'!$F$7:$F$9,0),1) -> 0.000497 | BL60: ='Default Value References'!$I$12 -> 8 | BM60: ='Default Value References'!$I$17 -> 0.1 | BN60: 0.075 | BO60: ='Default Value References'!$I$20 -> 0.05 | BP60: 0.0375 | BQ60: =INDEX('Default Value References'!$K$32:$K$47,MATCH($D60,'Default Value References'!$J$32:$J$47,0),1) -> 30 | BR60: ='Default Value References'!$K$50 -> 44 | BS60: ='Default Value References'!$I$53 -> 19 | BT60: ='Default Value References'!$J$65 -> 13 | BU60: ='Default Value References'!$L$86 -> 0.3 | BV60: ='Default Value References'!$M$86 -> 0.25 | BX60: ='Default Value References'!$H$106 -> 15 | BY60: ='Default Value References'!$H$110 -> 92 | BZ60: ='Default Value References'!$H$111 -> 95 | CA60: ='Default Value References'!$H$114 -> 70 | CB60: ='Default Value References'!$H$118 -> EF 200 | CC60: ='Default Value References'!$H$119 -> EF 67 | CD60: ='Default Value References'!$H$120 -> EF 70 | CE60: ='Default Value References'!$H$121 -> EF 82 | CF60: ='Default Value References'!$H$122 -> Wrap 5 ft | CG60: ='Default Value References'!$H$123 -> Valve | CH60: ='Default Value References'!$H$124 -> Valve & LF | CI60: ='Default Value References'!$H$125 -> Valve & TS
A61: AC | B61: Furnace | C61: Crawlspace | D61: 3 | E61: =VLOOKUP(D61,Lists!$B$3:$C$18,2,FALSE) -> 3 | F61: 2 | G61: pre78 | H61: 1990 | I61: 0.1401634192 | J61: =INDEX('Default Value References'!$G$4:$G$6,MATCH($G61,'Default Value References'!$F$4:$F$6,0),1) -> 0.00071 | K61: 0.00071 | L61: =INDEX('Default Value References'!$G$12:$G$14,MATCH($G61,'Default Value References'!$F$12:$F$14,0),1) -> 3.32 | M61: =INDEX('Default Value References'!$G$17:$G$19,MATCH($G61,'Default Value References'!$F$17:$F$19,0),1) -> 0.33 | N61: 0.2145 | O61: 0.33 | P61: 0.2145 | Q61: =SUMIFS('Default Value References'!$H$32:$H$49,'Default Value References'!$G$32:$G$49,$E61,'Default Value References'!$F$32:$F$49,$G61) -> 6.68 | R61: 6.68 | S61: =INDEX('Default Value References'!$G$53:$G$55,MATCH($G61,'Default Value References'!$F$53:$F$55,0),1) -> 1.34 | T61: =SUMIFS('Default Value References'!$H$65:$H$82,'Default Value References'!$G$65:$G$82,$E61,'Default Value References'!$F$65:$F$82,$G61) -> 0.96 | U61: =SUMIFS('Default Value References'!$H$86:$H$103,'Default Value References'!$G$86:$G$103,$E61,'Default Value References'!$F$86:$F$103,$G61) -> 1.23 | V61: =SUMIFS('Default Value References'!$I$86:$I$103,'Default Value References'!$G$86:$G$103,$E61,'Default Value References'!$F$86:$F$103,$G61) -> 0.87 | X61: ='Default Value References'!$F$106 -> 11.4 | Y61: ='Default Value References'!$F$110 -> 80 | Z61: 80 | AA61: ='Default Value References'!$F$114 -> 62 | AB61: ='Default Value References'!$F$118 -> EF 86 | AC61: ='Default Value References'!$F$119 -> EF 59 | AD61: ='Default Value References'!$F$120 -> EF 59 | AE61: ='Default Value References'!$F$121 -> EF 52 | AF61: ='Default Value References'!$F$122 -> None | AG61: ='Default Value References'!$F$123 -> None | AH61: ='Default Value References'!$F$124 -> None | AI61: ='Default Value References'!$F$125 -> None | AJ61: 0.00071 | AK61: 0.00071 | AL61: 3.32 | AM61: 0.33 | AN61: 0.2145 | AO61: 0.33 | AP61: 0.2145 | AQ61: 6.68 | AR61: 6.68 | AS61: 1.34 | AT61: 0.96 | AU61: 1.23 | AV61: 0.87 | AX61: ='Default Value References'!$G$106 -> 14 | AY61: ='Default Value References'!$G$110 -> 80 | AZ61: 80 | BA61: ='Default Value References'!$G$114 -> 66 | BB61: ='Default Value References'!$G$118 -> EF 95 | BC61: ='Default Value References'!$G$119 -> EF 60 | BD61: ='Default Value References'!$G$120 -> EF 60 | BE61: ='Default Value References'!$G$121 -> EF 74 | BF61: ='Default Value References'!$G$122 -> None | BG61: ='Default Value References'!$G$123 -> None | BH61: ='Default Value References'!$G$124 -> None | BI61: ='Default Value References'!$G$125 -> None | BJ61: =INDEX('Default Value References'!$I$4:$I$6,MATCH($G61,'Default Value References'!$F$4:$F$6,0),1) -> 0.0006035 | BK61: =INDEX('Default Value References'!$I$7:$I$9,MATCH($G61,'Default Value References'!$F$7:$F$9,0),1) -> 0.000497 | BL61: ='Default Value References'!$I$12 -> 8 | BM61: ='Default Value References'!$I$17 -> 0.1 | BN61: 0.065 | BO61: ='Default Value References'!$I$20 -> 0.05 | BP61: 0.0325 | BQ61: =INDEX('Default Value References'!$K$32:$K$47,MATCH($D61,'Default Value References'!$J$32:$J$47,0),1) -> 30 | BR61: ='Default Value References'!$K$50 -> 44 | BS61: ='Default Value References'!$I$53 -> 19 | BT61: ='Default Value References'!$J$65 -> 13 | BU61: ='Default Value References'!$L$86 -> 0.3 | BV61: ='Default Value References'!$M$86 -> 0.25 | BX61: ='Default Value References'!$H$106 -> 15 | BY61: ='Default Value References'!$H$110 -> 92 | BZ61: ='Default Value References'!$H$111 -> 95 | CA61: ='Default Value References'!$H$114 -> 70 | CB61: ='Default Value References'!$H$118 -> EF 200 | CC61: ='Default Value References'!$H$119 -> EF 67 | CD61: ='Default Value References'!$H$120 -> EF 70 | CE61: ='Default Value References'!$H$121 -> EF 82 | CF61: ='Default Value References'!$H$122 -> Wrap 5 ft | CG61: ='Default Value References'!$H$123 -> Valve | CH61: ='Default Value References'!$H$124 -> Valve & LF | CI61: ='Default Value References'!$H$125 -> Valve & TS
A62: No AC | B62: Furnace | C62: Slab-on-grade | D62: 3 | E62: =VLOOKUP(D62,Lists!$B$3:$C$18,2,FALSE) -> 3 | F62: 1 | G62: 78-92 | H62: 1810 | I62: 0.1150210084 | J62: =INDEX('Default Value References'!$G$4:$G$6,MATCH($G62,'Default Value References'!$F$4:$F$6,0),1) -> 0.00052 | K62: 0.00052 | L62: =INDEX('Default Value References'!$G$12:$G$14,MATCH($G62,'Default Value References'!$F$12:$F$14,0),1) -> 3.67 | M62: =INDEX('Default Value References'!$G$17:$G$19,MATCH($G62,'Default Value References'!$F$17:$F$19,0),1) -> 0.26 | N62: 0.195 | O62: 0.26 | P62: 0.195 | Q62: =SUMIFS('Default Value References'!$H$32:$H$49,'Default Value References'!$G$32:$G$49,$E62,'Default Value References'!$F$32:$F$49,$G62) -> 10.31 | R62: 10.31 | S62: =INDEX('Default Value References'!$G$53:$G$55,MATCH($G62,'Default Value References'!$F$53:$F$55,0),1) -> 5.96 | T62: =SUMIFS('Default Value References'!$H$65:$H$82,'Default Value References'!$G$65:$G$82,$E62,'Default Value References'!$F$65:$F$82,$G62) -> 10.25 | U62: =SUMIFS('Default Value References'!$H$86:$H$103,'Default Value References'!$G$86:$G$103,$E62,'Default Value References'!$F$86:$F$103,$G62) -> 0.82 | V62: =SUMIFS('Default Value References'!$I$86:$I$103,'Default Value References'!$G$86:$G$103,$E62,'Default Value References'!$F$86:$F$103,$G62) -> 0.79 | X62: ='Default Value References'!$F$106 -> 11.4 | Y62: ='Default Value References'!$F$110 -> 80 | Z62: 80 | AA62: ='Default Value References'!$F$114 -> 62 | AB62: ='Default Value References'!$F$118 -> EF 86 | AC62: ='Default Value References'!$F$119 -> EF 59 | AD62: ='Default Value References'!$F$120 -> EF 59 | AE62: ='Default Value References'!$F$121 -> EF 52 | AF62: ='Default Value References'!$F$122 -> None | AG62: ='Default Value References'!$F$123 -> None | AH62: ='Default Value References'!$F$124 -> None | AI62: ='Default Value References'!$F$125 -> None | AJ62: 0.00052 | AK62: 0.00052 | AL62: 3.67 | AM62: 0.26 | AN62: 0.195 | AO62: 0.26 | AP62: 0.195 | AQ62: 10.31 | AR62: 10.31 | AS62: 5.96 | AT62: 10.25 | AU62: 0.82 | AV62: 0.79 | AX62: ='Default Value References'!$G$106 -> 14 | AY62: ='Default Value References'!$G$110 -> 80 | AZ62: 80 | BA62: ='Default Value References'!$G$114 -> 66 | BB62: ='Default Value References'!$G$118 -> EF 95 | BC62: ='Default Value References'!$G$119 -> EF 60 | BD62: ='Default Value References'!$G$120 -> EF 60 | BE62: ='Default Value References'!$G$121 -> EF 74 | BF62: ='Default Value References'!$G$122 -> None | BG62: ='Default Value References'!$G$123 -> None | BH62: ='Default Value References'!$G$124 -> None | BI62: ='Default Value References'!$G$125 -> None | BJ62: =INDEX('Default Value References'!$I$4:$I$6,MATCH($G62,'Default Value References'!$F$4:$F$6,0),1) -> 0.000442 | BK62: =INDEX('Default Value References'!$I$7:$I$9,MATCH($G62,'Default Value References'!$F$7:$F$9,0),1) -> 0.000364 | BL62: ='Default Value References'!$I$12 -> 8 | BM62: ='Default Value References'!$I$17 -> 0.1 | BN62: 0.075 | BO62: ='Default Value References'!$I$20 -> 0.05 | BP62: 0.0375 | BQ62: =INDEX('Default Value References'!$K$32:$K$47,MATCH($D62,'Default Value References'!$J$32:$J$47,0),1) -> 30 | BR62: ='Default Value References'!$K$50 -> 44 | BS62: ='Default Value References'!$I$53 -> 19 | BT62: ='Default Value References'!$J$65 -> 13 | BU62: ='Default Value References'!$L$86 -> 0.3 | BV62: ='Default Value References'!$M$86 -> 0.25 | BX62: ='Default Value References'!$H$106 -> 15 | BY62: ='Default Value References'!$H$110 -> 92 | BZ62: ='Default Value References'!$H$111 -> 95 | CA62: ='Default Value References'!$H$114 -> 70 | CB62: ='Default Value References'!$H$118 -> EF 200 | CC62: ='Default Value References'!$H$119 -> EF 67 | CD62: ='Default Value References'!$H$120 -> EF 70 | CE62: ='Default Value References'!$H$121 -> EF 82 | CF62: ='Default Value References'!$H$122 -> Wrap 5 ft | CG62: ='Default Value References'!$H$123 -> Valve | CH62: ='Default Value References'!$H$124 -> Valve & LF | CI62: ='Default Value References'!$H$125 -> Valve & TS
A63: No AC | B63: Furnace | C63: Slab-on-grade | D63: 3 | E63: =VLOOKUP(D63,Lists!$B$3:$C$18,2,FALSE) -> 3 | F63: 2 | G63: 78-92 | H63: 2400 | I63: 0.1150210084 | J63: =INDEX('Default Value References'!$G$4:$G$6,MATCH($G63,'Default Value References'!$F$4:$F$6,0),1) -> 0.00052 | K63: 0.00052 | L63: =INDEX('Default Value References'!$G$12:$G$14,MATCH($G63,'Default Value References'!$F$12:$F$14,0),1) -> 3.67 | M63: =INDEX('Default Value References'!$G$17:$G$19,MATCH($G63,'Default Value References'!$F$17:$F$19,0),1) -> 0.26 | N63: 0.169 | O63: 0.26 | P63: 0.169 | Q63: =SUMIFS('Default Value References'!$H$32:$H$49,'Default Value References'!$G$32:$G$49,$E63,'Default Value References'!$F$32:$F$49,$G63) -> 10.31 | R63: 10.31 | S63: =INDEX('Default Value References'!$G$53:$G$55,MATCH($G63,'Default Value References'!$F$53:$F$55,0),1) -> 5.96 | T63: =SUMIFS('Default Value References'!$H$65:$H$82,'Default Value References'!$G$65:$G$82,$E63,'Default Value References'!$F$65:$F$82,$G63) -> 10.25 | U63: =SUMIFS('Default Value References'!$H$86:$H$103,'Default Value References'!$G$86:$G$103,$E63,'Default Value References'!$F$86:$F$103,$G63) -> 0.82 | V63: =SUMIFS('Default Value References'!$I$86:$I$103,'Default Value References'!$G$86:$G$103,$E63,'Default Value References'!$F$86:$F$103,$G63) -> 0.79 | X63: ='Default Value References'!$F$106 -> 11.4 | Y63: ='Default Value References'!$F$110 -> 80 | Z63: 80 | AA63: ='Default Value References'!$F$114 -> 62 | AB63: ='Default Value References'!$F$118 -> EF 86 | AC63: ='Default Value References'!$F$119 -> EF 59 | AD63: ='Default Value References'!$F$120 -> EF 59 | AE63: ='Default Value References'!$F$121 -> EF 52 | AF63: ='Default Value References'!$F$122 -> None | AG63: ='Default Value References'!$F$123 -> None | AH63: ='Default Value References'!$F$124 -> None | AI63: ='Default Value References'!$F$125 -> None | AJ63: 0.00052 | AK63: 0.00052 | AL63: 3.67 | AM63: 0.26 | AN63: 0.169 | AO63: 0.26 | AP63: 0.169 | AQ63: 10.31 | AR63: 10.31 | AS63: 5.96 | AT63: 10.25 | AU63: 0.82 | AV63: 0.79 | AX63: ='Default Value References'!$G$106 -> 14 | AY63: ='Default Value References'!$G$110 -> 80 | AZ63: 80 | BA63: ='Default Value References'!$G$114 -> 66 | BB63: ='Default Value References'!$G$118 -> EF 95 | BC63: ='Default Value References'!$G$119 -> EF 60 | BD63: ='Default Value References'!$G$120 -> EF 60 | BE63: ='Default Value References'!$G$121 -> EF 74 | BF63: ='Default Value References'!$G$122 -> None | BG63: ='Default Value References'!$G$123 -> None | BH63: ='Default Value References'!$G$124 -> None | BI63: ='Default Value References'!$G$125 -> None | BJ63: =INDEX('Default Value References'!$I$4:$I$6,MATCH($G63,'Default Value References'!$F$4:$F$6,0),1) -> 0.000442 | BK63: =INDEX('Default Value References'!$I$7:$I$9,MATCH($G63,'Default Value References'!$F$7:$F$9,0),1) -> 0.000364 | BL63: ='Default Value References'!$I$12 -> 8 | BM63: ='Default Value References'!$I$17 -> 0.1 | BN63: 0.065 | BO63: ='Default Value References'!$I$20 -> 0.05 | BP63: 0.0325 | BQ63: =INDEX('Default Value References'!$K$32:$K$47,MATCH($D63,'Default Value References'!$J$32:$J$47,0),1) -> 30 | BR63: ='Default Value References'!$K$50 -> 44 | BS63: ='Default Value References'!$I$53 -> 19 | BT63: ='Default Value References'!$J$65 -> 13 | BU63: ='Default Value References'!$L$86 -> 0.3 | BV63: ='Default Value References'!$M$86 -> 0.25 | BX63: ='Default Value References'!$H$106 -> 15 | BY63: ='Default Value References'!$H$110 -> 92 | BZ63: ='Default Value References'!$H$111 -> 95 | CA63: ='Default Value References'!$H$114 -> 70 | CB63: ='Default Value References'!$H$118 -> EF 200 | CC63: ='Default Value References'!$H$119 -> EF 67 | CD63: ='Default Value References'!$H$120 -> EF 70 | CE63: ='Default Value References'!$H$121 -> EF 82 | CF63: ='Default Value References'!$H$122 -> Wrap 5 ft | CG63: ='Default Value References'!$H$123 -> Valve | CH63: ='Default Value References'!$H$124 -> Valve & LF | CI63: ='Default Value References'!$H$125 -> Valve & TS
